Body name,Service Area,Dept,Expenses Type,Capital/Revenue,Detailed Expenses Type,Transaction number,Expense Code,Date,Amount,Supplier Name,Supplier ID
WANDSWORTH COUNCIL,CS,ENVIRONMENT & COMMUNITY,OTH LA,Revenue,CONTRIBUTION - WESTMINSTER,558112,100044500,24-Dec-14,"11,092.00",CITY OF WESTMINSTER,SP0000345
WANDSWORTH COUNCIL,CS,ENVIRONMENT & COMMUNITY,"EQUIPMENT, FURNITURE & MATS",Revenue,EQUIP.FURN & MATS-REPS & MTCE,559546,100430010,31-Dec-14,"2,213.67",PEMBERTONS RESIDENTIAL LTD,SP0008019
WANDSWORTH COUNCIL,CS,ENVIRONMENT & COMMUNITY,"REPAIRS, ALTERATIONS & MTCE",Revenue,"REPS, ALTS & MTCE-BUILDINGS",542212,10051000K0002V,04-Dec-14,485.00,WEED MANAGEMENT,SP0008210
WANDSWORTH COUNCIL,CS,ENVIRONMENT & COMMUNITY,"REPAIRS, ALTERATIONS & MTCE",Revenue,"REPS, ALTS & MTCE-BUILDINGS",542351,10051000K0002X,05-Dec-14,"22,750.00",SAVILLS (L&P) LTD,SP0002554
WANDSWORTH COUNCIL,CS,ENVIRONMENT & COMMUNITY,SERVICES,Revenue,CONSULTANTS FEES,550541,100534200,18-Dec-14,"7,800.00",STEVEN BEE CONSULTING LIMITED,SP0008799
WANDSWORTH COUNCIL,CS,ENVIRONMENT & COMMUNITY,RENTS,Revenue,RENTS,540060,10061340K00951,02-Dec-14,"5,250.00",C GOLFINGER,SP0007180
WANDSWORTH COUNCIL,CS,ENVIRONMENT & COMMUNITY,COMMUNICATIONS & COMP,Revenue,COMMUNICATIONS - POSTAGE,555459,103036000,19-Dec-14,609.08,ROYAL MAIL,SP0001067
WANDSWORTH COUNCIL,CS,ENVIRONMENT & COMMUNITY,COMMUNICATIONS & COMP,Revenue,COMMUNICATIONS - POSTAGE,556825,103036000,23-Dec-14,"1,062.70",WHISTL LONDON LTD,SP0003602
WANDSWORTH COUNCIL,CS,ENVIRONMENT & COMMUNITY,COMMUNICATIONS & COMP,Revenue,COMMUNICATIONS - POSTAGE,556827,103036000,23-Dec-14,"1,015.46",WHISTL LONDON LTD,SP0003602
WANDSWORTH COUNCIL,CS,ENVIRONMENT & COMMUNITY,COMMUNICATIONS & COMP,Revenue,COMMUNICATIONS - POSTAGE,556828,103036000,23-Dec-14,"1,260.99",WHISTL LONDON LTD,SP0003602
WANDSWORTH COUNCIL,CS,ENVIRONMENT & COMMUNITY,COMMUNICATIONS & COMP,Revenue,COMMUNICATIONS - POSTAGE,556833,103036000,23-Dec-14,"1,675.21",WHISTL LONDON LTD,SP0003602
WANDSWORTH COUNCIL,CS,ENVIRONMENT & COMMUNITY,COMMUNICATIONS & COMP,Revenue,I.T. EQUIPMENT & MAINTENANCE,546535,103036210,12-Dec-14,"1,526.00",DELL CORPORATION LTD,SP0003352
WANDSWORTH COUNCIL,CS,ENVIRONMENT & COMMUNITY,COMMUNICATIONS & COMP,Revenue,I.T. EQUIPMENT & MAINTENANCE,546535,103036210,12-Dec-14,890.00,DELL CORPORATION LTD,SP0003352
WANDSWORTH COUNCIL,CS,ENVIRONMENT & COMMUNITY,"EQUIPMENT, FURNITURE & MATS",Revenue,FLOWERS,550423,103130170,16-Dec-14,972.00,PATRICIA WONG,SP0002085
WANDSWORTH COUNCIL,CS,ENVIRONMENT & COMMUNITY,COMMUNICATIONS & COMP,Revenue,I.T. DEVELOPMENTS,546374,103436200,10-Dec-14,800.00,DELL CORPORATION LTD,SP0003352
WANDSWORTH COUNCIL,CS,ENVIRONMENT & COMMUNITY,COMMUNICATIONS & COMP,Revenue,I.T. DEVELOPMENTS,550653,103436200,18-Dec-14,"1,170.00",DELL CORPORATION LTD,SP0003352
WANDSWORTH COUNCIL,PH,ENVIRONMENT & COMMUNITY,HEALTH,Revenue,HIV RAPID TESTING PILOT,545732,105141710,10-Dec-14,"1,220.00",PASSANTE HEALTHCARE LTD,SP0006465
WANDSWORTH COUNCIL,PH,ENVIRONMENT & COMMUNITY,HEALTH,Revenue,THIRD PARTY PAYMENTS- TRAINING,557531,105340530,23-Dec-14,783.75,SMART HEALTH SOLUTIONS,SP0006629
WANDSWORTH COUNCIL,PH,ENVIRONMENT & COMMUNITY,HEALTH,Revenue,COMMUNITY OUTREACH HEALTH CHCK,542348,105341300,05-Dec-14,"15,000.00",SOLUTIONS 4 HEALTH LTD,SP0008222
WANDSWORTH COUNCIL,PH,ADMINISTRATION,HEALTH,Revenue,PRESCRIBING SERVICES,20297271,106340550,05-Dec-14,54.00,SALASJI LTD FG443 T/A DUMLERS PHARMACY,2015434
WANDSWORTH COUNCIL,PH,ADMINISTRATION,HEALTH,Revenue,PRESCRIBING SERVICES,20297271,106340550,05-Dec-14,667.42,SALASJI LTD FG443 T/A DUMLERS PHARMACY,2015434
WANDSWORTH COUNCIL,PH,ENVIRONMENT & COMMUNITY,HEALTH,Revenue,SCREENING IN COMMUNTIES,558111,107141990,23-Dec-14,"1,272.00",JP MORGAN N.A,SP0008944
WANDSWORTH COUNCIL,NGF HS,ADMINISTRATION,"REPAIRS, ALTERATIONS & MTCE",Revenue,"REPS, ALTS & MTCE-BUILDINGS",7014902,110010000,18-Dec-14,"1,550.00",Grace Shirley Akai,2991000
WANDSWORTH COUNCIL,NGF HS,ADMINISTRATION,PRINTING STAT & GEN OFFICE EXP,Revenue,PRINTING AND STATIONERY,20297889,110033420,17-Dec-14,593.53,RICOH UK LTD,2002588
WANDSWORTH COUNCIL,NGF CS,ADMINISTRATION,PRIVATE,Revenue,REFUSE COLLECTN & PEST CONTROL,20297727,111045500,15-Dec-14,"1,202.69",SITA UK LTD,2003271
WANDSWORTH COUNCIL,NGF CS,ADMINISTRATION,PRIVATE,Revenue,REFUSE COLLECTN & PEST CONTROL,20297729,111045500,15-Dec-14,497.21,SITA UK LTD,2003271
WANDSWORTH COUNCIL,NGF CS,ADMINISTRATION,PRIVATE,Revenue,REFUSE COLLECTN & PEST CONTROL,20297724,111545500,15-Dec-14,670.91,SITA UK LTD,2003271
WANDSWORTH COUNCIL,NGF CS,FINANCE,"REPAIRS, ALTERATIONS & MTCE",Revenue,"REPS, ALTS & MTCE-BUILDINGS",550762,11181000L08301,16-Dec-14,613.07,DH CROFTS LTD,SP0000076
WANDSWORTH COUNCIL,NGF CS,FINANCE,"REPAIRS, ALTERATIONS & MTCE",Revenue,"REPS, ALTS & MTCE-BUILDINGS",554051,11181000L08305,18-Dec-14,659.55,T BROWN GROUP LTD,SP0001050
WANDSWORTH COUNCIL,NGF CS,FINANCE,"REPAIRS, ALTERATIONS & MTCE",Revenue,"REPS, ALTS & MTCE-BUILDINGS",558782,11181000L0830A,24-Dec-14,"3,476.28",DH CROFTS LTD,SP0000076
WANDSWORTH COUNCIL,NGF CS,FINANCE,"REPAIRS, ALTERATIONS & MTCE",Revenue,"REPS, ALTS & MTCE-BUILDINGS",559551,11181000L0830C,29-Dec-14,"1,218.68",ACR LONDON LTD,SP0000193
WANDSWORTH COUNCIL,NGF CS,FINANCE,"REPAIRS, ALTERATIONS & MTCE",Revenue,"REPS, ALTS & MTCE-BUILDINGS",550676,11181000L08331,16-Dec-14,"4,814.71",DH CROFTS LTD,SP0000076
WANDSWORTH COUNCIL,NGF CS,FINANCE,"REPAIRS, ALTERATIONS & MTCE",Revenue,"REPS, ALTS & MTCE-BUILDINGS",559553,11181000L08331,29-Dec-14,661.28,ACR LONDON LTD,SP0000193
WANDSWORTH COUNCIL,NGF CS,FINANCE,"REPAIRS, ALTERATIONS & MTCE",Revenue,"REPS, ALTS & MTCE-BUILDINGS",559554,11181000L08331,29-Dec-14,727.60,ACR LONDON LTD,SP0000193
WANDSWORTH COUNCIL,NGF CS,FINANCE,"REPAIRS, ALTERATIONS & MTCE",Revenue,"REPS, ALTS & MTCE-BUILDINGS",559565,11181000L08331,29-Dec-14,"2,500.00",ACR LONDON LTD,SP0000193
WANDSWORTH COUNCIL,NGF CS,FINANCE,"REPAIRS, ALTERATIONS & MTCE",Revenue,"REPS, ALTS & MTCE-BUILDINGS",554055,11181000L08331,18-Dec-14,873.36,T BROWN GROUP LTD,SP0001050
WANDSWORTH COUNCIL,NGF CS,FINANCE,"REPAIRS, ALTERATIONS & MTCE",Revenue,"REPS, ALTS & MTCE-BUILDINGS",539555,11181000L08331,01-Dec-14,"6,790.22",CHLORIDE ELECTRONICS LTD,SP0001421
WANDSWORTH COUNCIL,NGF CS,FINANCE,"REPAIRS, ALTERATIONS & MTCE",Revenue,"REPS, ALTS & MTCE-BUILDINGS",559568,11181000L08335,29-Dec-14,"1,050.00",ACR LONDON LTD,SP0000193
WANDSWORTH COUNCIL,NGF CS,FINANCE,"REPAIRS, ALTERATIONS & MTCE",Revenue,"REPS, ALTS & MTCE-BUILDINGS",559577,11181000L0833A,29-Dec-14,"3,040.00",PHOENIX ECS LTD,SP0001284
WANDSWORTH COUNCIL,NGF CS,FINANCE,"REPAIRS, ALTERATIONS & MTCE",Revenue,"REPS, ALTS & MTCE-BUILDINGS",559550,11181000L0833B,29-Dec-14,"1,289.00",ACR LONDON LTD,SP0000193
WANDSWORTH COUNCIL,NGF CS,FINANCE,"REPAIRS, ALTERATIONS & MTCE",Revenue,"REPS, ALTS & MTCE-BUILDINGS",559557,11181000L0833C,29-Dec-14,939.00,ACR LONDON LTD,SP0000193
WANDSWORTH COUNCIL,NGF CS,FINANCE,"REPAIRS, ALTERATIONS & MTCE",Revenue,"REPS, ALTS & MTCE-BUILDINGS",559560,11181000L0833D,29-Dec-14,950.00,ACR LONDON LTD,SP0000193
WANDSWORTH COUNCIL,NGF CS,FINANCE,"REPAIRS, ALTERATIONS & MTCE",Revenue,"REPS, ALTS & MTCE-BUILDINGS",559569,11181000L0833E,29-Dec-14,727.00,ACR LONDON LTD,SP0000193
WANDSWORTH COUNCIL,NGF CS,FINANCE,"REPAIRS, ALTERATIONS & MTCE",Revenue,"REPS, ALTS & MTCE-BUILDINGS",559559,11181000L0833F,29-Dec-14,"1,344.00",ACR LONDON LTD,SP0000193
WANDSWORTH COUNCIL,NGF CS,FINANCE,"REPAIRS, ALTERATIONS & MTCE",Revenue,"REPS, ALTS & MTCE-BUILDINGS",559567,11181000L0833K,29-Dec-14,"2,850.00",ACR LONDON LTD,SP0000193
WANDSWORTH COUNCIL,NGF CS,FINANCE,"REPAIRS, ALTERATIONS & MTCE",Revenue,"REPS, ALTS & MTCE-BUILDINGS",559552,11181000L0833V,29-Dec-14,661.28,ACR LONDON LTD,SP0000193
WANDSWORTH COUNCIL,NGF CS,ADMINISTRATION,PRIVATE,Revenue,REFUSE COLLECTN & PEST CONTROL,20297723,112045500,15-Dec-14,169.58,SITA UK LTD,2003271
WANDSWORTH COUNCIL,NGF CS,ADMINISTRATION,PRIVATE,Revenue,REFUSE COLLECTN & PEST CONTROL,20297723,112145500,15-Dec-14,169.58,SITA UK LTD,2003271
WANDSWORTH COUNCIL,NGF CS,ADMINISTRATION,PRIVATE,Revenue,REFUSE COLLECTN & PEST CONTROL,20297723,112145500,15-Dec-14,0.01,SITA UK LTD,2003271
WANDSWORTH COUNCIL,NGF CS,ADMINISTRATION,PRIVATE,Revenue,REFUSE COLLECTN & PEST CONTROL,20297723,112245500,15-Dec-14,169.57,SITA UK LTD,2003271
WANDSWORTH COUNCIL,NGF CS,ADMINISTRATION,PRIVATE,Revenue,REFUSE COLLECTN & PEST CONTROL,20297723,112345500,15-Dec-14,169.57,SITA UK LTD,2003271
WANDSWORTH COUNCIL,NGF CS,ADMINISTRATION,PRIVATE,Revenue,REFUSE COLLECTN & PEST CONTROL,20297722,112945500,15-Dec-14,678.31,SITA UK LTD,2003271
WANDSWORTH COUNCIL,NGF CS,ADMINISTRATION,CLEANING & DOMESTIC SUPPLIES,Revenue,CLEANING CONTRACT,20297719,113813020,15-Dec-14,"45,384.91",OCEAN INTEGRATED SERVICES LTD,2009026
WANDSWORTH COUNCIL,NGF CS,ADMINISTRATION,CLEANING & DOMESTIC SUPPLIES,Revenue,WINDOW CLEANING,20297354,113813060,12-Dec-14,"1,580.00",PARKERS CLEANING CONTRACTORS LTD,2004677
WANDSWORTH COUNCIL,NGF CS,ADMINISTRATION,CLEANING & DOMESTIC SUPPLIES,Revenue,WINDOW CLEANING,20298580,113813060,31-Dec-14,"1,580.00",PARKERS CLEANING CONTRACTORS LTD,2004677
WANDSWORTH COUNCIL,NGF CDC,ADMINISTRATION,"REPAIRS, ALTERATIONS & MTCE",Revenue,REMOVALS & REORGANISATIONS,20297224,114210140,05-Dec-14,290.00,SUNA COMMUNICATION LTD,2003083
WANDSWORTH COUNCIL,NGF CDC,ENVIRONMENT & COMMUNITY,"REPAIRS, ALTERATIONS & MTCE",Revenue,REMOVALS & REORGANISATIONS,556846,114210140,22-Dec-14,"7,178.80",OFFICE DEPOT UK LTD,SP0000092
WANDSWORTH COUNCIL,NGF CDC,ADMINISTRATION,"REPAIRS, ALTERATIONS & MTCE",Revenue,REMOVALS & REORGANISATIONS,20298582,11421014K07247,31-Dec-14,915.00,JT ENTERPRISES,2002022
WANDSWORTH COUNCIL,NGF CDC,ADMINISTRATION,"REPAIRS, ALTERATIONS & MTCE",Revenue,REMOVALS & REORGANISATIONS,20297377,11421014K07287,12-Dec-14,710.00,JT ENTERPRISES,2002022
WANDSWORTH COUNCIL,NGF CDC,ADMINISTRATION,"REPAIRS, ALTERATIONS & MTCE",Revenue,REMOVALS & REORGANISATIONS,20297370,11421014K07287,12-Dec-14,"1,358.19",JT & SONS RELOCATIONS,2018113
WANDSWORTH COUNCIL,NGF CDC,ADMINISTRATION,"REPAIRS, ALTERATIONS & MTCE",Revenue,REMOVALS & REORGANISATIONS,20297371,11421014K07287,12-Dec-14,248.00,JT & SONS RELOCATIONS,2018113
WANDSWORTH COUNCIL,NGF CDC,ADMINISTRATION,"REPAIRS, ALTERATIONS & MTCE",Revenue,REMOVALS & REORGANISATIONS,20297371,11421014K07287,12-Dec-14,"2,480.00",JT & SONS RELOCATIONS,2018113
WANDSWORTH COUNCIL,NGF CDC,ADMINISTRATION,"REPAIRS, ALTERATIONS & MTCE",Revenue,REMOVALS & REORGANISATIONS,20297372,11421014K07287,12-Dec-14,"1,935.00",JT & SONS RELOCATIONS,2018113
WANDSWORTH COUNCIL,NGF CDC,ADMINISTRATION,"REPAIRS, ALTERATIONS & MTCE",Revenue,REMOVALS & REORGANISATIONS,20298450,11421014K07287,30-Dec-14,"3,953.53",JT & SONS RELOCATIONS,2018113
WANDSWORTH COUNCIL,NGF CDC,ADMINISTRATION,"REPAIRS, ALTERATIONS & MTCE",Revenue,REMOVALS & REORGANISATIONS,20297373,11421014K07317,12-Dec-14,"3,825.00",JT & SONS RELOCATIONS,2018113
WANDSWORTH COUNCIL,NGF CDC,ADMINISTRATION,"REPAIRS, ALTERATIONS & MTCE",Revenue,REMOVALS & REORGANISATIONS,20297373,11421014K07317,12-Dec-14,729.24,JT & SONS RELOCATIONS,2018113
WANDSWORTH COUNCIL,NGF CDC,ADMINISTRATION,"REPAIRS, ALTERATIONS & MTCE",Revenue,REMOVALS & REORGANISATIONS,20297376,11421014K07317,12-Dec-14,"2,610.00",JT & SONS RELOCATIONS,2018113
WANDSWORTH COUNCIL,NGF CDC,ADMINISTRATION,"REPAIRS, ALTERATIONS & MTCE",Revenue,REMOVALS & REORGANISATIONS,20297376,11421014K07317,12-Dec-14,261.00,JT & SONS RELOCATIONS,2018113
WANDSWORTH COUNCIL,NGF CDC,ADMINISTRATION,COMMUNICATIONS & COMP,Revenue,TELECOMMUNICATIONS SLA,20297224,11423652K07195,05-Dec-14,232.00,SUNA COMMUNICATION LTD,2003083
WANDSWORTH COUNCIL,NGF CDC,ADMINISTRATION,COMMUNICATIONS & COMP,Revenue,TELECOMMUNICATIONS SLA,20297224,11423652K07255,05-Dec-14,576.00,SUNA COMMUNICATION LTD,2003083
WANDSWORTH COUNCIL,NGF CDC,ADMINISTRATION,COMMUNICATIONS & COMP,Revenue,TELECOMMUNICATIONS SLA,20297224,11423652K07255,05-Dec-14,21.00,SUNA COMMUNICATION LTD,2003083
WANDSWORTH COUNCIL,NGF CDC,ADMINISTRATION,COMMUNICATIONS & COMP,Revenue,TELECOMMUNICATIONS SLA,20297224,11423652K07255,05-Dec-14,701.00,SUNA COMMUNICATION LTD,2003083
WANDSWORTH COUNCIL,NGF CDC,ADMINISTRATION,COMMUNICATIONS & COMP,Revenue,TELECOMMUNICATIONS SLA,20297224,11423652K07285,05-Dec-14,"2,312.00",SUNA COMMUNICATION LTD,2003083
WANDSWORTH COUNCIL,NGF CDC,ADMINISTRATION,COMMUNICATIONS & COMP,Revenue,TELECOMMUNICATIONS SLA,20297224,11423652K07285,05-Dec-14,60.00,SUNA COMMUNICATION LTD,2003083
WANDSWORTH COUNCIL,NGF CDC,ADMINISTRATION,COMMUNICATIONS & COMP,Revenue,TELECOMMUNICATIONS SLA,20297224,11423652K07315,05-Dec-14,"1,239.00",SUNA COMMUNICATION LTD,2003083
WANDSWORTH COUNCIL,NGF CDC,ADMINISTRATION,COMMUNICATIONS & COMP,Revenue,TELECOMMUNICATIONS SLA,20297224,11423652K07315,05-Dec-14,"3,731.00",SUNA COMMUNICATION LTD,2003083
WANDSWORTH COUNCIL,NGF CDC,ADMINISTRATION,COMMUNICATIONS & COMP,Revenue,TELECOMMUNICATIONS SLA,20297224,11423652K07315,05-Dec-14,126.00,SUNA COMMUNICATION LTD,2003083
WANDSWORTH COUNCIL,NGF CDC,FINANCE,PRIVATE,Revenue,GENERAL CONTRACT WORK,554025,11424537K07061,18-Dec-14,"3,414.40",DH CROFTS LTD,SP0000076
WANDSWORTH COUNCIL,NGF CDC,FINANCE,PRIVATE,Revenue,GENERAL CONTRACT WORK,558788,11424537K07061,24-Dec-14,"2,002.00",DH CROFTS LTD,SP0000076
WANDSWORTH COUNCIL,NGF CDC,FINANCE,PRIVATE,Revenue,GENERAL CONTRACT WORK,558789,11424537K07061,24-Dec-14,480.00,DH CROFTS LTD,SP0000076
WANDSWORTH COUNCIL,NGF CDC,FINANCE,PRIVATE,Revenue,GENERAL CONTRACT WORK,558790,11424537K07061,24-Dec-14,"3,619.00",DH CROFTS LTD,SP0000076
WANDSWORTH COUNCIL,NGF CDC,FINANCE,PRIVATE,Revenue,GENERAL CONTRACT WORK,547188,11424537K07171,10-Dec-14,441.52,DH CROFTS LTD,SP0000076
WANDSWORTH COUNCIL,NGF CDC,FINANCE,PRIVATE,Revenue,GENERAL CONTRACT WORK,550787,11424537K07171,16-Dec-14,"9,794.69",DH CROFTS LTD,SP0000076
WANDSWORTH COUNCIL,NGF CDC,FINANCE,PRIVATE,Revenue,GENERAL CONTRACT WORK,558777,11424537K07171,24-Dec-14,"7,847.40",DH CROFTS LTD,SP0000076
WANDSWORTH COUNCIL,NGF CDC,FINANCE,PRIVATE,Revenue,GENERAL CONTRACT WORK,558778,11424537K07171,24-Dec-14,"3,410.00",DH CROFTS LTD,SP0000076
WANDSWORTH COUNCIL,NGF CDC,FINANCE,PRIVATE,Revenue,GENERAL CONTRACT WORK,558781,11424537K07171,24-Dec-14,"6,226.00",DH CROFTS LTD,SP0000076
WANDSWORTH COUNCIL,NGF CDC,FINANCE,PRIVATE,Revenue,GENERAL CONTRACT WORK,539547,11424537K07241,01-Dec-14,"7,180.08",DH CROFTS LTD,SP0000076
WANDSWORTH COUNCIL,NGF CDC,FINANCE,PRIVATE,Revenue,GENERAL CONTRACT WORK,544138,11424537K07291,08-Dec-14,"3,115.23",DH CROFTS LTD,SP0000076
WANDSWORTH COUNCIL,NGF CDC,FINANCE,PRIVATE,Revenue,GENERAL CONTRACT WORK,547191,11424537K07291,10-Dec-14,"9,967.91",DH CROFTS LTD,SP0000076
WANDSWORTH COUNCIL,NGF CDC,FINANCE,PRIVATE,Revenue,GENERAL CONTRACT WORK,550768,11424537K07291,16-Dec-14,"7,609.80",DH CROFTS LTD,SP0000076
WANDSWORTH COUNCIL,NGF CDC,FINANCE,PRIVATE,Revenue,GENERAL CONTRACT WORK,550769,11424537K07291,16-Dec-14,"21,582.00",DH CROFTS LTD,SP0000076
WANDSWORTH COUNCIL,NGF CDC,FINANCE,PRIVATE,Revenue,GENERAL CONTRACT WORK,558775,11424537K07291,24-Dec-14,"4,889.89",DH CROFTS LTD,SP0000076
WANDSWORTH COUNCIL,NGF CDC,FINANCE,PRIVATE,Revenue,GENERAL CONTRACT WORK,558783,11424537K07291,24-Dec-14,"9,139.30",DH CROFTS LTD,SP0000076
WANDSWORTH COUNCIL,NGF CDC,FINANCE,PRIVATE,Revenue,GENERAL CONTRACT WORK,558784,11424537K07291,24-Dec-14,"9,514.84",DH CROFTS LTD,SP0000076
WANDSWORTH COUNCIL,NGF CDC,FINANCE,PRIVATE,Revenue,GENERAL CONTRACT WORK,558785,11424537K07291,24-Dec-14,"5,698.00",DH CROFTS LTD,SP0000076
WANDSWORTH COUNCIL,NGF CDC,FINANCE,PRIVATE,Revenue,GENERAL CONTRACT WORK,558786,11424537K07291,24-Dec-14,"7,211.16",DH CROFTS LTD,SP0000076
WANDSWORTH COUNCIL,NGF CDC,FINANCE,PRIVATE,Revenue,GENERAL CONTRACT WORK,558787,11424537K07291,24-Dec-14,"4,120.37",DH CROFTS LTD,SP0000076
WANDSWORTH COUNCIL,NGF CDC,FINANCE,PRIVATE,Revenue,GENERAL CONTRACT WORK,558793,11424537K07291,24-Dec-14,"2,781.39",DH CROFTS LTD,SP0000076
WANDSWORTH COUNCIL,NGF CDC,FINANCE,PRIVATE,Revenue,GENERAL CONTRACT WORK,539546,11424537K07301,01-Dec-14,"4,600.71",DH CROFTS LTD,SP0000076
WANDSWORTH COUNCIL,NGF CDC,FINANCE,PRIVATE,Revenue,GENERAL CONTRACT WORK,547190,11424537K07301,10-Dec-14,"3,736.89",DH CROFTS LTD,SP0000076
WANDSWORTH COUNCIL,NGF CDC,FINANCE,PRIVATE,Revenue,GENERAL CONTRACT WORK,547192,11424537K07301,10-Dec-14,"9,698.37",DH CROFTS LTD,SP0000076
WANDSWORTH COUNCIL,NGF CDC,FINANCE,PRIVATE,Revenue,GENERAL CONTRACT WORK,547193,11424537K07301,10-Dec-14,"13,365.00",DH CROFTS LTD,SP0000076
WANDSWORTH COUNCIL,NGF CDC,FINANCE,PRIVATE,Revenue,GENERAL CONTRACT WORK,547194,11424537K07301,10-Dec-14,"2,317.50",DH CROFTS LTD,SP0000076
WANDSWORTH COUNCIL,NGF CDC,FINANCE,PRIVATE,Revenue,GENERAL CONTRACT WORK,547195,11424537K07301,10-Dec-14,"4,567.66",DH CROFTS LTD,SP0000076
WANDSWORTH COUNCIL,NGF CDC,FINANCE,PRIVATE,Revenue,GENERAL CONTRACT WORK,558798,11424537K07301,24-Dec-14,"1,164.62",DH CROFTS LTD,SP0000076
WANDSWORTH COUNCIL,NGF CDC,FINANCE,PRIVATE,Revenue,GENERAL CONTRACT WORK,558801,11424537K07301,24-Dec-14,"2,127.56",DH CROFTS LTD,SP0000076
WANDSWORTH COUNCIL,NGF CDC,FINANCE,PRIVATE,Revenue,GENERAL CONTRACT WORK,558802,11424537K07301,24-Dec-14,"1,280.90",DH CROFTS LTD,SP0000076
WANDSWORTH COUNCIL,NGF CDC,FINANCE,PRIVATE,Revenue,GENERAL CONTRACT WORK,558827,11424537K07301,24-Dec-14,"6,444.22",DH CROFTS LTD,SP0000076
WANDSWORTH COUNCIL,NGF CDC,FINANCE,PRIVATE,Revenue,GENERAL CONTRACT WORK,547187,11424537K07311,10-Dec-14,"4,833.88",DH CROFTS LTD,SP0000076
WANDSWORTH COUNCIL,NGF CDC,FINANCE,PRIVATE,Revenue,GENERAL CONTRACT WORK,547189,11424537K07311,10-Dec-14,806.24,DH CROFTS LTD,SP0000076
WANDSWORTH COUNCIL,NGF CDC,FINANCE,PRIVATE,Revenue,GENERAL CONTRACT WORK,554024,11424537K07311,18-Dec-14,"5,698.00",DH CROFTS LTD,SP0000076
WANDSWORTH COUNCIL,NGF CDC,FINANCE,PRIVATE,Revenue,GENERAL CONTRACT WORK,558776,11424537K07311,24-Dec-14,"1,840.00",DH CROFTS LTD,SP0000076
WANDSWORTH COUNCIL,NGF CDC,FINANCE,PRIVATE,Revenue,GENERAL CONTRACT WORK,558792,11424537K07311,24-Dec-14,"9,988.14",DH CROFTS LTD,SP0000076
WANDSWORTH COUNCIL,NGF CDC,FINANCE,PRIVATE,Revenue,GENERAL CONTRACT WORK,558828,11424537K07311,24-Dec-14,"9,606.80",DH CROFTS LTD,SP0000076
WANDSWORTH COUNCIL,NGF CDC,FINANCE,PRIVATE,Revenue,GENERAL CONTRACT WORK,559572,11424537K07332,29-Dec-14,"1,935.94",CHROMA-VISION LTD,SP0000996
WANDSWORTH COUNCIL,NGF CS,ADMINISTRATION,RATES,Revenue,RATES,20298457,114310500,30-Dec-14,-0.01,GRAVENEY ACADEMY,2016710
WANDSWORTH COUNCIL,NGF CS,ADMINISTRATION,RATES,Revenue,RATES,20298457,114310500,30-Dec-14,"4,958.98",GRAVENEY ACADEMY,2016710
WANDSWORTH COUNCIL,NGF CS,ENVIRONMENT & COMMUNITY,INSURANCE,Revenue,INSURANCE PREMIUMS - FIRE,551423,114310900,17-Dec-14,"4,350.00",GRAVENEY TRUST,SP0008570
WANDSWORTH COUNCIL,NGF CS,FINANCE,WATER,Revenue,WATER CHARGES (METERED),20298565,114313810,30-Dec-14,953.48,THAMES WATER (A/C 00286125),2002360
WANDSWORTH COUNCIL,NGF CS,FINANCE,"REPAIRS, ALTERATIONS & MTCE",Revenue,"REPS, ALTS & MTCE-BUILDINGS",550714,114410000,16-Dec-14,942.00,AVON BARRIER CORPORATION LTD,SP0008915
WANDSWORTH COUNCIL,NGF CS,ENVIRONMENT & COMMUNITY,COMMUNICATIONS & COMP,Revenue,I.T. EQUIPMENT & MAINTENANCE,542229,120136210,05-Dec-14,153.75,DANWOOD GROUP LTD,SP0002739
WANDSWORTH COUNCIL,NGF CS,ENVIRONMENT & COMMUNITY,COMMUNICATIONS & COMP,Revenue,I.T. EQUIPMENT & MAINTENANCE,542229,120136210,05-Dec-14,153.75,DANWOOD GROUP LTD,SP0002739
WANDSWORTH COUNCIL,NGF CS,ENVIRONMENT & COMMUNITY,COMMUNICATIONS & COMP,Revenue,I.T. EQUIPMENT & MAINTENANCE,542229,120136210,05-Dec-14,153.75,DANWOOD GROUP LTD,SP0002739
WANDSWORTH COUNCIL,NGF CS,ENVIRONMENT & COMMUNITY,GRANTS & SUBSCRIPTIONS,Revenue,SUBSCRIPTIONS,551556,120537640,18-Dec-14,616.00,ROYAL INSTITUTE OF CHARTERED SURVEYORS,SP0003072
WANDSWORTH COUNCIL,NGF CS,ENVIRONMENT & COMMUNITY,GRANTS & SUBSCRIPTIONS,Revenue,SUBSCRIPTIONS,551558,120537640,18-Dec-14,506.00,ROYAL INSTITUTE OF CHARTERED SURVEYORS,SP0003072
WANDSWORTH COUNCIL,NGF CS,ENVIRONMENT & COMMUNITY,GRANTS & SUBSCRIPTIONS,Revenue,SUBSCRIPTIONS,552664,120537640,18-Dec-14,506.00,ROYAL INSTITUTE OF CHARTERED SURVEYORS,SP0003072
WANDSWORTH COUNCIL,NGF CS,ADMINISTRATION,OTHER AGENCIES,Revenue,DISBURSEMENTS,20298552,120643250,29-Dec-14,40.00,SHARPE PRITCHARD LLP,2011391
WANDSWORTH COUNCIL,NGF CS,ADMINISTRATION,OTHER AGENCIES,Revenue,DISBURSEMENTS,20298552,120643250,29-Dec-14,-40.00,SHARPE PRITCHARD LLP,2011391
WANDSWORTH COUNCIL,NGF CS,ADMINISTRATION,OTHER AGENCIES,Revenue,DISBURSEMENTS,20298556,120643250,29-Dec-14,280.00,SHARPE PRITCHARD LLP,2011391
WANDSWORTH COUNCIL,NGF CS,ADMINISTRATION,OTHER AGENCIES,Revenue,DISBURSEMENTS,20298556,120643250,29-Dec-14,-280.00,SHARPE PRITCHARD LLP,2011391
WANDSWORTH COUNCIL,NGF CS,ENVIRONMENT & COMMUNITY,OTHER AGENCIES,Revenue,DISBURSEMENTS,554490,120643250,24-Dec-14,"4,833.12",SHARPE PRITCHARD LLP,SP0003677
WANDSWORTH COUNCIL,NGF CS,ENVIRONMENT & COMMUNITY,OTHER AGENCIES,Revenue,DISBURSEMENTS,554490,120643250,24-Dec-14,64.00,SHARPE PRITCHARD LLP,SP0003677
WANDSWORTH COUNCIL,NGF CS,ENVIRONMENT & COMMUNITY,OTHER AGENCIES,Revenue,DISBURSEMENTS,542240,120643250,04-Dec-14,500.00,4 BRICK COURT MANAGEMENT LIMITED,SP0007380
WANDSWORTH COUNCIL,NGF CS,ENVIRONMENT & COMMUNITY,OTHER AGENCIES,Revenue,DISBURSEMENTS,542241,120643250,04-Dec-14,600.00,4 BRICK COURT MANAGEMENT LIMITED,SP0007380
WANDSWORTH COUNCIL,NGF CS,ENVIRONMENT & COMMUNITY,OTHER AGENCIES,Revenue,DISBURSEMENTS,542242,120643250,04-Dec-14,500.00,4 BRICK COURT MANAGEMENT LIMITED,SP0007380
WANDSWORTH COUNCIL,NGF CS,ENVIRONMENT & COMMUNITY,OTHER AGENCIES,Revenue,DISBURSEMENTS,542243,120643250,04-Dec-14,555.00,4 BRICK COURT MANAGEMENT LIMITED,SP0007380
WANDSWORTH COUNCIL,NGF CS,ENVIRONMENT & COMMUNITY,OTHER AGENCIES,Revenue,DISBURSEMENTS,542244,120643250,04-Dec-14,600.00,4 BRICK COURT MANAGEMENT LIMITED,SP0007380
WANDSWORTH COUNCIL,NGF CS,ENVIRONMENT & COMMUNITY,OTHER AGENCIES,Revenue,DISBURSEMENTS,542245,120643250,04-Dec-14,"9,200.00",4 BRICK COURT MANAGEMENT LIMITED,SP0007380
WANDSWORTH COUNCIL,NGF CS,ENVIRONMENT & COMMUNITY,OTHER AGENCIES,Revenue,DISBURSEMENTS,550504,120643250,17-Dec-14,650.00,4 BRICK COURT MANAGEMENT LIMITED,SP0007380
WANDSWORTH COUNCIL,NGF CS,ENVIRONMENT & COMMUNITY,OTHER AGENCIES,Revenue,DISBURSEMENTS,550505,120643250,17-Dec-14,500.00,4 BRICK COURT MANAGEMENT LIMITED,SP0007380
WANDSWORTH COUNCIL,NGF CS,ADMINISTRATION,PRIVATE,Revenue,"CONTRACT 6- HWYS, PLAN ETC",20298550,120646170,29-Dec-14,"3,112.02",SHARPE PRITCHARD LLP,2011391
WANDSWORTH COUNCIL,NGF CS,ADMINISTRATION,PRIVATE,Revenue,"CONTRACT 6- HWYS, PLAN ETC",20298550,120646170,29-Dec-14,"-3,112.02",SHARPE PRITCHARD LLP,2011391
WANDSWORTH COUNCIL,NGF CS,ADMINISTRATION,PRIVATE,Revenue,"CONTRACT 6- HWYS, PLAN ETC",20298552,120646170,29-Dec-14,"-2,554.62",SHARPE PRITCHARD LLP,2011391
WANDSWORTH COUNCIL,NGF CS,ADMINISTRATION,PRIVATE,Revenue,"CONTRACT 6- HWYS, PLAN ETC",20298552,120646170,29-Dec-14,"2,554.62",SHARPE PRITCHARD LLP,2011391
WANDSWORTH COUNCIL,NGF CS,ADMINISTRATION,PRIVATE,Revenue,"CONTRACT 6- HWYS, PLAN ETC",20298556,120646170,29-Dec-14,"-2,972.57",SHARPE PRITCHARD LLP,2011391
WANDSWORTH COUNCIL,NGF CS,ADMINISTRATION,PRIVATE,Revenue,"CONTRACT 6- HWYS, PLAN ETC",20298556,120646170,29-Dec-14,"2,972.57",SHARPE PRITCHARD LLP,2011391
WANDSWORTH COUNCIL,NGF CS,ENVIRONMENT & COMMUNITY,PRIVATE,Revenue,"CONTRACT 6- HWYS, PLAN ETC",546451,120646170,11-Dec-14,"29,628.53",SHARPE PRITCHARD LLP,SP0003677
WANDSWORTH COUNCIL,NGF CS,ADMINISTRATION,PRINTING STAT & GEN OFFICE EXP,Revenue,OUTWORK - LITHO,20297171,121333590,04-Dec-14,464.46,FINANCIAL DATA MANAGEMENT LTD,2003241
WANDSWORTH COUNCIL,NGF CS,ENVIRONMENT & COMMUNITY,"EQUIPMENT, FURNITURE & MATS",Revenue,OP COSTS - QUICKPRINT MACHINE,543241,121430230,05-Dec-14,"1,107.85",RICOH UK LTD,SP0002316
WANDSWORTH COUNCIL,NGF CS,ENVIRONMENT & COMMUNITY,"EQUIPMENT, FURNITURE & MATS",Revenue,OP COSTS - QUICKPRINT MACHINE,543244,121430230,05-Dec-14,592.13,RICOH UK LTD,SP0002316
WANDSWORTH COUNCIL,NGF CS,ENVIRONMENT & COMMUNITY,"EQUIPMENT, FURNITURE & MATS",Revenue,OP COSTS -COLOUR COPIER RENTAL,550484,121430240,17-Dec-14,"7,152.69",KONICA MINOLTA BUSINESS SOLUTIONS(UK)LIM,SP0008220
WANDSWORTH COUNCIL,NGF CS,ENVIRONMENT & COMMUNITY,"EQUIPMENT, FURNITURE & MATS",Revenue,OP COSTS -COLOUR COPIER RENTAL,550485,121430240,17-Dec-14,"1,857.95",KONICA MINOLTA BUSINESS SOLUTIONS(UK)LIM,SP0008220
WANDSWORTH COUNCIL,NGF CS,ENVIRONMENT & COMMUNITY,"EQUIPMENT, FURNITURE & MATS",Revenue,OP COSTS -COLOUR COPIER RENTAL,550486,121430240,17-Dec-14,"2,510.92",KONICA MINOLTA BUSINESS SOLUTIONS(UK)LIM,SP0008220
WANDSWORTH COUNCIL,NGF CS,ADMINISTRATION,COMMUNICATIONS & COMP,Revenue,COMMUNICATIONS - POSTAGE,20297565,122136000,12-Dec-14,"1,456.63",ROYAL MAIL,2009044
WANDSWORTH COUNCIL,NGF CS,ADMINISTRATION,COMMUNICATIONS & COMP,Revenue,COMMUNICATIONS - POSTAGE,20298454,122136000,30-Dec-14,"1,308.03",ROYAL MAIL,2009044
WANDSWORTH COUNCIL,NGF CS,ADMINISTRATION,COMMUNICATIONS & COMP,Revenue,COMMUNICATIONS - POSTAGE,20297740,122136000,15-Dec-14,"1,552.14",WHISTL LONDON LIMITED,2011033
WANDSWORTH COUNCIL,NGF CS,ADMINISTRATION,COMMUNICATIONS & COMP,Revenue,COMMUNICATIONS - POSTAGE,20298455,122136000,30-Dec-14,"3,797.82",WHISTL LONDON LIMITED,2011033
WANDSWORTH COUNCIL,NGF CS,ADMINISTRATION,COMMUNICATIONS & COMP,Revenue,COMMUNICATIONS - POSTAGE,20298587,122136000,31-Dec-14,"1,226.33",WHISTL LONDON LIMITED,2011033
WANDSWORTH COUNCIL,NGF CS,ADMINISTRATION,COMMUNICATIONS & COMP,Revenue,COMMUNICATIONS - POSTAGE,20298588,122136000,31-Dec-14,"1,655.80",WHISTL LONDON LIMITED,2011033
WANDSWORTH COUNCIL,NGF CS,ADMINISTRATION,COMMUNICATIONS & COMP,Revenue,COMMUNICATIONS - POSTAGE,20298598,122136000,31-Dec-14,"1,497.89",WHISTL LONDON LIMITED,2011033
WANDSWORTH COUNCIL,NGF CS,CHILDREN'S,MISC,Revenue,MISCELLANEOUS EXPENSES,20297047,123038500,03-Dec-14,200.00,REDACTED PERSONAL DATA,2999999
WANDSWORTH COUNCIL,NGF CS,ADMINISTRATION,INDIRECT,Revenue,CHILDCARE VOUCHERS,20297308,123200650,05-Dec-14,673.29,COMPUTERSHARE VOUCHER SERVICES,2007281
WANDSWORTH COUNCIL,NGF CS,ADMINISTRATION,INDIRECT,Revenue,CHILDCARE VOUCHERS,20297309,123200650,05-Dec-14,105.66,COMPUTERSHARE VOUCHER SERVICES,2007281
WANDSWORTH COUNCIL,NGF CS,ADMINISTRATION,INDIRECT,Revenue,CHILDCARE VOUCHERS,20298245,123200650,19-Dec-14,121.41,COMPUTERSHARE VOUCHER SERVICES,2007281
WANDSWORTH COUNCIL,NGF CS,ADMINISTRATION,INDIRECT,Revenue,CHILDCARE VOUCHERS,20298246,123200650,19-Dec-14,21.87,COMPUTERSHARE VOUCHER SERVICES,2007281
WANDSWORTH COUNCIL,NGF CS,ADMINISTRATION,INDIRECT,Revenue,CHILDCARE VOUCHERS,20298247,123200650,19-Dec-14,"1,120.59",COMPUTERSHARE VOUCHER SERVICES,2007281
WANDSWORTH COUNCIL,NGF CS,ADMINISTRATION,PRINTING STAT & GEN OFFICE EXP,Revenue,PHOTOCOPYING,20297264,123233380,05-Dec-14,863.62,RICOH UK LTD,2002588
WANDSWORTH COUNCIL,NGF CS,ENVIRONMENT & COMMUNITY,PRINTING STAT & GEN OFFICE EXP,Revenue,PHOTOCOPYING,542221,123233380,05-Dec-14,289.80,DANWOOD GROUP LTD,SP0002739
WANDSWORTH COUNCIL,NGF CS,ENVIRONMENT & COMMUNITY,PRINTING STAT & GEN OFFICE EXP,Revenue,PHOTOCOPYING,542221,123233380,05-Dec-14,307.50,DANWOOD GROUP LTD,SP0002739
WANDSWORTH COUNCIL,NGF CS,ENVIRONMENT & COMMUNITY,PRINTING STAT & GEN OFFICE EXP,Revenue,PHOTOCOPYING,542221,123233380,05-Dec-14,307.50,DANWOOD GROUP LTD,SP0002739
WANDSWORTH COUNCIL,NGF CS,ENVIRONMENT & COMMUNITY,PRINTING STAT & GEN OFFICE EXP,Revenue,PHOTOCOPYING,542228,123233380,05-Dec-14,145.24,DANWOOD GROUP LTD,SP0002739
WANDSWORTH COUNCIL,NGF CS,ENVIRONMENT & COMMUNITY,PRINTING STAT & GEN OFFICE EXP,Revenue,PHOTOCOPYING,542228,123233380,05-Dec-14,109.05,DANWOOD GROUP LTD,SP0002739
WANDSWORTH COUNCIL,NGF CS,ENVIRONMENT & COMMUNITY,PRINTING STAT & GEN OFFICE EXP,Revenue,PHOTOCOPYING,542228,123233380,05-Dec-14,145.24,DANWOOD GROUP LTD,SP0002739
WANDSWORTH COUNCIL,NGF CS,ENVIRONMENT & COMMUNITY,PRINTING STAT & GEN OFFICE EXP,Revenue,PHOTOCOPYING,542228,123233380,05-Dec-14,145.24,DANWOOD GROUP LTD,SP0002739
WANDSWORTH COUNCIL,NGF CS,ENVIRONMENT & COMMUNITY,COMMUNICATIONS & COMP,Revenue,I.T. EQUIPMENT & MAINTENANCE,550651,123236210,18-Dec-14,"1,857.00",DELL CORPORATION LTD,SP0003352
WANDSWORTH COUNCIL,NGF CS,ADMINISTRATION,MISC,Revenue,MISCELLANEOUS EXPENSES,20297570,123238500,12-Dec-14,25.06,THE KEEN GROUP LTD,2002696
WANDSWORTH COUNCIL,NGF CDC,ADMINISTRATION,HIRE,Revenue,HIRE - TRANSPORT,20297570,124020410,12-Dec-14,359.19,THE KEEN GROUP LTD,2002696
WANDSWORTH COUNCIL,NGF CDC,ENVIRONMENT & COMMUNITY,CATERING,Revenue,CATERING,542334,124031000,05-Dec-14,"5,932.05",RICHMOND CATERERS,SP0007276
WANDSWORTH COUNCIL,NGF CS,FINANCE,DIRECT2,Revenue,AGENCY STAFF,20297207,126000510,04-Dec-14,"1,758.75",MATRIX SCM LIMITED,2014926
WANDSWORTH COUNCIL,NGF CS,FINANCE,DIRECT2,Revenue,AGENCY STAFF,20297207,126000510,04-Dec-14,662.64,MATRIX SCM LIMITED,2014926
WANDSWORTH COUNCIL,NGF CS,FINANCE,DIRECT2,Revenue,AGENCY STAFF,20297207,126000510,04-Dec-14,"2,238.28",MATRIX SCM LIMITED,2014926
WANDSWORTH COUNCIL,NGF CS,FINANCE,DIRECT2,Revenue,AGENCY STAFF,20297207,126000510,04-Dec-14,"2,568.93",MATRIX SCM LIMITED,2014926
WANDSWORTH COUNCIL,NGF CS,FINANCE,DIRECT2,Revenue,AGENCY STAFF,20297207,126000510,04-Dec-14,556.06,MATRIX SCM LIMITED,2014926
WANDSWORTH COUNCIL,NGF CS,FINANCE,DIRECT2,Revenue,AGENCY STAFF,20297664,126000510,15-Dec-14,"2,833.38",MATRIX SCM LIMITED,2014926
WANDSWORTH COUNCIL,NGF CS,FINANCE,DIRECT2,Revenue,AGENCY STAFF,20297664,126000510,15-Dec-14,"2,016.70",MATRIX SCM LIMITED,2014926
WANDSWORTH COUNCIL,NGF CS,FINANCE,DIRECT2,Revenue,AGENCY STAFF,20297664,126000510,15-Dec-14,713.00,MATRIX SCM LIMITED,2014926
WANDSWORTH COUNCIL,NGF CS,FINANCE,DIRECT2,Revenue,AGENCY STAFF,20297664,126000510,15-Dec-14,"3,100.68",MATRIX SCM LIMITED,2014926
WANDSWORTH COUNCIL,NGF CS,FINANCE,DIRECT2,Revenue,AGENCY STAFF,20297664,126000510,15-Dec-14,"3,180.87",MATRIX SCM LIMITED,2014926
WANDSWORTH COUNCIL,NGF CS,FINANCE,DIRECT2,Revenue,AGENCY STAFF,20298063,126000510,19-Dec-14,"2,238.28",MATRIX SCM LIMITED,2014926
WANDSWORTH COUNCIL,NGF CS,FINANCE,DIRECT2,Revenue,AGENCY STAFF,20298063,126000510,19-Dec-14,"2,123.82",MATRIX SCM LIMITED,2014926
WANDSWORTH COUNCIL,NGF CS,FINANCE,DIRECT2,Revenue,AGENCY STAFF,20298063,126000510,19-Dec-14,682.00,MATRIX SCM LIMITED,2014926
WANDSWORTH COUNCIL,NGF CS,FINANCE,DIRECT2,Revenue,AGENCY STAFF,20298063,126000510,19-Dec-14,"3,394.71",MATRIX SCM LIMITED,2014926
WANDSWORTH COUNCIL,NGF CS,FINANCE,DIRECT2,Revenue,AGENCY STAFF,20298492,126000510,30-Dec-14,"1,735.30",MATRIX SCM LIMITED,2014926
WANDSWORTH COUNCIL,NGF CS,FINANCE,DIRECT2,Revenue,AGENCY STAFF,20298637,126000510,31-Dec-14,829.25,MATRIX SCM LIMITED,2014926
WANDSWORTH COUNCIL,NGF CS,ADMINISTRATION,COMMUNICATIONS & COMP,Revenue,COMMUNICATIONS - TELEPHONES,20297224,126036020,05-Dec-14,21.00,SUNA COMMUNICATION LTD,2003083
WANDSWORTH COUNCIL,NGF CS,ENVIRONMENT & COMMUNITY,COMMUNICATIONS & COMP,Revenue,I.T. EQUIPMENT & MAINTENANCE,546387,126036210,12-Dec-14,800.00,DELL CORPORATION LTD,SP0003352
WANDSWORTH COUNCIL,NGF CS,ENVIRONMENT & COMMUNITY,COMMUNICATIONS & COMP,Revenue,I.T. EQUIPMENT & MAINTENANCE,546492,126036210,12-Dec-14,"1,200.00",CONTENDER SYSTEMS LTD,SP0005889
WANDSWORTH COUNCIL,NGF CS,ADMINISTRATION,MISC,Revenue,MISCELLANEOUS EXPENSES,20297570,126038500,12-Dec-14,21.41,THE KEEN GROUP LTD,2002696
WANDSWORTH COUNCIL,NGF CS,ADMINISTRATION,COMMUNICATIONS & COMP,Revenue,CALLS USAGE,20298028,126236050,19-Dec-14,"1,926.98",CABLE & WIRELESS COMMUNICATIONS,2009023
WANDSWORTH COUNCIL,NGF CS,ADMINISTRATION,COMMUNICATIONS & COMP,Revenue,CALLS USAGE,20297220,126236050,05-Dec-14,"1,869.45",VIRGIN MEDIA BUSINESS,2011718
WANDSWORTH COUNCIL,NGF CS,FINANCE,DIRECT2,Revenue,AGENCY STAFF,20297207,126300510,04-Dec-14,675.68,MATRIX SCM LIMITED,2014926
WANDSWORTH COUNCIL,NGF CS,FINANCE,DIRECT2,Revenue,AGENCY STAFF,20298063,126300510,19-Dec-14,692.16,MATRIX SCM LIMITED,2014926
WANDSWORTH COUNCIL,NGF CS,FINANCE,DIRECT2,Revenue,AGENCY STAFF,20298063,126300510,19-Dec-14,708.64,MATRIX SCM LIMITED,2014926
WANDSWORTH COUNCIL,NGF CS,FINANCE,DIRECT2,Revenue,AGENCY STAFF,20298637,126300510,31-Dec-14,688.04,MATRIX SCM LIMITED,2014926
WANDSWORTH COUNCIL,NGF CS,ADMINISTRATION,"EQUIPMENT, FURNITURE & MATS",Revenue,"EQUIPMENT, FURNITURE & MATS",20297224,126330000,05-Dec-14,546.00,SUNA COMMUNICATION LTD,2003083
WANDSWORTH COUNCIL,NGF CS,ADMINISTRATION,"EQUIPMENT, FURNITURE & MATS",Revenue,"EQUIPMENT, FURNITURE & MATS",20297539,126330000,11-Dec-14,880.00,INCOM TELECOMMUNICATIONS,2003864
WANDSWORTH COUNCIL,NGF CS,ADMINISTRATION,"EQUIPMENT, FURNITURE & MATS",Revenue,"EQUIPMENT, FURNITURE & MATS",20298028,126330000,19-Dec-14,385.50,CABLE & WIRELESS COMMUNICATIONS,2009023
WANDSWORTH COUNCIL,NGF CS,ADMINISTRATION,"EQUIPMENT, FURNITURE & MATS",Revenue,"EQUIPMENT, FURNITURE & MATS",20297544,126330000,11-Dec-14,"60,114.46",VODAFONE CORPORATE,2009219
WANDSWORTH COUNCIL,NGF CS,ADMINISTRATION,"EQUIPMENT, FURNITURE & MATS",Revenue,"EQUIPMENT, FURNITURE & MATS",20297220,126330000,05-Dec-14,"1,714.00",VIRGIN MEDIA BUSINESS,2011718
WANDSWORTH COUNCIL,NGF CS,ENVIRONMENT & COMMUNITY,"EQUIPMENT, FURNITURE & MATS",Revenue,"EQUIPMENT, FURNITURE & MATS",546567,126530000,12-Dec-14,"2,906.42",HARDWARE.COM,SP0006707
WANDSWORTH COUNCIL,NGF CS,ENVIRONMENT & COMMUNITY,"EQUIPMENT, FURNITURE & MATS",Revenue,"EQUIPMENT, FURNITURE & MATS",546601,126530000,10-Dec-14,"22,599.00",BLUESOURCE INFORMATION LTD,SP0007862
WANDSWORTH COUNCIL,NGF CS,ENVIRONMENT & COMMUNITY,"EQUIPMENT, FURNITURE & MATS",Revenue,"EQUIPMENT, FURNITURE & MATS",546601,126530000,10-Dec-14,"15,066.00",BLUESOURCE INFORMATION LTD,SP0007862
WANDSWORTH COUNCIL,NGF CS,ENVIRONMENT & COMMUNITY,COMMUNICATIONS & COMP,Revenue,I.T. SOFTWARE,550508,126736240,17-Dec-14,"89,610.00",CIVICA UK LTD,SP0000394
WANDSWORTH COUNCIL,NGF CS,ENVIRONMENT & COMMUNITY,COMMUNICATIONS & COMP,Revenue,I.T. SLA RECHARGE,550668,126836230,17-Dec-14,"2,980.48",EXPERIAN,SP0002935
WANDSWORTH COUNCIL,NGF CS,ENVIRONMENT & COMMUNITY,COMMUNICATIONS & COMP,Revenue,I.T. - SYSTEMS DEVELOPMENT,548791,126836270,11-Dec-14,710.00,CIVICA UK LTD,SP0000394
WANDSWORTH COUNCIL,NGF CS,ENVIRONMENT & COMMUNITY,SERVICES,Revenue,PROJECT WORK,549002,127034800,12-Dec-14,"5,263.00",STORM FAMILY CENTRE LTD,SP0002613
WANDSWORTH COUNCIL,NGF CS,ADMINISTRATION,COMMUNICATIONS & COMP,Revenue,COMMUNICATIONS - TELEPHONES,20297224,127236020,05-Dec-14,21.00,SUNA COMMUNICATION LTD,2003083
WANDSWORTH COUNCIL,CS,ENVIRONMENT & COMMUNITY,INDIRECT,Revenue,STAFF ADVERTISING - VACANCIES,545740,128000960,10-Dec-14,823.00,PENNA PLC,SP0006290
WANDSWORTH COUNCIL,CS,ENVIRONMENT & COMMUNITY,INDIRECT,Revenue,STAFF ADVERTISING - VACANCIES,548068,128000960,16-Dec-14,"4,272.80",PENNA PLC,SP0006290
WANDSWORTH COUNCIL,CS,ENVIRONMENT & COMMUNITY,INDIRECT,Revenue,STAFF ADVERTISING - VACANCIES,550534,128000960,19-Dec-14,"6,195.00",PENNA PLC,SP0006290
WANDSWORTH COUNCIL,CS,ENVIRONMENT & COMMUNITY,INDIRECT,Revenue,STAFF ADVERTISING - VACANCIES,550552,128000960,19-Dec-14,"1,539.20",PENNA PLC,SP0006290
WANDSWORTH COUNCIL,CS,ENVIRONMENT & COMMUNITY,INDIRECT,Revenue,STAFF ADVERTISING - VACANCIES,550553,128000960,19-Dec-14,"1,599.00",PENNA PLC,SP0006290
WANDSWORTH COUNCIL,CS,ENVIRONMENT & COMMUNITY,INDIRECT,Revenue,STAFF ADVERTISING - VACANCIES,550554,128000960,19-Dec-14,"1,599.00",PENNA PLC,SP0006290
WANDSWORTH COUNCIL,CS,ENVIRONMENT & COMMUNITY,INDIRECT,Revenue,STAFF ADVERTISING - VACANCIES,550555,128000960,19-Dec-14,"1,599.00",PENNA PLC,SP0006290
WANDSWORTH COUNCIL,CS,ENVIRONMENT & COMMUNITY,INDIRECT,Revenue,STAFF ADVERTISING - VACANCIES,550556,128000960,19-Dec-14,"1,599.00",PENNA PLC,SP0006290
WANDSWORTH COUNCIL,CS,ENVIRONMENT & COMMUNITY,HEALTH,Revenue,THIRD PARTY PYMT - HEALTH,556831,128041130,23-Dec-14,"3,031.33",CARE UK CLINICAL SERVICES LTD,SP0005790
WANDSWORTH COUNCIL,CS,ENVIRONMENT & COMMUNITY,HEALTH,Revenue,THIRD PARTY PYMT - HEALTH,547243,128041130,12-Dec-14,"2,696.14",THE GREYSWOOD PRACTICE,SP0006936
WANDSWORTH COUNCIL,CS,ENVIRONMENT & COMMUNITY,HEALTH,Revenue,THIRD PARTY PYMT - HEALTH,552301,128041130,18-Dec-14,625.00,BOOTS THE CHEMISTS LTD,SP0006952
WANDSWORTH COUNCIL,CS,ENVIRONMENT & COMMUNITY,HEALTH,Revenue,THIRD PARTY PYMT - HEALTH,542374,128041130,05-Dec-14,644.00,JAYACHOICE  LTD,SP0007824
WANDSWORTH COUNCIL,CS,ENVIRONMENT & COMMUNITY,HEALTH,Revenue,THIRD PARTY PYMT - HEALTH,552302,128041130,18-Dec-14,"2,186.00",BOOTS UK LTD FD303,SP0008385
WANDSWORTH COUNCIL,CS,ENVIRONMENT & COMMUNITY,HEALTH,Revenue,THIRD PARTY PYMT - HEALTH,552359,128041130,18-Dec-14,"2,210.00",BOOTS UK LTD FD303,SP0008385
WANDSWORTH COUNCIL,CS,ENVIRONMENT & COMMUNITY,HEALTH,Revenue,THIRD PARTY PYMT - HEALTH,552652,128041130,18-Dec-14,"3,388.00",BOOTS UK LTD FR560,SP0008387
WANDSWORTH COUNCIL,CS,ENVIRONMENT & COMMUNITY,HEALTH,Revenue,THIRD PARTY PYMT - HEALTH,552654,128041130,18-Dec-14,"5,320.00",BOOTS UK LTD FR560,SP0008387
WANDSWORTH COUNCIL,CS,ENVIRONMENT & COMMUNITY,HEALTH,Revenue,THIRD PARTY PYMT - HEALTH,552655,128041130,18-Dec-14,"3,382.50",BOOTS UK LTD FKP46 T/A BOOTS THE CHEMIST,SP0008388
WANDSWORTH COUNCIL,CS,ENVIRONMENT & COMMUNITY,HEALTH,Revenue,THIRD PARTY PYMT - HEALTH,552656,128041130,18-Dec-14,"2,614.50",BOOTS UK LTD FKP46 T/A BOOTS THE CHEMIST,SP0008388
WANDSWORTH COUNCIL,CS,ENVIRONMENT & COMMUNITY,HEALTH,Revenue,THIRD PARTY PYMT - HEALTH,552300,128041130,18-Dec-14,"2,495.00",BOOTS UK LTD FC061 T/A BOOTS THE CHEMIST,SP0008389
WANDSWORTH COUNCIL,CS,ENVIRONMENT & COMMUNITY,HEALTH,Revenue,THIRD PARTY PYMT - HEALTH,551784,128041130,18-Dec-14,"6,983.00",BOOTS UK LTD FYN24 T/A BOOTS THE CHEMIST,SP0008391
WANDSWORTH COUNCIL,CS,ENVIRONMENT & COMMUNITY,HEALTH,Revenue,THIRD PARTY PYMT - HEALTH,552650,128041130,18-Dec-14,"4,646.00",BOOTS UK LTD FVK09 T/A BOOTS THE CHEMIST,SP0008393
WANDSWORTH COUNCIL,CS,ENVIRONMENT & COMMUNITY,HEALTH,Revenue,THIRD PARTY PYMT - HEALTH,552651,128041130,18-Dec-14,"6,374.00",BOOTS UK LTD FVK09 T/A BOOTS THE CHEMIST,SP0008393
WANDSWORTH COUNCIL,CS,ENVIRONMENT & COMMUNITY,HEALTH,Revenue,THIRD PARTY PYMT - HEALTH,551785,128041130,18-Dec-14,"1,461.50",BOOTS UK LTD FDN74 T/A BOOTS THE CHEMIST,SP0008394
WANDSWORTH COUNCIL,CS,ENVIRONMENT & COMMUNITY,HEALTH,Revenue,THIRD PARTY PYMT - HEALTH,551786,128041130,18-Dec-14,741.50,BOOTS UK LTD FDN74 T/A BOOTS THE CHEMIST,SP0008394
WANDSWORTH COUNCIL,ASC,SOCIAL SERVICES,HIRE,Revenue,HIRE - TRANSPORT,560695,130020410,30-Dec-14,"1,566.00",BECKETT CORPORATION LTD T/A TINAS CARS,SP0000729
WANDSWORTH COUNCIL,ASC,SOCIAL SERVICES,HIRE,Revenue,HIRE - TRANSPORT,541534,130020410,03-Dec-14,528.00,A STAR TRANSPORT LTD,SP0000866
WANDSWORTH COUNCIL,ASC,SOCIAL SERVICES,PRIVATE,Revenue,EXTERNAL HOMECARE,544932,130045300,08-Dec-14,"1,576.04",PAUL EYLES,SP0008168
WANDSWORTH COUNCIL,ASC,SOCIAL SERVICES,HIRE,Revenue,HIRE - TRANSPORT,543552,130220410,08-Dec-14,630.00,HEALTHCARE & TRANSPORT SERVICES (HATS),SP0000012
WANDSWORTH COUNCIL,ASC,SOCIAL SERVICES,HIRE,Revenue,HIRE - TRANSPORT,551594,130220410,17-Dec-14,630.00,HEALTHCARE & TRANSPORT SERVICES (HATS),SP0000012
WANDSWORTH COUNCIL,ASC,SOCIAL SERVICES,HIRE,Revenue,HIRE - TRANSPORT,555791,130220410,19-Dec-14,630.00,HEALTHCARE & TRANSPORT SERVICES (HATS),SP0000012
WANDSWORTH COUNCIL,ASC,SOCIAL SERVICES,HIRE,Revenue,HIRE - TRANSPORT,560681,130220410,30-Dec-14,630.00,HEALTHCARE & TRANSPORT SERVICES (HATS),SP0000012
WANDSWORTH COUNCIL,ASC,SOCIAL SERVICES,HIRE,Revenue,HIRE - TRANSPORT,549487,130220410,12-Dec-14,819.60,BECKETT CORPORATION LTD T/A TINAS CARS,SP0000729
WANDSWORTH COUNCIL,ASC,SOCIAL SERVICES,HIRE,Revenue,HIRE - TRANSPORT,549488,130220410,12-Dec-14,848.20,BECKETT CORPORATION LTD T/A TINAS CARS,SP0000729
WANDSWORTH COUNCIL,ASC,SOCIAL SERVICES,HIRE,Revenue,HIRE - TRANSPORT,560693,130220410,30-Dec-14,599.26,BECKETT CORPORATION LTD T/A TINAS CARS,SP0000729
WANDSWORTH COUNCIL,ASC,SOCIAL SERVICES,HIRE,Revenue,HIRE - TRANSPORT,560699,130220410,30-Dec-14,108.48,BECKETT CORPORATION LTD T/A TINAS CARS,SP0000729
WANDSWORTH COUNCIL,ASC,SOCIAL SERVICES,HIRE,Revenue,HIRE - TRANSPORT,560701,130220410,30-Dec-14,"1,053.02",BECKETT CORPORATION LTD T/A TINAS CARS,SP0000729
WANDSWORTH COUNCIL,ASC,SOCIAL SERVICES,HIRE,Revenue,HIRE - TRANSPORT,560702,130220410,30-Dec-14,490.72,BECKETT CORPORATION LTD T/A TINAS CARS,SP0000729
WANDSWORTH COUNCIL,ASC,SOCIAL SERVICES,HIRE,Revenue,HIRE - TRANSPORT,560703,130220410,30-Dec-14,"1,210.00",BECKETT CORPORATION LTD T/A TINAS CARS,SP0000729
WANDSWORTH COUNCIL,ASC,SOCIAL SERVICES,HIRE,Revenue,HIRE - TRANSPORT,560704,130220410,30-Dec-14,514.48,BECKETT CORPORATION LTD T/A TINAS CARS,SP0000729
WANDSWORTH COUNCIL,ASC,SOCIAL SERVICES,HIRE,Revenue,HIRE - TRANSPORT,560707,130220410,30-Dec-14,"2,018.25",BECKETT CORPORATION LTD T/A TINAS CARS,SP0000729
WANDSWORTH COUNCIL,ASC,SOCIAL SERVICES,HIRE,Revenue,HIRE - TRANSPORT,560708,130220410,30-Dec-14,702.56,BECKETT CORPORATION LTD T/A TINAS CARS,SP0000729
WANDSWORTH COUNCIL,ASC,SOCIAL SERVICES,HIRE,Revenue,HIRE - TRANSPORT,560709,130220410,30-Dec-14,733.76,BECKETT CORPORATION LTD T/A TINAS CARS,SP0000729
WANDSWORTH COUNCIL,ASC,SOCIAL SERVICES,HIRE,Revenue,HIRE - TRANSPORT,541494,130220410,03-Dec-14,672.00,A STAR TRANSPORT LTD,SP0000866
WANDSWORTH COUNCIL,ASC,SOCIAL SERVICES,HIRE,Revenue,HIRE - TRANSPORT,541499,130220410,03-Dec-14,526.80,A STAR TRANSPORT LTD,SP0000866
WANDSWORTH COUNCIL,ASC,SOCIAL SERVICES,HIRE,Revenue,HIRE - TRANSPORT,541500,130220410,03-Dec-14,526.60,A STAR TRANSPORT LTD,SP0000866
WANDSWORTH COUNCIL,ASC,SOCIAL SERVICES,HIRE,Revenue,HIRE - TRANSPORT,541504,130220410,03-Dec-14,440.00,A STAR TRANSPORT LTD,SP0000866
WANDSWORTH COUNCIL,ASC,SOCIAL SERVICES,HIRE,Revenue,HIRE - TRANSPORT,541506,130220410,03-Dec-14,500.00,A STAR TRANSPORT LTD,SP0000866
WANDSWORTH COUNCIL,ASC,SOCIAL SERVICES,HIRE,Revenue,HIRE - TRANSPORT,541510,130220410,03-Dec-14,500.00,A STAR TRANSPORT LTD,SP0000866
WANDSWORTH COUNCIL,ASC,SOCIAL SERVICES,HIRE,Revenue,HIRE - TRANSPORT,541511,130220410,03-Dec-14,500.00,A STAR TRANSPORT LTD,SP0000866
WANDSWORTH COUNCIL,ASC,SOCIAL SERVICES,HIRE,Revenue,HIRE - TRANSPORT,541512,130220410,03-Dec-14,532.00,A STAR TRANSPORT LTD,SP0000866
WANDSWORTH COUNCIL,ASC,SOCIAL SERVICES,HIRE,Revenue,HIRE - TRANSPORT,541521,130220410,03-Dec-14,492.00,A STAR TRANSPORT LTD,SP0000866
WANDSWORTH COUNCIL,ASC,SOCIAL SERVICES,HIRE,Revenue,HIRE - TRANSPORT,541526,130220410,03-Dec-14,"1,160.00",A STAR TRANSPORT LTD,SP0000866
WANDSWORTH COUNCIL,ASC,SOCIAL SERVICES,HIRE,Revenue,HIRE - TRANSPORT,541531,130220410,03-Dec-14,620.00,A STAR TRANSPORT LTD,SP0000866
WANDSWORTH COUNCIL,ASC,SOCIAL SERVICES,HIRE,Revenue,HIRE - TRANSPORT,541533,130220410,03-Dec-14,500.00,A STAR TRANSPORT LTD,SP0000866
WANDSWORTH COUNCIL,ASC,SOCIAL SERVICES,HIRE,Revenue,HIRE - TRANSPORT,541539,130220410,03-Dec-14,444.00,A STAR TRANSPORT LTD,SP0000866
WANDSWORTH COUNCIL,ASC,SOCIAL SERVICES,HIRE,Revenue,HIRE - TRANSPORT,541543,130220410,03-Dec-14,424.00,A STAR TRANSPORT LTD,SP0000866
WANDSWORTH COUNCIL,ASC,SOCIAL SERVICES,HIRE,Revenue,HIRE - TRANSPORT,544942,130220410,08-Dec-14,512.00,A STAR TRANSPORT LTD,SP0000866
WANDSWORTH COUNCIL,ASC,SOCIAL SERVICES,HIRE,Revenue,HIRE - TRANSPORT,544943,130220410,08-Dec-14,448.00,A STAR TRANSPORT LTD,SP0000866
WANDSWORTH COUNCIL,ASC,SOCIAL SERVICES,HIRE,Revenue,HIRE - TRANSPORT,544944,130220410,08-Dec-14,576.00,A STAR TRANSPORT LTD,SP0000866
WANDSWORTH COUNCIL,ASC,SOCIAL SERVICES,HIRE,Revenue,HIRE - TRANSPORT,544946,130220410,08-Dec-14,640.00,A STAR TRANSPORT LTD,SP0000866
WANDSWORTH COUNCIL,ASC,SOCIAL SERVICES,HIRE,Revenue,HIRE - TRANSPORT,544951,130220410,08-Dec-14,640.00,A STAR TRANSPORT LTD,SP0000866
WANDSWORTH COUNCIL,ASC,SOCIAL SERVICES,HIRE,Revenue,HIRE - TRANSPORT,557581,130220410,23-Dec-14,580.00,A STAR TRANSPORT LTD,SP0000866
WANDSWORTH COUNCIL,ASC,SOCIAL SERVICES,HIRE,Revenue,HIRE - TRANSPORT,560669,130220410,30-Dec-14,519.00,A STAR TRANSPORT LTD,SP0000866
WANDSWORTH COUNCIL,ASC,SOCIAL SERVICES,HIRE,Revenue,HIRE - TRANSPORT,560672,130220410,30-Dec-14,512.00,A STAR TRANSPORT LTD,SP0000866
WANDSWORTH COUNCIL,ASC,SOCIAL SERVICES,HIRE,Revenue,HIRE - TRANSPORT,545699,130220410,08-Dec-14,556.10,WEST ONE CARS,SP0005818
WANDSWORTH COUNCIL,ASC,SOCIAL SERVICES,HIRE,Revenue,NEW TRANSPORT CONTRACT,560696,130220430,30-Dec-14,"1,566.00",BECKETT CORPORATION LTD T/A TINAS CARS,SP0000729
WANDSWORTH COUNCIL,ASC,SOCIAL SERVICES,HIRE,Revenue,NEW TRANSPORT CONTRACT,560699,130220430,30-Dec-14,396.16,BECKETT CORPORATION LTD T/A TINAS CARS,SP0000729
WANDSWORTH COUNCIL,ASC,SOCIAL SERVICES,HEALTH,Revenue,EXT RES S28A 100% OLD LONGSTAY,555676,130241010,19-Dec-14,"6,266.83",VOYAGE CARE LTD,SP0000366
WANDSWORTH COUNCIL,ASC,SOCIAL SERVICES,HEALTH,Revenue,EXT RES S28A 100% OLD LONGSTAY,555677,130241010,19-Dec-14,"6,266.83",VOYAGE CARE LTD,SP0000366
WANDSWORTH COUNCIL,ASC,SOCIAL SERVICES,HEALTH,Revenue,EXT RES S28A 100% OLD LONGSTAY,555701,130241010,19-Dec-14,"9,174.85",VOYAGE CARE LTD,SP0000366
WANDSWORTH COUNCIL,ASC,SOCIAL SERVICES,HEALTH,Revenue,EXT RES S28A 100% OLD LONGSTAY,548863,130241010,11-Dec-14,"3,037.02",PARKGATE MANOR,SP0000521
WANDSWORTH COUNCIL,ASC,SOCIAL SERVICES,HEALTH,Revenue,EXTERNAL RESIDENTIAL CARE S28A,548105,130241080,11-Dec-14,"7,215.87",PROGRESS HOUSING LULWORTH,SP0000921
WANDSWORTH COUNCIL,ASC,SOCIAL SERVICES,HEALTH,Revenue,EXT RES CARE S28A 100%,555678,130241090,19-Dec-14,"6,266.96",VOYAGE CARE LTD,SP0000366
WANDSWORTH COUNCIL,ASC,SOCIAL SERVICES,HEALTH,Revenue,EXT RES S28A OLD LONG STAY,548838,130241110,11-Dec-14,"2,975.96",ELEANOR NURSING & SOCIAL CARE,SP0000110
WANDSWORTH COUNCIL,ASC,SOCIAL SERVICES,HEALTH,Revenue,EXT RES S28A OLD LONG STAY,548819,130241110,11-Dec-14,"4,918.77",THE COMMUNITY CARE COMPANY UK LTD,SP0000576
WANDSWORTH COUNCIL,ASC,SOCIAL SERVICES,HEALTH,Revenue,EXT RES S28A OLD LONG STAY,544253,130241110,08-Dec-14,"4,709.79",METROPOLITAN HOUSING TRUST,SP0000626
WANDSWORTH COUNCIL,ASC,SOCIAL SERVICES,HEALTH,Revenue,EXT RES S28A OLD LONG STAY,544273,130241110,08-Dec-14,"4,709.79",METROPOLITAN HOUSING TRUST,SP0000626
WANDSWORTH COUNCIL,ASC,SOCIAL SERVICES,HEALTH,Revenue,EXT RES S28A OLD LONG STAY,548837,130241110,11-Dec-14,"2,690.16",ASHTON CARE,SP0000695
WANDSWORTH COUNCIL,ASC,SOCIAL SERVICES,HEALTH,Revenue,EXT RES S28A OLD LONG STAY,557828,130241110,23-Dec-14,"4,351.72",ANTHONY TOBY HOMES TRUST,SP0000755
WANDSWORTH COUNCIL,ASC,SOCIAL SERVICES,HEALTH,Revenue,EXT RES S28A OLD LONG STAY,557829,130241110,23-Dec-14,"4,351.72",ANTHONY TOBY HOMES TRUST,SP0000755
WANDSWORTH COUNCIL,ASC,SOCIAL SERVICES,OTHER AGENCIES,Revenue,ENABLERS/EDUCATION FEES,552750,130243280,18-Dec-14,"16,785.04",THE WEST OF ENGLAND SCHOOL & COLLEGE,SP0001486
WANDSWORTH COUNCIL,ASC,SOCIAL SERVICES,OTHER AGENCIES,Revenue,ENABLERS/EDUCATION FEES,548971,130243280,11-Dec-14,"21,455.67",FAIRFIELD OPPORTUNITY FARM DILTON LTD CA,SP0001758
WANDSWORTH COUNCIL,ASC,SOCIAL SERVICES,OTHER AGENCIES,Revenue,EXTERNAL OUTREACH,548576,130243330,11-Dec-14,465.36,RAINBOW MEDICAL SERVICES,SP0000037
WANDSWORTH COUNCIL,ASC,SOCIAL SERVICES,OTHER AGENCIES,Revenue,EXTERNAL OUTREACH,548578,130243330,11-Dec-14,791.60,RAINBOW MEDICAL SERVICES,SP0000037
WANDSWORTH COUNCIL,ASC,SOCIAL SERVICES,OTHER AGENCIES,Revenue,EXTERNAL OUTREACH,548572,130243330,11-Dec-14,765.00,PROTOCOL EDUCATION  LTD,SP0000171
WANDSWORTH COUNCIL,ASC,SOCIAL SERVICES,OTHER AGENCIES,Revenue,EXTERNAL OUTREACH,548573,130243330,11-Dec-14,850.00,PROTOCOL EDUCATION  LTD,SP0000171
WANDSWORTH COUNCIL,ASC,SOCIAL SERVICES,OTHER AGENCIES,Revenue,EXTERNAL OUTREACH,555777,130243330,19-Dec-14,850.00,PROTOCOL EDUCATION  LTD,SP0000171
WANDSWORTH COUNCIL,ASC,SOCIAL SERVICES,OTHER AGENCIES,Revenue,EXTERNAL OUTREACH,555779,130243330,19-Dec-14,867.00,PROTOCOL EDUCATION  LTD,SP0000171
WANDSWORTH COUNCIL,ASC,SOCIAL SERVICES,OTHER AGENCIES,Revenue,EXTERNAL OUTREACH,551602,130243330,17-Dec-14,506.56,HARINGEY ASSOCIATION FOR INDEPENDENT LIV,SP0000222
WANDSWORTH COUNCIL,ASC,SOCIAL SERVICES,OTHER AGENCIES,Revenue,EXTERNAL OUTREACH,551604,130243330,17-Dec-14,628.00,HARINGEY ASSOCIATION FOR INDEPENDENT LIV,SP0000222
WANDSWORTH COUNCIL,ASC,SOCIAL SERVICES,OTHER AGENCIES,Revenue,EXTERNAL OUTREACH,551607,130243330,17-Dec-14,777.15,HARINGEY ASSOCIATION FOR INDEPENDENT LIV,SP0000222
WANDSWORTH COUNCIL,ASC,SOCIAL SERVICES,OTHER AGENCIES,Revenue,EXTERNAL OUTREACH,549490,130243330,12-Dec-14,"2,185.32",C M CARE LTD,SP0000455
WANDSWORTH COUNCIL,ASC,SOCIAL SERVICES,OTHER AGENCIES,Revenue,EXTERNAL OUTREACH,549492,130243330,12-Dec-14,936.00,C M CARE LTD,SP0000455
WANDSWORTH COUNCIL,ASC,SOCIAL SERVICES,OTHER AGENCIES,Revenue,EXTERNAL OUTREACH,549493,130243330,12-Dec-14,"1,287.20",C M CARE LTD,SP0000455
WANDSWORTH COUNCIL,ASC,SOCIAL SERVICES,OTHER AGENCIES,Revenue,EXTERNAL OUTREACH,549495,130243330,12-Dec-14,576.00,C M CARE LTD,SP0000455
WANDSWORTH COUNCIL,ASC,SOCIAL SERVICES,OTHER AGENCIES,Revenue,EXTERNAL OUTREACH,549496,130243330,12-Dec-14,"1,540.00",C M CARE LTD,SP0000455
WANDSWORTH COUNCIL,ASC,SOCIAL SERVICES,OTHER AGENCIES,Revenue,EXTERNAL OUTREACH,548508,130243330,11-Dec-14,"1,116.64",GENERATE OPPORTUNITIES LTD,SP0000503
WANDSWORTH COUNCIL,ASC,SOCIAL SERVICES,OTHER AGENCIES,Revenue,EXTERNAL OUTREACH,548516,130243330,11-Dec-14,638.08,GENERATE OPPORTUNITIES LTD,SP0000503
WANDSWORTH COUNCIL,ASC,SOCIAL SERVICES,OTHER AGENCIES,Revenue,EXTERNAL OUTREACH,548518,130243330,11-Dec-14,735.52,GENERATE OPPORTUNITIES LTD,SP0000503
WANDSWORTH COUNCIL,ASC,SOCIAL SERVICES,OTHER AGENCIES,Revenue,EXTERNAL OUTREACH,548522,130243330,11-Dec-14,797.60,GENERATE OPPORTUNITIES LTD,SP0000503
WANDSWORTH COUNCIL,ASC,SOCIAL SERVICES,OTHER AGENCIES,Revenue,EXTERNAL OUTREACH,548532,130243330,11-Dec-14,"1,915.00",GENERATE OPPORTUNITIES LTD,SP0000503
WANDSWORTH COUNCIL,ASC,SOCIAL SERVICES,OTHER AGENCIES,Revenue,EXTERNAL OUTREACH,548536,130243330,11-Dec-14,717.84,GENERATE OPPORTUNITIES LTD,SP0000503
WANDSWORTH COUNCIL,ASC,SOCIAL SERVICES,OTHER AGENCIES,Revenue,EXTERNAL OUTREACH,548540,130243330,11-Dec-14,239.28,GENERATE OPPORTUNITIES LTD,SP0000503
WANDSWORTH COUNCIL,ASC,SOCIAL SERVICES,OTHER AGENCIES,Revenue,EXTERNAL OUTREACH,548541,130243330,11-Dec-14,797.60,GENERATE OPPORTUNITIES LTD,SP0000503
WANDSWORTH COUNCIL,ASC,SOCIAL SERVICES,OTHER AGENCIES,Revenue,EXTERNAL OUTREACH,548546,130243330,11-Dec-14,638.08,GENERATE OPPORTUNITIES LTD,SP0000503
WANDSWORTH COUNCIL,ASC,SOCIAL SERVICES,OTHER AGENCIES,Revenue,EXTERNAL OUTREACH,548547,130243330,11-Dec-14,797.60,GENERATE OPPORTUNITIES LTD,SP0000503
WANDSWORTH COUNCIL,ASC,SOCIAL SERVICES,OTHER AGENCIES,Revenue,EXTERNAL OUTREACH,548559,130243330,11-Dec-14,"2,233.28",GENERATE OPPORTUNITIES LTD,SP0000503
WANDSWORTH COUNCIL,ASC,SOCIAL SERVICES,OTHER AGENCIES,Revenue,EXTERNAL OUTREACH,549436,130243330,12-Dec-14,322.24,GENERATE OPPORTUNITIES LTD,SP0000503
WANDSWORTH COUNCIL,ASC,SOCIAL SERVICES,OTHER AGENCIES,Revenue,EXTERNAL OUTREACH,560683,130243330,30-Dec-14,840.00,ROYAL ASSOCIATION FOR DEAF PEOPLE,SP0001251
WANDSWORTH COUNCIL,ASC,SOCIAL SERVICES,OTHER AGENCIES,Revenue,EXTERNAL OUTREACH,543489,130243330,08-Dec-14,331.20,THE BRANDON TRUST,SP0005337
WANDSWORTH COUNCIL,ASC,SOCIAL SERVICES,OTHER AGENCIES,Revenue,EXTERNAL OUTREACH,543502,130243330,08-Dec-14,252.64,THE BRANDON TRUST,SP0005337
WANDSWORTH COUNCIL,ASC,SOCIAL SERVICES,OTHER AGENCIES,Revenue,EXTERNAL OUTREACH,543514,130243330,08-Dec-14,757.92,THE BRANDON TRUST,SP0005337
WANDSWORTH COUNCIL,ASC,SOCIAL SERVICES,OTHER AGENCIES,Revenue,EXTERNAL OUTREACH,543529,130243330,08-Dec-14,354.60,THE BRANDON TRUST,SP0005337
WANDSWORTH COUNCIL,ASC,SOCIAL SERVICES,OTHER AGENCIES,Revenue,EXTERNAL OUTREACH,544410,130243330,08-Dec-14,757.92,THE BRANDON TRUST,SP0005337
WANDSWORTH COUNCIL,ASC,SOCIAL SERVICES,OTHER AGENCIES,Revenue,EXTERNAL OUTREACH,544417,130243330,08-Dec-14,947.40,THE BRANDON TRUST,SP0005337
WANDSWORTH COUNCIL,ASC,SOCIAL SERVICES,OTHER AGENCIES,Revenue,EXTERNAL OUTREACH,544419,130243330,08-Dec-14,"1,170.80",THE BRANDON TRUST,SP0005337
WANDSWORTH COUNCIL,ASC,SOCIAL SERVICES,OTHER AGENCIES,Revenue,EXTERNAL OUTREACH,544448,130243330,08-Dec-14,631.60,THE BRANDON TRUST,SP0005337
WANDSWORTH COUNCIL,ASC,SOCIAL SERVICES,OTHER AGENCIES,Revenue,EXTERNAL OUTREACH,544461,130243330,08-Dec-14,568.44,THE BRANDON TRUST,SP0005337
WANDSWORTH COUNCIL,ASC,SOCIAL SERVICES,OTHER AGENCIES,Revenue,EXTERNAL OUTREACH,544468,130243330,08-Dec-14,694.76,THE BRANDON TRUST,SP0005337
WANDSWORTH COUNCIL,ASC,SOCIAL SERVICES,OTHER AGENCIES,Revenue,EXTERNAL OUTREACH,551631,130243330,17-Dec-14,"3,300.00",RELIABLE PERSONNEL LTD,SP0005657
WANDSWORTH COUNCIL,ASC,SOCIAL SERVICES,PRIVATE,Revenue,EXTERNAL DAYCARE,539734,130245290,01-Dec-14,"2,189.83",CMG HOMES LTD,SP0000075
WANDSWORTH COUNCIL,ASC,SOCIAL SERVICES,PRIVATE,Revenue,EXTERNAL DAYCARE,548963,130245290,11-Dec-14,"2,189.83",CMG HOMES LTD,SP0000075
WANDSWORTH COUNCIL,ASC,SOCIAL SERVICES,PRIVATE,Revenue,EXTERNAL DAYCARE,555782,130245290,19-Dec-14,"1,107.68",COUNTRY CARE,SP0000090
WANDSWORTH COUNCIL,ASC,SOCIAL SERVICES,PRIVATE,Revenue,EXTERNAL DAYCARE,544405,130245290,08-Dec-14,644.00,THE CHESTNUTS,SP0000182
WANDSWORTH COUNCIL,ASC,SOCIAL SERVICES,PRIVATE,Revenue,EXTERNAL DAYCARE,560464,130245290,30-Dec-14,125.80,THE CHESTNUTS,SP0000182
WANDSWORTH COUNCIL,ASC,SOCIAL SERVICES,PRIVATE,Revenue,EXTERNAL DAYCARE,560465,130245290,30-Dec-14,125.80,THE CHESTNUTS,SP0000182
WANDSWORTH COUNCIL,ASC,SOCIAL SERVICES,PRIVATE,Revenue,EXTERNAL DAYCARE,552980,130245290,18-Dec-14,878.48,ORCHARD VALE TRUST,SP0000214
WANDSWORTH COUNCIL,ASC,SOCIAL SERVICES,PRIVATE,Revenue,EXTERNAL DAYCARE,541476,130245290,03-Dec-14,"1,736.84",ST MARYS RESIDENTIAL HOME,SP0000215
WANDSWORTH COUNCIL,ASC,SOCIAL SERVICES,PRIVATE,Revenue,EXTERNAL DAYCARE,552985,130245290,18-Dec-14,"1,736.84",ST MARYS RESIDENTIAL HOME,SP0000215
WANDSWORTH COUNCIL,ASC,SOCIAL SERVICES,PRIVATE,Revenue,EXTERNAL DAYCARE,552986,130245290,18-Dec-14,"1,250.00",ST MARYS RESIDENTIAL HOME,SP0000215
WANDSWORTH COUNCIL,ASC,SOCIAL SERVICES,PRIVATE,Revenue,EXTERNAL DAYCARE,552987,130245290,18-Dec-14,708.52,ST MARYS RESIDENTIAL HOME,SP0000215
WANDSWORTH COUNCIL,ASC,SOCIAL SERVICES,PRIVATE,Revenue,EXTERNAL DAYCARE,552991,130245290,18-Dec-14,956.80,ST MARYS RESIDENTIAL HOME,SP0000215
WANDSWORTH COUNCIL,ASC,SOCIAL SERVICES,PRIVATE,Revenue,EXTERNAL DAYCARE,552993,130245290,18-Dec-14,534.28,ST MARYS RESIDENTIAL HOME,SP0000215
WANDSWORTH COUNCIL,ASC,SOCIAL SERVICES,PRIVATE,Revenue,EXTERNAL DAYCARE,542624,130245290,04-Dec-14,"3,762.60",NAS SERVICES LIMITED,SP0000217
WANDSWORTH COUNCIL,ASC,SOCIAL SERVICES,PRIVATE,Revenue,EXTERNAL DAYCARE,542625,130245290,04-Dec-14,"1,575.80",NAS SERVICES LIMITED,SP0000217
WANDSWORTH COUNCIL,ASC,SOCIAL SERVICES,PRIVATE,Revenue,EXTERNAL DAYCARE,542626,130245290,04-Dec-14,"3,700.40",NAS SERVICES LIMITED,SP0000217
WANDSWORTH COUNCIL,ASC,SOCIAL SERVICES,PRIVATE,Revenue,EXTERNAL DAYCARE,542627,130245290,04-Dec-14,"2,303.20",NAS SERVICES LIMITED,SP0000217
WANDSWORTH COUNCIL,ASC,SOCIAL SERVICES,PRIVATE,Revenue,EXTERNAL DAYCARE,557624,130245290,23-Dec-14,546.00,PARCHMENT TRUST LTD,SP0000255
WANDSWORTH COUNCIL,ASC,SOCIAL SERVICES,PRIVATE,Revenue,EXTERNAL DAYCARE,548964,130245290,11-Dec-14,806.04,CRAEGMOOR FACILITIES CO LTD,SP0000306
WANDSWORTH COUNCIL,ASC,SOCIAL SERVICES,PRIVATE,Revenue,EXTERNAL DAYCARE,544335,130245290,08-Dec-14,882.60,SHARE COMMUNITY,SP0000329
WANDSWORTH COUNCIL,ASC,SOCIAL SERVICES,PRIVATE,Revenue,EXTERNAL DAYCARE,544338,130245290,08-Dec-14,706.08,SHARE COMMUNITY,SP0000329
WANDSWORTH COUNCIL,ASC,SOCIAL SERVICES,PRIVATE,Revenue,EXTERNAL DAYCARE,544339,130245290,08-Dec-14,706.08,SHARE COMMUNITY,SP0000329
WANDSWORTH COUNCIL,ASC,SOCIAL SERVICES,PRIVATE,Revenue,EXTERNAL DAYCARE,544343,130245290,08-Dec-14,706.08,SHARE COMMUNITY,SP0000329
WANDSWORTH COUNCIL,ASC,SOCIAL SERVICES,PRIVATE,Revenue,EXTERNAL DAYCARE,544345,130245290,08-Dec-14,706.08,SHARE COMMUNITY,SP0000329
WANDSWORTH COUNCIL,ASC,SOCIAL SERVICES,PRIVATE,Revenue,EXTERNAL DAYCARE,544347,130245290,08-Dec-14,941.44,SHARE COMMUNITY,SP0000329
WANDSWORTH COUNCIL,ASC,SOCIAL SERVICES,PRIVATE,Revenue,EXTERNAL DAYCARE,544348,130245290,08-Dec-14,706.08,SHARE COMMUNITY,SP0000329
WANDSWORTH COUNCIL,ASC,SOCIAL SERVICES,PRIVATE,Revenue,EXTERNAL DAYCARE,544350,130245290,08-Dec-14,706.08,SHARE COMMUNITY,SP0000329
WANDSWORTH COUNCIL,ASC,SOCIAL SERVICES,PRIVATE,Revenue,EXTERNAL DAYCARE,544352,130245290,08-Dec-14,706.08,SHARE COMMUNITY,SP0000329
WANDSWORTH COUNCIL,ASC,SOCIAL SERVICES,PRIVATE,Revenue,EXTERNAL DAYCARE,544357,130245290,08-Dec-14,706.08,SHARE COMMUNITY,SP0000329
WANDSWORTH COUNCIL,ASC,SOCIAL SERVICES,PRIVATE,Revenue,EXTERNAL DAYCARE,544359,130245290,08-Dec-14,706.08,SHARE COMMUNITY,SP0000329
WANDSWORTH COUNCIL,ASC,SOCIAL SERVICES,PRIVATE,Revenue,EXTERNAL DAYCARE,544370,130245290,08-Dec-14,706.08,SHARE COMMUNITY,SP0000329
WANDSWORTH COUNCIL,ASC,SOCIAL SERVICES,PRIVATE,Revenue,EXTERNAL DAYCARE,544372,130245290,08-Dec-14,941.44,SHARE COMMUNITY,SP0000329
WANDSWORTH COUNCIL,ASC,SOCIAL SERVICES,PRIVATE,Revenue,EXTERNAL DAYCARE,544373,130245290,08-Dec-14,706.08,SHARE COMMUNITY,SP0000329
WANDSWORTH COUNCIL,ASC,SOCIAL SERVICES,PRIVATE,Revenue,EXTERNAL DAYCARE,544374,130245290,08-Dec-14,706.08,SHARE COMMUNITY,SP0000329
WANDSWORTH COUNCIL,ASC,SOCIAL SERVICES,PRIVATE,Revenue,EXTERNAL DAYCARE,544375,130245290,08-Dec-14,706.08,SHARE COMMUNITY,SP0000329
WANDSWORTH COUNCIL,ASC,SOCIAL SERVICES,PRIVATE,Revenue,EXTERNAL DAYCARE,544376,130245290,08-Dec-14,706.08,SHARE COMMUNITY,SP0000329
WANDSWORTH COUNCIL,ASC,SOCIAL SERVICES,PRIVATE,Revenue,EXTERNAL DAYCARE,544378,130245290,08-Dec-14,941.44,SHARE COMMUNITY,SP0000329
WANDSWORTH COUNCIL,ASC,SOCIAL SERVICES,PRIVATE,Revenue,EXTERNAL DAYCARE,544379,130245290,08-Dec-14,"1,176.80",SHARE COMMUNITY,SP0000329
WANDSWORTH COUNCIL,ASC,SOCIAL SERVICES,PRIVATE,Revenue,EXTERNAL DAYCARE,544380,130245290,08-Dec-14,"1,176.80",SHARE COMMUNITY,SP0000329
WANDSWORTH COUNCIL,ASC,SOCIAL SERVICES,PRIVATE,Revenue,EXTERNAL DAYCARE,544381,130245290,08-Dec-14,706.08,SHARE COMMUNITY,SP0000329
WANDSWORTH COUNCIL,ASC,SOCIAL SERVICES,PRIVATE,Revenue,EXTERNAL DAYCARE,544382,130245290,08-Dec-14,588.40,SHARE COMMUNITY,SP0000329
WANDSWORTH COUNCIL,ASC,SOCIAL SERVICES,PRIVATE,Revenue,EXTERNAL DAYCARE,544383,130245290,08-Dec-14,706.08,SHARE COMMUNITY,SP0000329
WANDSWORTH COUNCIL,ASC,SOCIAL SERVICES,PRIVATE,Revenue,EXTERNAL DAYCARE,544384,130245290,08-Dec-14,941.44,SHARE COMMUNITY,SP0000329
WANDSWORTH COUNCIL,ASC,SOCIAL SERVICES,PRIVATE,Revenue,EXTERNAL DAYCARE,544387,130245290,08-Dec-14,706.08,SHARE COMMUNITY,SP0000329
WANDSWORTH COUNCIL,ASC,SOCIAL SERVICES,PRIVATE,Revenue,EXTERNAL DAYCARE,544389,130245290,08-Dec-14,588.40,SHARE COMMUNITY,SP0000329
WANDSWORTH COUNCIL,ASC,SOCIAL SERVICES,PRIVATE,Revenue,EXTERNAL DAYCARE,544390,130245290,08-Dec-14,706.08,SHARE COMMUNITY,SP0000329
WANDSWORTH COUNCIL,ASC,SOCIAL SERVICES,PRIVATE,Revenue,EXTERNAL DAYCARE,544391,130245290,08-Dec-14,706.08,SHARE COMMUNITY,SP0000329
WANDSWORTH COUNCIL,ASC,SOCIAL SERVICES,PRIVATE,Revenue,EXTERNAL DAYCARE,544395,130245290,08-Dec-14,706.08,SHARE COMMUNITY,SP0000329
WANDSWORTH COUNCIL,ASC,SOCIAL SERVICES,PRIVATE,Revenue,EXTERNAL DAYCARE,544396,130245290,08-Dec-14,"1,176.80",SHARE COMMUNITY,SP0000329
WANDSWORTH COUNCIL,ASC,SOCIAL SERVICES,PRIVATE,Revenue,EXTERNAL DAYCARE,559627,130245290,29-Dec-14,706.08,SHARE COMMUNITY,SP0000329
WANDSWORTH COUNCIL,ASC,SOCIAL SERVICES,PRIVATE,Revenue,EXTERNAL DAYCARE,559629,130245290,29-Dec-14,"1,176.80",SHARE COMMUNITY,SP0000329
WANDSWORTH COUNCIL,ASC,SOCIAL SERVICES,PRIVATE,Revenue,EXTERNAL DAYCARE,559630,130245290,29-Dec-14,706.08,SHARE COMMUNITY,SP0000329
WANDSWORTH COUNCIL,ASC,SOCIAL SERVICES,PRIVATE,Revenue,EXTERNAL DAYCARE,559631,130245290,29-Dec-14,706.08,SHARE COMMUNITY,SP0000329
WANDSWORTH COUNCIL,ASC,SOCIAL SERVICES,PRIVATE,Revenue,EXTERNAL DAYCARE,559632,130245290,29-Dec-14,529.56,SHARE COMMUNITY,SP0000329
WANDSWORTH COUNCIL,ASC,SOCIAL SERVICES,PRIVATE,Revenue,EXTERNAL DAYCARE,559633,130245290,29-Dec-14,706.08,SHARE COMMUNITY,SP0000329
WANDSWORTH COUNCIL,ASC,SOCIAL SERVICES,PRIVATE,Revenue,EXTERNAL DAYCARE,559635,130245290,29-Dec-14,941.44,SHARE COMMUNITY,SP0000329
WANDSWORTH COUNCIL,ASC,SOCIAL SERVICES,PRIVATE,Revenue,EXTERNAL DAYCARE,559636,130245290,29-Dec-14,"1,176.80",SHARE COMMUNITY,SP0000329
WANDSWORTH COUNCIL,ASC,SOCIAL SERVICES,PRIVATE,Revenue,EXTERNAL DAYCARE,559637,130245290,29-Dec-14,"1,176.80",SHARE COMMUNITY,SP0000329
WANDSWORTH COUNCIL,ASC,SOCIAL SERVICES,PRIVATE,Revenue,EXTERNAL DAYCARE,559638,130245290,29-Dec-14,706.08,SHARE COMMUNITY,SP0000329
WANDSWORTH COUNCIL,ASC,SOCIAL SERVICES,PRIVATE,Revenue,EXTERNAL DAYCARE,559639,130245290,29-Dec-14,588.40,SHARE COMMUNITY,SP0000329
WANDSWORTH COUNCIL,ASC,SOCIAL SERVICES,PRIVATE,Revenue,EXTERNAL DAYCARE,559640,130245290,29-Dec-14,706.08,SHARE COMMUNITY,SP0000329
WANDSWORTH COUNCIL,ASC,SOCIAL SERVICES,PRIVATE,Revenue,EXTERNAL DAYCARE,559641,130245290,29-Dec-14,941.44,SHARE COMMUNITY,SP0000329
WANDSWORTH COUNCIL,ASC,SOCIAL SERVICES,PRIVATE,Revenue,EXTERNAL DAYCARE,559644,130245290,29-Dec-14,706.08,SHARE COMMUNITY,SP0000329
WANDSWORTH COUNCIL,ASC,SOCIAL SERVICES,PRIVATE,Revenue,EXTERNAL DAYCARE,559646,130245290,29-Dec-14,588.40,SHARE COMMUNITY,SP0000329
WANDSWORTH COUNCIL,ASC,SOCIAL SERVICES,PRIVATE,Revenue,EXTERNAL DAYCARE,559647,130245290,29-Dec-14,706.08,SHARE COMMUNITY,SP0000329
WANDSWORTH COUNCIL,ASC,SOCIAL SERVICES,PRIVATE,Revenue,EXTERNAL DAYCARE,559648,130245290,29-Dec-14,706.08,SHARE COMMUNITY,SP0000329
WANDSWORTH COUNCIL,ASC,SOCIAL SERVICES,PRIVATE,Revenue,EXTERNAL DAYCARE,559652,130245290,29-Dec-14,706.08,SHARE COMMUNITY,SP0000329
WANDSWORTH COUNCIL,ASC,SOCIAL SERVICES,PRIVATE,Revenue,EXTERNAL DAYCARE,559653,130245290,29-Dec-14,"1,176.80",SHARE COMMUNITY,SP0000329
WANDSWORTH COUNCIL,ASC,SOCIAL SERVICES,PRIVATE,Revenue,EXTERNAL DAYCARE,559658,130245290,29-Dec-14,706.08,SHARE COMMUNITY,SP0000329
WANDSWORTH COUNCIL,ASC,SOCIAL SERVICES,PRIVATE,Revenue,EXTERNAL DAYCARE,559659,130245290,29-Dec-14,706.08,SHARE COMMUNITY,SP0000329
WANDSWORTH COUNCIL,ASC,SOCIAL SERVICES,PRIVATE,Revenue,EXTERNAL DAYCARE,559663,130245290,29-Dec-14,706.08,SHARE COMMUNITY,SP0000329
WANDSWORTH COUNCIL,ASC,SOCIAL SERVICES,PRIVATE,Revenue,EXTERNAL DAYCARE,559665,130245290,29-Dec-14,706.08,SHARE COMMUNITY,SP0000329
WANDSWORTH COUNCIL,ASC,SOCIAL SERVICES,PRIVATE,Revenue,EXTERNAL DAYCARE,559667,130245290,29-Dec-14,941.44,SHARE COMMUNITY,SP0000329
WANDSWORTH COUNCIL,ASC,SOCIAL SERVICES,PRIVATE,Revenue,EXTERNAL DAYCARE,559668,130245290,29-Dec-14,706.08,SHARE COMMUNITY,SP0000329
WANDSWORTH COUNCIL,ASC,SOCIAL SERVICES,PRIVATE,Revenue,EXTERNAL DAYCARE,559670,130245290,29-Dec-14,706.08,SHARE COMMUNITY,SP0000329
WANDSWORTH COUNCIL,ASC,SOCIAL SERVICES,PRIVATE,Revenue,EXTERNAL DAYCARE,559672,130245290,29-Dec-14,706.08,SHARE COMMUNITY,SP0000329
WANDSWORTH COUNCIL,ASC,SOCIAL SERVICES,PRIVATE,Revenue,EXTERNAL DAYCARE,559678,130245290,29-Dec-14,706.08,SHARE COMMUNITY,SP0000329
WANDSWORTH COUNCIL,ASC,SOCIAL SERVICES,PRIVATE,Revenue,EXTERNAL DAYCARE,559682,130245290,29-Dec-14,706.08,SHARE COMMUNITY,SP0000329
WANDSWORTH COUNCIL,ASC,SOCIAL SERVICES,PRIVATE,Revenue,EXTERNAL DAYCARE,548484,130245290,11-Dec-14,"1,119.64",DOLPHIN HOMES LTD,SP0000331
WANDSWORTH COUNCIL,ASC,SOCIAL SERVICES,PRIVATE,Revenue,EXTERNAL DAYCARE,558061,130245290,23-Dec-14,"1,070.96",DOLPHIN HOMES LTD,SP0000331
WANDSWORTH COUNCIL,ASC,SOCIAL SERVICES,PRIVATE,Revenue,EXTERNAL DAYCARE,548482,130245290,11-Dec-14,"2,000.16",NORWOOD SCHOOLS LTD,SP0000332
WANDSWORTH COUNCIL,ASC,SOCIAL SERVICES,PRIVATE,Revenue,EXTERNAL DAYCARE,548483,130245290,11-Dec-14,"2,055.64",NORWOOD SCHOOLS LTD,SP0000332
WANDSWORTH COUNCIL,ASC,SOCIAL SERVICES,PRIVATE,Revenue,EXTERNAL DAYCARE,555699,130245290,19-Dec-14,23.49,VOYAGE CARE LTD,SP0000366
WANDSWORTH COUNCIL,ASC,SOCIAL SERVICES,PRIVATE,Revenue,EXTERNAL DAYCARE,558062,130245290,23-Dec-14,578.08,VOYAGE CARE LTD,SP0000366
WANDSWORTH COUNCIL,ASC,SOCIAL SERVICES,PRIVATE,Revenue,EXTERNAL DAYCARE,558069,130245290,23-Dec-14,"1,654.08",VOYAGE CARE LTD,SP0000366
WANDSWORTH COUNCIL,ASC,SOCIAL SERVICES,PRIVATE,Revenue,EXTERNAL DAYCARE,558063,130245290,23-Dec-14,"1,057.00",ST DAVIDS CARE IN THE COMMUNITY,SP0000379
WANDSWORTH COUNCIL,ASC,SOCIAL SERVICES,PRIVATE,Revenue,EXTERNAL DAYCARE,558064,130245290,23-Dec-14,"1,057.00",ST DAVIDS CARE IN THE COMMUNITY,SP0000379
WANDSWORTH COUNCIL,ASC,SOCIAL SERVICES,PRIVATE,Revenue,EXTERNAL DAYCARE,558065,130245290,23-Dec-14,"1,057.00",ST DAVIDS CARE IN THE COMMUNITY,SP0000379
WANDSWORTH COUNCIL,ASC,SOCIAL SERVICES,PRIVATE,Revenue,EXTERNAL DAYCARE,548470,130245290,11-Dec-14,760.00,WANDSWORTH BENGALI WELFARE ASSOCIATION,SP0000479
WANDSWORTH COUNCIL,ASC,SOCIAL SERVICES,PRIVATE,Revenue,EXTERNAL DAYCARE,558072,130245290,23-Dec-14,683.36,CHOICES,SP0000486
WANDSWORTH COUNCIL,ASC,SOCIAL SERVICES,PRIVATE,Revenue,EXTERNAL DAYCARE,548509,130245290,11-Dec-14,"5,120.00",GENERATE OPPORTUNITIES LTD,SP0000503
WANDSWORTH COUNCIL,ASC,SOCIAL SERVICES,PRIVATE,Revenue,EXTERNAL DAYCARE,548514,130245290,11-Dec-14,560.00,GENERATE OPPORTUNITIES LTD,SP0000503
WANDSWORTH COUNCIL,ASC,SOCIAL SERVICES,PRIVATE,Revenue,EXTERNAL DAYCARE,548515,130245290,11-Dec-14,576.00,GENERATE OPPORTUNITIES LTD,SP0000503
WANDSWORTH COUNCIL,ASC,SOCIAL SERVICES,PRIVATE,Revenue,EXTERNAL DAYCARE,548519,130245290,11-Dec-14,"1,100.00",GENERATE OPPORTUNITIES LTD,SP0000503
WANDSWORTH COUNCIL,ASC,SOCIAL SERVICES,PRIVATE,Revenue,EXTERNAL DAYCARE,548532,130245290,11-Dec-14,560.00,GENERATE OPPORTUNITIES LTD,SP0000503
WANDSWORTH COUNCIL,ASC,SOCIAL SERVICES,PRIVATE,Revenue,EXTERNAL DAYCARE,548534,130245290,11-Dec-14,576.00,GENERATE OPPORTUNITIES LTD,SP0000503
WANDSWORTH COUNCIL,ASC,SOCIAL SERVICES,PRIVATE,Revenue,EXTERNAL DAYCARE,548535,130245290,11-Dec-14,640.00,GENERATE OPPORTUNITIES LTD,SP0000503
WANDSWORTH COUNCIL,ASC,SOCIAL SERVICES,PRIVATE,Revenue,EXTERNAL DAYCARE,548540,130245290,11-Dec-14,560.00,GENERATE OPPORTUNITIES LTD,SP0000503
WANDSWORTH COUNCIL,ASC,SOCIAL SERVICES,PRIVATE,Revenue,EXTERNAL DAYCARE,548541,130245290,11-Dec-14,320.00,GENERATE OPPORTUNITIES LTD,SP0000503
WANDSWORTH COUNCIL,ASC,SOCIAL SERVICES,PRIVATE,Revenue,EXTERNAL DAYCARE,548542,130245290,11-Dec-14,576.00,GENERATE OPPORTUNITIES LTD,SP0000503
WANDSWORTH COUNCIL,ASC,SOCIAL SERVICES,PRIVATE,Revenue,EXTERNAL DAYCARE,548544,130245290,11-Dec-14,800.00,GENERATE OPPORTUNITIES LTD,SP0000503
WANDSWORTH COUNCIL,ASC,SOCIAL SERVICES,PRIVATE,Revenue,EXTERNAL DAYCARE,548551,130245290,11-Dec-14,576.00,GENERATE OPPORTUNITIES LTD,SP0000503
WANDSWORTH COUNCIL,ASC,SOCIAL SERVICES,PRIVATE,Revenue,EXTERNAL DAYCARE,548564,130245290,11-Dec-14,576.00,GENERATE OPPORTUNITIES LTD,SP0000503
WANDSWORTH COUNCIL,ASC,SOCIAL SERVICES,PRIVATE,Revenue,EXTERNAL DAYCARE,549436,130245290,12-Dec-14,280.00,GENERATE OPPORTUNITIES LTD,SP0000503
WANDSWORTH COUNCIL,ASC,SOCIAL SERVICES,PRIVATE,Revenue,EXTERNAL DAYCARE,552978,130245290,18-Dec-14,"1,956.01",THE REGARD PARTNERSHIP,SP0000588
WANDSWORTH COUNCIL,ASC,SOCIAL SERVICES,PRIVATE,Revenue,EXTERNAL DAYCARE,552979,130245290,18-Dec-14,"1,371.17",THE REGARD PARTNERSHIP,SP0000588
WANDSWORTH COUNCIL,ASC,SOCIAL SERVICES,PRIVATE,Revenue,EXTERNAL DAYCARE,558071,130245290,23-Dec-14,914.13,ASHFIELD CARE HOMES LTD,SP0000590
WANDSWORTH COUNCIL,ASC,SOCIAL SERVICES,PRIVATE,Revenue,EXTERNAL DAYCARE,548962,130245290,11-Dec-14,787.50,DORSET SCOPE,SP0000591
WANDSWORTH COUNCIL,ASC,SOCIAL SERVICES,PRIVATE,Revenue,EXTERNAL DAYCARE,548499,130245290,11-Dec-14,528.00,THRIVE,SP0000601
WANDSWORTH COUNCIL,ASC,SOCIAL SERVICES,PRIVATE,Revenue,EXTERNAL DAYCARE,558049,130245290,23-Dec-14,602.56,HIGH HURLANDS HOMES,SP0000668
WANDSWORTH COUNCIL,ASC,SOCIAL SERVICES,PRIVATE,Revenue,EXTERNAL DAYCARE,548965,130245290,11-Dec-14,632.96,CREST COOPERATIVE LTD,SP0000683
WANDSWORTH COUNCIL,ASC,SOCIAL SERVICES,PRIVATE,Revenue,EXTERNAL DAYCARE,548481,130245290,11-Dec-14,951.30,THE MANOR HOUSE,SP0000728
WANDSWORTH COUNCIL,ASC,SOCIAL SERVICES,PRIVATE,Revenue,EXTERNAL DAYCARE,558073,130245290,23-Dec-14,"1,258.79",ANTHONY TOBY HOMES TRUST,SP0000755
WANDSWORTH COUNCIL,ASC,SOCIAL SERVICES,PRIVATE,Revenue,EXTERNAL DAYCARE,558074,130245290,23-Dec-14,"1,094.60",ANTHONY TOBY HOMES TRUST,SP0000755
WANDSWORTH COUNCIL,ASC,SOCIAL SERVICES,PRIVATE,Revenue,EXTERNAL DAYCARE,539626,130245290,01-Dec-14,527.36,UNITED RESPONSE,SP0000797
WANDSWORTH COUNCIL,ASC,SOCIAL SERVICES,PRIVATE,Revenue,EXTERNAL DAYCARE,557823,130245290,23-Dec-14,527.36,UNITED RESPONSE,SP0000797
WANDSWORTH COUNCIL,ASC,SOCIAL SERVICES,PRIVATE,Revenue,EXTERNAL DAYCARE,544334,130245290,08-Dec-14,540.00,PROSPECTS,SP0000800
WANDSWORTH COUNCIL,ASC,SOCIAL SERVICES,PRIVATE,Revenue,EXTERNAL DAYCARE,552918,130245290,18-Dec-14,540.00,PROSPECTS,SP0000800
WANDSWORTH COUNCIL,ASC,SOCIAL SERVICES,PRIVATE,Revenue,EXTERNAL DAYCARE,558067,130245290,23-Dec-14,942.23,CHATSWORTH CARE,SP0000831
WANDSWORTH COUNCIL,ASC,SOCIAL SERVICES,PRIVATE,Revenue,EXTERNAL DAYCARE,543556,130245290,08-Dec-14,833.52,SCOPE,SP0000852
WANDSWORTH COUNCIL,ASC,SOCIAL SERVICES,PRIVATE,Revenue,EXTERNAL DAYCARE,544400,130245290,08-Dec-14,814.03,SCOPE,SP0000852
WANDSWORTH COUNCIL,ASC,SOCIAL SERVICES,PRIVATE,Revenue,EXTERNAL DAYCARE,548468,130245290,11-Dec-14,814.03,SCOPE,SP0000852
WANDSWORTH COUNCIL,ASC,SOCIAL SERVICES,PRIVATE,Revenue,EXTERNAL DAYCARE,560714,130245290,30-Dec-14,833.52,SCOPE,SP0000852
WANDSWORTH COUNCIL,ASC,SOCIAL SERVICES,PRIVATE,Revenue,EXTERNAL DAYCARE,548923,130245290,11-Dec-14,554.04,ACT TOO LTD,SP0000855
WANDSWORTH COUNCIL,ASC,SOCIAL SERVICES,PRIVATE,Revenue,EXTERNAL DAYCARE,548928,130245290,11-Dec-14,554.04,ACT TOO LTD,SP0000855
WANDSWORTH COUNCIL,ASC,SOCIAL SERVICES,PRIVATE,Revenue,EXTERNAL DAYCARE,548929,130245290,11-Dec-14,554.04,ACT TOO LTD,SP0000855
WANDSWORTH COUNCIL,ASC,SOCIAL SERVICES,PRIVATE,Revenue,EXTERNAL DAYCARE,548930,130245290,11-Dec-14,"1,108.08",ACT TOO LTD,SP0000855
WANDSWORTH COUNCIL,ASC,SOCIAL SERVICES,PRIVATE,Revenue,EXTERNAL DAYCARE,548933,130245290,11-Dec-14,554.04,ACT TOO LTD,SP0000855
WANDSWORTH COUNCIL,ASC,SOCIAL SERVICES,PRIVATE,Revenue,EXTERNAL DAYCARE,548936,130245290,11-Dec-14,738.72,ACT TOO LTD,SP0000855
WANDSWORTH COUNCIL,ASC,SOCIAL SERVICES,PRIVATE,Revenue,EXTERNAL DAYCARE,548942,130245290,11-Dec-14,554.04,ACT TOO LTD,SP0000855
WANDSWORTH COUNCIL,ASC,SOCIAL SERVICES,PRIVATE,Revenue,EXTERNAL DAYCARE,548943,130245290,11-Dec-14,554.04,ACT TOO LTD,SP0000855
WANDSWORTH COUNCIL,ASC,SOCIAL SERVICES,PRIVATE,Revenue,EXTERNAL DAYCARE,548945,130245290,11-Dec-14,738.72,ACT TOO LTD,SP0000855
WANDSWORTH COUNCIL,ASC,SOCIAL SERVICES,PRIVATE,Revenue,EXTERNAL DAYCARE,548946,130245290,11-Dec-14,923.40,ACT TOO LTD,SP0000855
WANDSWORTH COUNCIL,ASC,SOCIAL SERVICES,PRIVATE,Revenue,EXTERNAL DAYCARE,548947,130245290,11-Dec-14,738.72,ACT TOO LTD,SP0000855
WANDSWORTH COUNCIL,ASC,SOCIAL SERVICES,PRIVATE,Revenue,EXTERNAL DAYCARE,548948,130245290,11-Dec-14,738.72,ACT TOO LTD,SP0000855
WANDSWORTH COUNCIL,ASC,SOCIAL SERVICES,PRIVATE,Revenue,EXTERNAL DAYCARE,548951,130245290,11-Dec-14,554.04,ACT TOO LTD,SP0000855
WANDSWORTH COUNCIL,ASC,SOCIAL SERVICES,PRIVATE,Revenue,EXTERNAL DAYCARE,548960,130245290,11-Dec-14,554.04,ACT TOO LTD,SP0000855
WANDSWORTH COUNCIL,ASC,SOCIAL SERVICES,PRIVATE,Revenue,EXTERNAL DAYCARE,549437,130245290,12-Dec-14,738.72,ACT TOO LTD,SP0000855
WANDSWORTH COUNCIL,ASC,SOCIAL SERVICES,PRIVATE,Revenue,EXTERNAL DAYCARE,549439,130245290,12-Dec-14,554.04,ACT TOO LTD,SP0000855
WANDSWORTH COUNCIL,ASC,SOCIAL SERVICES,PRIVATE,Revenue,EXTERNAL DAYCARE,549440,130245290,12-Dec-14,"1,108.08",ACT TOO LTD,SP0000855
WANDSWORTH COUNCIL,ASC,SOCIAL SERVICES,PRIVATE,Revenue,EXTERNAL DAYCARE,549443,130245290,12-Dec-14,554.04,ACT TOO LTD,SP0000855
WANDSWORTH COUNCIL,ASC,SOCIAL SERVICES,PRIVATE,Revenue,EXTERNAL DAYCARE,549444,130245290,12-Dec-14,554.04,ACT TOO LTD,SP0000855
WANDSWORTH COUNCIL,ASC,SOCIAL SERVICES,PRIVATE,Revenue,EXTERNAL DAYCARE,549445,130245290,12-Dec-14,923.40,ACT TOO LTD,SP0000855
WANDSWORTH COUNCIL,ASC,SOCIAL SERVICES,PRIVATE,Revenue,EXTERNAL DAYCARE,549447,130245290,12-Dec-14,554.04,ACT TOO LTD,SP0000855
WANDSWORTH COUNCIL,ASC,SOCIAL SERVICES,PRIVATE,Revenue,EXTERNAL DAYCARE,549450,130245290,12-Dec-14,554.04,ACT TOO LTD,SP0000855
WANDSWORTH COUNCIL,ASC,SOCIAL SERVICES,PRIVATE,Revenue,EXTERNAL DAYCARE,549452,130245290,12-Dec-14,554.04,ACT TOO LTD,SP0000855
WANDSWORTH COUNCIL,ASC,SOCIAL SERVICES,PRIVATE,Revenue,EXTERNAL DAYCARE,549457,130245290,12-Dec-14,923.40,ACT TOO LTD,SP0000855
WANDSWORTH COUNCIL,ASC,SOCIAL SERVICES,PRIVATE,Revenue,EXTERNAL DAYCARE,549460,130245290,12-Dec-14,554.04,ACT TOO LTD,SP0000855
WANDSWORTH COUNCIL,ASC,SOCIAL SERVICES,PRIVATE,Revenue,EXTERNAL DAYCARE,549464,130245290,12-Dec-14,554.04,ACT TOO LTD,SP0000855
WANDSWORTH COUNCIL,ASC,SOCIAL SERVICES,PRIVATE,Revenue,EXTERNAL DAYCARE,549465,130245290,12-Dec-14,554.04,ACT TOO LTD,SP0000855
WANDSWORTH COUNCIL,ASC,SOCIAL SERVICES,PRIVATE,Revenue,EXTERNAL DAYCARE,549468,130245290,12-Dec-14,738.72,ACT TOO LTD,SP0000855
WANDSWORTH COUNCIL,ASC,SOCIAL SERVICES,PRIVATE,Revenue,EXTERNAL DAYCARE,549470,130245290,12-Dec-14,554.04,ACT TOO LTD,SP0000855
WANDSWORTH COUNCIL,ASC,SOCIAL SERVICES,PRIVATE,Revenue,EXTERNAL DAYCARE,549472,130245290,12-Dec-14,923.40,ACT TOO LTD,SP0000855
WANDSWORTH COUNCIL,ASC,SOCIAL SERVICES,PRIVATE,Revenue,EXTERNAL DAYCARE,549474,130245290,12-Dec-14,554.04,ACT TOO LTD,SP0000855
WANDSWORTH COUNCIL,ASC,SOCIAL SERVICES,PRIVATE,Revenue,EXTERNAL DAYCARE,549476,130245290,12-Dec-14,554.04,ACT TOO LTD,SP0000855
WANDSWORTH COUNCIL,ASC,SOCIAL SERVICES,PRIVATE,Revenue,EXTERNAL DAYCARE,548487,130245290,11-Dec-14,750.56,ORIONE CARE,SP0000961
WANDSWORTH COUNCIL,ASC,SOCIAL SERVICES,PRIVATE,Revenue,EXTERNAL DAYCARE,548489,130245290,11-Dec-14,562.92,ORIONE CARE,SP0000961
WANDSWORTH COUNCIL,ASC,SOCIAL SERVICES,PRIVATE,Revenue,EXTERNAL DAYCARE,548493,130245290,11-Dec-14,"1,138.40",RIDGEWOOD CARE SERVICES LTD,SP0000969
WANDSWORTH COUNCIL,ASC,SOCIAL SERVICES,PRIVATE,Revenue,EXTERNAL DAYCARE,555705,130245290,19-Dec-14,"1,200.00",RIDGEWOOD CARE SERVICES LTD,SP0000969
WANDSWORTH COUNCIL,ASC,SOCIAL SERVICES,PRIVATE,Revenue,EXTERNAL DAYCARE,548490,130245290,11-Dec-14,820.60,SCOPE,SP0000991
WANDSWORTH COUNCIL,ASC,SOCIAL SERVICES,PRIVATE,Revenue,EXTERNAL DAYCARE,548491,130245290,11-Dec-14,596.80,SCOPE,SP0000991
WANDSWORTH COUNCIL,ASC,SOCIAL SERVICES,PRIVATE,Revenue,EXTERNAL DAYCARE,552912,130245290,18-Dec-14,880.00,THE HOME FARM TRUST LTD,SP0001048
WANDSWORTH COUNCIL,ASC,SOCIAL SERVICES,PRIVATE,Revenue,EXTERNAL DAYCARE,552981,130245290,18-Dec-14,990.00,THE HOME FARM TRUST LTD,SP0001048
WANDSWORTH COUNCIL,ASC,SOCIAL SERVICES,PRIVATE,Revenue,EXTERNAL DAYCARE,557783,130245290,23-Dec-14,"1,541.00",SUSSEX HEALTH CARE,SP0001115
WANDSWORTH COUNCIL,ASC,SOCIAL SERVICES,PRIVATE,Revenue,EXTERNAL DAYCARE,548848,130245290,11-Dec-14,"1,551.24",LONDON CARE PARTNERSHIP LTD,SP0001138
WANDSWORTH COUNCIL,ASC,SOCIAL SERVICES,PRIVATE,Revenue,EXTERNAL DAYCARE,552920,130245290,18-Dec-14,552.00,WORKSHOP 305,SP0001403
WANDSWORTH COUNCIL,ASC,SOCIAL SERVICES,PRIVATE,Revenue,EXTERNAL DAYCARE,552921,130245290,18-Dec-14,828.00,WORKSHOP 305,SP0001403
WANDSWORTH COUNCIL,ASC,SOCIAL SERVICES,PRIVATE,Revenue,EXTERNAL DAYCARE,552929,130245290,18-Dec-14,944.00,WORKSHOP 305,SP0001403
WANDSWORTH COUNCIL,ASC,SOCIAL SERVICES,PRIVATE,Revenue,EXTERNAL DAYCARE,552933,130245290,18-Dec-14,708.00,WORKSHOP 305,SP0001403
WANDSWORTH COUNCIL,ASC,SOCIAL SERVICES,PRIVATE,Revenue,EXTERNAL DAYCARE,552940,130245290,18-Dec-14,828.00,WORKSHOP 305,SP0001403
WANDSWORTH COUNCIL,ASC,SOCIAL SERVICES,PRIVATE,Revenue,EXTERNAL DAYCARE,552941,130245290,18-Dec-14,708.00,WORKSHOP 305,SP0001403
WANDSWORTH COUNCIL,ASC,SOCIAL SERVICES,PRIVATE,Revenue,EXTERNAL DAYCARE,552947,130245290,18-Dec-14,552.00,WORKSHOP 305,SP0001403
WANDSWORTH COUNCIL,ASC,SOCIAL SERVICES,PRIVATE,Revenue,EXTERNAL DAYCARE,552948,130245290,18-Dec-14,708.00,WORKSHOP 305,SP0001403
WANDSWORTH COUNCIL,ASC,SOCIAL SERVICES,PRIVATE,Revenue,EXTERNAL DAYCARE,552951,130245290,18-Dec-14,552.00,WORKSHOP 305,SP0001403
WANDSWORTH COUNCIL,ASC,SOCIAL SERVICES,PRIVATE,Revenue,EXTERNAL DAYCARE,552959,130245290,18-Dec-14,944.00,WORKSHOP 305,SP0001403
WANDSWORTH COUNCIL,ASC,SOCIAL SERVICES,PRIVATE,Revenue,EXTERNAL DAYCARE,541478,130245290,03-Dec-14,520.00,THE CAMDEN SOCIETY,SP0001674
WANDSWORTH COUNCIL,ASC,SOCIAL SERVICES,PRIVATE,Revenue,EXTERNAL DAYCARE,541479,130245290,03-Dec-14,520.00,THE CAMDEN SOCIETY,SP0001674
WANDSWORTH COUNCIL,ASC,SOCIAL SERVICES,PRIVATE,Revenue,EXTERNAL DAYCARE,541480,130245290,03-Dec-14,520.00,THE CAMDEN SOCIETY,SP0001674
WANDSWORTH COUNCIL,ASC,SOCIAL SERVICES,PRIVATE,Revenue,EXTERNAL DAYCARE,541481,130245290,03-Dec-14,520.00,THE CAMDEN SOCIETY,SP0001674
WANDSWORTH COUNCIL,ASC,SOCIAL SERVICES,PRIVATE,Revenue,EXTERNAL DAYCARE,541482,130245290,03-Dec-14,520.00,THE CAMDEN SOCIETY,SP0001674
WANDSWORTH COUNCIL,ASC,SOCIAL SERVICES,PRIVATE,Revenue,EXTERNAL DAYCARE,541483,130245290,03-Dec-14,520.00,THE CAMDEN SOCIETY,SP0001674
WANDSWORTH COUNCIL,ASC,SOCIAL SERVICES,PRIVATE,Revenue,EXTERNAL HOMECARE,548211,130245300,11-Dec-14,944.57,RAINBOW MEDICAL SERVICES,SP0000037
WANDSWORTH COUNCIL,ASC,SOCIAL SERVICES,PRIVATE,Revenue,EXTERNAL HOMECARE,552821,130245300,18-Dec-14,557.50,CARE UK HOMECARE LTD,SP0000081
WANDSWORTH COUNCIL,ASC,SOCIAL SERVICES,PRIVATE,Revenue,EXTERNAL HOMECARE,555720,130245300,19-Dec-14,595.42,CARE UK HOMECARE LTD,SP0000081
WANDSWORTH COUNCIL,ASC,SOCIAL SERVICES,PRIVATE,Revenue,EXTERNAL HOMECARE,548312,130245300,11-Dec-14,509.68,PLAN PERSONNEL,SP0000359
WANDSWORTH COUNCIL,ASC,SOCIAL SERVICES,PRIVATE,Revenue,EXTERNAL HOMECARE,552860,130245300,18-Dec-14,627.44,MUSHKIL AASAAN LTD,SP0000978
WANDSWORTH COUNCIL,ASC,SOCIAL SERVICES,PRIVATE,Revenue,EXTERNAL HOMECARE,557941,130245300,23-Dec-14,752.72,MUSHKIL AASAAN LTD,SP0000978
WANDSWORTH COUNCIL,ASC,SOCIAL SERVICES,PRIVATE,Revenue,EXTERNAL HOMECARE,549331,130245300,12-Dec-14,672.24,SOMA HEALTHCARE LTD,SP0001116
WANDSWORTH COUNCIL,ASC,SOCIAL SERVICES,PRIVATE,Revenue,EXTERNAL HOMECARE,549360,130245300,12-Dec-14,"2,022.43",MEARS CARE LTD,SP0001491
WANDSWORTH COUNCIL,ASC,SOCIAL SERVICES,PRIVATE,Revenue,EXTERNAL HOMECARE,557878,130245300,23-Dec-14,"3,232.00",CHRISTIES CARE LTD,SP0005440
WANDSWORTH COUNCIL,ASC,SOCIAL SERVICES,PRIVATE,Revenue,EXTERNAL HOMECARE,543553,130245300,08-Dec-14,"4,480.00",HFH HEALTHCARE,SP0005937
WANDSWORTH COUNCIL,ASC,SOCIAL SERVICES,PRIVATE,Revenue,EXTERNAL HOMECARE,560689,130245300,30-Dec-14,"4,480.00",HFH HEALTHCARE,SP0005937
WANDSWORTH COUNCIL,ASC,SOCIAL SERVICES,PRIVATE,Revenue,EXTERNAL NURSING CARE,557830,130245310,23-Dec-14,"5,975.84",WINGHAM COURT,SP0000025
WANDSWORTH COUNCIL,ASC,SOCIAL SERVICES,PRIVATE,Revenue,EXTERNAL NURSING CARE,548871,130245310,11-Dec-14,"4,439.72",RONALD GIBSON HOUSE,SP0000302
WANDSWORTH COUNCIL,ASC,SOCIAL SERVICES,PRIVATE,Revenue,EXTERNAL NURSING CARE,555675,130245310,19-Dec-14,"4,181.88",VOYAGE CARE LTD,SP0000366
WANDSWORTH COUNCIL,ASC,SOCIAL SERVICES,PRIVATE,Revenue,EXTERNAL NURSING CARE,555680,130245310,19-Dec-14,"7,887.51",VOYAGE CARE LTD,SP0000366
WANDSWORTH COUNCIL,ASC,SOCIAL SERVICES,PRIVATE,Revenue,EXTERNAL NURSING CARE,555695,130245310,19-Dec-14,"5,325.08",VOYAGE CARE LTD,SP0000366
WANDSWORTH COUNCIL,ASC,SOCIAL SERVICES,PRIVATE,Revenue,EXTERNAL NURSING CARE,544245,130245310,08-Dec-14,"6,364.89",ROYAL HOSPITAL FOR NEURO-DISABILITY,SP0000375
WANDSWORTH COUNCIL,ASC,SOCIAL SERVICES,PRIVATE,Revenue,EXTERNAL NURSING CARE,557745,130245310,23-Dec-14,"5,382.08",HIGH HURLANDS HOMES,SP0000668
WANDSWORTH COUNCIL,ASC,SOCIAL SERVICES,PRIVATE,Revenue,EXTERNAL NURSING CARE,545638,130245310,08-Dec-14,"2,787.60",TRINITY COURT NURSING HOME,SP0001001
WANDSWORTH COUNCIL,ASC,SOCIAL SERVICES,PRIVATE,Revenue,EXTERNAL NURSING CARE,557766,130245310,23-Dec-14,"8,454.89",SUSSEX HEALTH CARE,SP0001115
WANDSWORTH COUNCIL,ASC,SOCIAL SERVICES,PRIVATE,Revenue,EXTERNAL NURSING CARE,545686,130245310,08-Dec-14,"2,675.12",YORK COURT CARE HOME,SP0006091
WANDSWORTH COUNCIL,ASC,SOCIAL SERVICES,PRIVATE,Revenue,EXTERNAL RESIDENTIAL CARE,545523,130245330,08-Dec-14,"2,618.36",THE LYLE PARK TRUST,SP0000070
WANDSWORTH COUNCIL,ASC,SOCIAL SERVICES,PRIVATE,Revenue,EXTERNAL RESIDENTIAL CARE,544184,130245330,08-Dec-14,"5,632.12",CMG HOMES LTD,SP0000075
WANDSWORTH COUNCIL,ASC,SOCIAL SERVICES,PRIVATE,Revenue,EXTERNAL RESIDENTIAL CARE,544186,130245330,08-Dec-14,"3,911.48",CMG HOMES LTD,SP0000075
WANDSWORTH COUNCIL,ASC,SOCIAL SERVICES,PRIVATE,Revenue,EXTERNAL RESIDENTIAL CARE,544187,130245330,08-Dec-14,"6,007.12",CMG HOMES LTD,SP0000075
WANDSWORTH COUNCIL,ASC,SOCIAL SERVICES,PRIVATE,Revenue,EXTERNAL RESIDENTIAL CARE,544188,130245330,08-Dec-14,"5,553.00",CMG HOMES LTD,SP0000075
WANDSWORTH COUNCIL,ASC,SOCIAL SERVICES,PRIVATE,Revenue,EXTERNAL RESIDENTIAL CARE,544189,130245330,08-Dec-14,"4,372.00",CMG HOMES LTD,SP0000075
WANDSWORTH COUNCIL,ASC,SOCIAL SERVICES,PRIVATE,Revenue,EXTERNAL RESIDENTIAL CARE,544190,130245330,08-Dec-14,"8,061.00",CMG HOMES LTD,SP0000075
WANDSWORTH COUNCIL,ASC,SOCIAL SERVICES,PRIVATE,Revenue,EXTERNAL RESIDENTIAL CARE,544191,130245330,08-Dec-14,"4,866.36",CMG HOMES LTD,SP0000075
WANDSWORTH COUNCIL,ASC,SOCIAL SERVICES,PRIVATE,Revenue,EXTERNAL RESIDENTIAL CARE,544192,130245330,08-Dec-14,"4,646.00",CMG HOMES LTD,SP0000075
WANDSWORTH COUNCIL,ASC,SOCIAL SERVICES,PRIVATE,Revenue,EXTERNAL RESIDENTIAL CARE,544194,130245330,08-Dec-14,"7,123.64",CMG HOMES LTD,SP0000075
WANDSWORTH COUNCIL,ASC,SOCIAL SERVICES,PRIVATE,Revenue,EXTERNAL RESIDENTIAL CARE,544196,130245330,08-Dec-14,"4,415.60",CMG HOMES LTD,SP0000075
WANDSWORTH COUNCIL,ASC,SOCIAL SERVICES,PRIVATE,Revenue,EXTERNAL RESIDENTIAL CARE,548168,130245330,11-Dec-14,"5,632.12",CMG HOMES LTD,SP0000075
WANDSWORTH COUNCIL,ASC,SOCIAL SERVICES,PRIVATE,Revenue,EXTERNAL RESIDENTIAL CARE,548169,130245330,11-Dec-14,"3,911.48",CMG HOMES LTD,SP0000075
WANDSWORTH COUNCIL,ASC,SOCIAL SERVICES,PRIVATE,Revenue,EXTERNAL RESIDENTIAL CARE,548170,130245330,11-Dec-14,"6,007.12",CMG HOMES LTD,SP0000075
WANDSWORTH COUNCIL,ASC,SOCIAL SERVICES,PRIVATE,Revenue,EXTERNAL RESIDENTIAL CARE,548171,130245330,11-Dec-14,"5,553.00",CMG HOMES LTD,SP0000075
WANDSWORTH COUNCIL,ASC,SOCIAL SERVICES,PRIVATE,Revenue,EXTERNAL RESIDENTIAL CARE,548172,130245330,11-Dec-14,"8,061.00",CMG HOMES LTD,SP0000075
WANDSWORTH COUNCIL,ASC,SOCIAL SERVICES,PRIVATE,Revenue,EXTERNAL RESIDENTIAL CARE,548173,130245330,11-Dec-14,"4,866.36",CMG HOMES LTD,SP0000075
WANDSWORTH COUNCIL,ASC,SOCIAL SERVICES,PRIVATE,Revenue,EXTERNAL RESIDENTIAL CARE,548174,130245330,11-Dec-14,"4,646.00",CMG HOMES LTD,SP0000075
WANDSWORTH COUNCIL,ASC,SOCIAL SERVICES,PRIVATE,Revenue,EXTERNAL RESIDENTIAL CARE,548176,130245330,11-Dec-14,"7,123.64",CMG HOMES LTD,SP0000075
WANDSWORTH COUNCIL,ASC,SOCIAL SERVICES,PRIVATE,Revenue,EXTERNAL RESIDENTIAL CARE,555660,130245330,19-Dec-14,"3,449.59",COUNTRY CARE,SP0000090
WANDSWORTH COUNCIL,ASC,SOCIAL SERVICES,PRIVATE,Revenue,EXTERNAL RESIDENTIAL CARE,557749,130245330,23-Dec-14,"7,500.01",NATIONAL SOCIETY FOR EPILEPSY,SP0000120
WANDSWORTH COUNCIL,ASC,SOCIAL SERVICES,PRIVATE,Revenue,EXTERNAL RESIDENTIAL CARE,545384,130245330,08-Dec-14,"2,162.32",SANCTUARY CARE LTD,SP0000121
WANDSWORTH COUNCIL,ASC,SOCIAL SERVICES,PRIVATE,Revenue,EXTERNAL RESIDENTIAL CARE,548847,130245330,11-Dec-14,"5,025.37",IN CHORUS LTD,SP0000129
WANDSWORTH COUNCIL,ASC,SOCIAL SERVICES,PRIVATE,Revenue,EXTERNAL RESIDENTIAL CARE,552717,130245330,18-Dec-14,"5,025.36",IN CHORUS LTD,SP0000129
WANDSWORTH COUNCIL,ASC,SOCIAL SERVICES,PRIVATE,Revenue,EXTERNAL RESIDENTIAL CARE,539627,130245330,01-Dec-14,"9,882.30",THE MAPLES,SP0000154
WANDSWORTH COUNCIL,ASC,SOCIAL SERVICES,PRIVATE,Revenue,EXTERNAL RESIDENTIAL CARE,555663,130245330,19-Dec-14,"9,223.48",THE MAPLES,SP0000154
WANDSWORTH COUNCIL,ASC,SOCIAL SERVICES,PRIVATE,Revenue,EXTERNAL RESIDENTIAL CARE,544291,130245330,08-Dec-14,"5,555.16",THE CHESTNUTS,SP0000182
WANDSWORTH COUNCIL,ASC,SOCIAL SERVICES,PRIVATE,Revenue,EXTERNAL RESIDENTIAL CARE,560464,130245330,30-Dec-14,"4,593.96",THE CHESTNUTS,SP0000182
WANDSWORTH COUNCIL,ASC,SOCIAL SERVICES,PRIVATE,Revenue,EXTERNAL RESIDENTIAL CARE,560465,130245330,30-Dec-14,"4,593.96",THE CHESTNUTS,SP0000182
WANDSWORTH COUNCIL,ASC,SOCIAL SERVICES,PRIVATE,Revenue,EXTERNAL RESIDENTIAL CARE,552777,130245330,18-Dec-14,"1,647.40",ORCHARD VALE TRUST,SP0000214
WANDSWORTH COUNCIL,ASC,SOCIAL SERVICES,PRIVATE,Revenue,EXTERNAL RESIDENTIAL CARE,539581,130245330,01-Dec-14,"3,834.00",ST MARYS RESIDENTIAL HOME,SP0000215
WANDSWORTH COUNCIL,ASC,SOCIAL SERVICES,PRIVATE,Revenue,EXTERNAL RESIDENTIAL CARE,539582,130245330,01-Dec-14,"3,467.14",ST MARYS RESIDENTIAL HOME,SP0000215
WANDSWORTH COUNCIL,ASC,SOCIAL SERVICES,PRIVATE,Revenue,EXTERNAL RESIDENTIAL CARE,539583,130245330,01-Dec-14,"3,772.97",ST MARYS RESIDENTIAL HOME,SP0000215
WANDSWORTH COUNCIL,ASC,SOCIAL SERVICES,PRIVATE,Revenue,EXTERNAL RESIDENTIAL CARE,539584,130245330,01-Dec-14,"4,962.08",ST MARYS RESIDENTIAL HOME,SP0000215
WANDSWORTH COUNCIL,ASC,SOCIAL SERVICES,PRIVATE,Revenue,EXTERNAL RESIDENTIAL CARE,539585,130245330,01-Dec-14,"3,454.67",ST MARYS RESIDENTIAL HOME,SP0000215
WANDSWORTH COUNCIL,ASC,SOCIAL SERVICES,PRIVATE,Revenue,EXTERNAL RESIDENTIAL CARE,539586,130245330,01-Dec-14,"3,591.90",ST MARYS RESIDENTIAL HOME,SP0000215
WANDSWORTH COUNCIL,ASC,SOCIAL SERVICES,PRIVATE,Revenue,EXTERNAL RESIDENTIAL CARE,539587,130245330,01-Dec-14,"3,033.08",ST MARYS RESIDENTIAL HOME,SP0000215
WANDSWORTH COUNCIL,ASC,SOCIAL SERVICES,PRIVATE,Revenue,EXTERNAL RESIDENTIAL CARE,539588,130245330,01-Dec-14,"4,878.72",ST MARYS RESIDENTIAL HOME,SP0000215
WANDSWORTH COUNCIL,ASC,SOCIAL SERVICES,PRIVATE,Revenue,EXTERNAL RESIDENTIAL CARE,539589,130245330,01-Dec-14,"3,503.01",ST MARYS RESIDENTIAL HOME,SP0000215
WANDSWORTH COUNCIL,ASC,SOCIAL SERVICES,PRIVATE,Revenue,EXTERNAL RESIDENTIAL CARE,539590,130245330,01-Dec-14,"3,467.14",ST MARYS RESIDENTIAL HOME,SP0000215
WANDSWORTH COUNCIL,ASC,SOCIAL SERVICES,PRIVATE,Revenue,EXTERNAL RESIDENTIAL CARE,539591,130245330,01-Dec-14,"3,269.48",ST MARYS RESIDENTIAL HOME,SP0000215
WANDSWORTH COUNCIL,ASC,SOCIAL SERVICES,PRIVATE,Revenue,EXTERNAL RESIDENTIAL CARE,539592,130245330,01-Dec-14,"2,238.85",ST MARYS RESIDENTIAL HOME,SP0000215
WANDSWORTH COUNCIL,ASC,SOCIAL SERVICES,PRIVATE,Revenue,EXTERNAL RESIDENTIAL CARE,539593,130245330,01-Dec-14,"3,101.12",ST MARYS RESIDENTIAL HOME,SP0000215
WANDSWORTH COUNCIL,ASC,SOCIAL SERVICES,PRIVATE,Revenue,EXTERNAL RESIDENTIAL CARE,539594,130245330,01-Dec-14,"3,723.12",ST MARYS RESIDENTIAL HOME,SP0000215
WANDSWORTH COUNCIL,ASC,SOCIAL SERVICES,PRIVATE,Revenue,EXTERNAL RESIDENTIAL CARE,541447,130245330,03-Dec-14,"5,036.44",ST MARYS RESIDENTIAL HOME,SP0000215
WANDSWORTH COUNCIL,ASC,SOCIAL SERVICES,PRIVATE,Revenue,EXTERNAL RESIDENTIAL CARE,541448,130245330,03-Dec-14,"9,676.36",ST MARYS RESIDENTIAL HOME,SP0000215
WANDSWORTH COUNCIL,ASC,SOCIAL SERVICES,PRIVATE,Revenue,EXTERNAL RESIDENTIAL CARE,552790,130245330,18-Dec-14,"3,961.80",ST MARYS RESIDENTIAL HOME,SP0000215
WANDSWORTH COUNCIL,ASC,SOCIAL SERVICES,PRIVATE,Revenue,EXTERNAL RESIDENTIAL CARE,552791,130245330,18-Dec-14,"3,582.71",ST MARYS RESIDENTIAL HOME,SP0000215
WANDSWORTH COUNCIL,ASC,SOCIAL SERVICES,PRIVATE,Revenue,EXTERNAL RESIDENTIAL CARE,552792,130245330,18-Dec-14,"3,898.73",ST MARYS RESIDENTIAL HOME,SP0000215
WANDSWORTH COUNCIL,ASC,SOCIAL SERVICES,PRIVATE,Revenue,EXTERNAL RESIDENTIAL CARE,552793,130245330,18-Dec-14,"3,569.82",ST MARYS RESIDENTIAL HOME,SP0000215
WANDSWORTH COUNCIL,ASC,SOCIAL SERVICES,PRIVATE,Revenue,EXTERNAL RESIDENTIAL CARE,552794,130245330,18-Dec-14,"3,711.63",ST MARYS RESIDENTIAL HOME,SP0000215
WANDSWORTH COUNCIL,ASC,SOCIAL SERVICES,PRIVATE,Revenue,EXTERNAL RESIDENTIAL CARE,552795,130245330,18-Dec-14,"3,134.18",ST MARYS RESIDENTIAL HOME,SP0000215
WANDSWORTH COUNCIL,ASC,SOCIAL SERVICES,PRIVATE,Revenue,EXTERNAL RESIDENTIAL CARE,552796,130245330,18-Dec-14,"5,041.35",ST MARYS RESIDENTIAL HOME,SP0000215
WANDSWORTH COUNCIL,ASC,SOCIAL SERVICES,PRIVATE,Revenue,EXTERNAL RESIDENTIAL CARE,552797,130245330,18-Dec-14,"3,619.78",ST MARYS RESIDENTIAL HOME,SP0000215
WANDSWORTH COUNCIL,ASC,SOCIAL SERVICES,PRIVATE,Revenue,EXTERNAL RESIDENTIAL CARE,552798,130245330,18-Dec-14,"3,582.71",ST MARYS RESIDENTIAL HOME,SP0000215
WANDSWORTH COUNCIL,ASC,SOCIAL SERVICES,PRIVATE,Revenue,EXTERNAL RESIDENTIAL CARE,552799,130245330,18-Dec-14,"3,269.48",ST MARYS RESIDENTIAL HOME,SP0000215
WANDSWORTH COUNCIL,ASC,SOCIAL SERVICES,PRIVATE,Revenue,EXTERNAL RESIDENTIAL CARE,552800,130245330,18-Dec-14,"3,542.85",ST MARYS RESIDENTIAL HOME,SP0000215
WANDSWORTH COUNCIL,ASC,SOCIAL SERVICES,PRIVATE,Revenue,EXTERNAL RESIDENTIAL CARE,552801,130245330,18-Dec-14,"3,101.12",ST MARYS RESIDENTIAL HOME,SP0000215
WANDSWORTH COUNCIL,ASC,SOCIAL SERVICES,PRIVATE,Revenue,EXTERNAL RESIDENTIAL CARE,552802,130245330,18-Dec-14,"3,723.12",ST MARYS RESIDENTIAL HOME,SP0000215
WANDSWORTH COUNCIL,ASC,SOCIAL SERVICES,PRIVATE,Revenue,EXTERNAL RESIDENTIAL CARE,542617,130245330,04-Dec-14,"5,487.72",NAS SERVICES LIMITED,SP0000217
WANDSWORTH COUNCIL,ASC,SOCIAL SERVICES,PRIVATE,Revenue,EXTERNAL RESIDENTIAL CARE,542618,130245330,04-Dec-14,"8,645.88",NAS SERVICES LIMITED,SP0000217
WANDSWORTH COUNCIL,ASC,SOCIAL SERVICES,PRIVATE,Revenue,EXTERNAL RESIDENTIAL CARE,548875,130245330,11-Dec-14,"8,720.00",SPRING LAKE,SP0000223
WANDSWORTH COUNCIL,ASC,SOCIAL SERVICES,PRIVATE,Revenue,EXTERNAL RESIDENTIAL CARE,548876,130245330,11-Dec-14,"7,600.00",SPRING LAKE,SP0000223
WANDSWORTH COUNCIL,ASC,SOCIAL SERVICES,PRIVATE,Revenue,EXTERNAL RESIDENTIAL CARE,544209,130245330,08-Dec-14,"3,724.72",HAYDON PARK LODGE LTD,SP0000231
WANDSWORTH COUNCIL,ASC,SOCIAL SERVICES,PRIVATE,Revenue,EXTERNAL RESIDENTIAL CARE,557784,130245330,23-Dec-14,"4,689.36",CAMERON LODGE LIMITED,SP0000271
WANDSWORTH COUNCIL,ASC,SOCIAL SERVICES,PRIVATE,Revenue,EXTERNAL RESIDENTIAL CARE,555656,130245330,19-Dec-14,"7,787.01",BROOKDALE CARE,SP0000282
WANDSWORTH COUNCIL,ASC,SOCIAL SERVICES,PRIVATE,Revenue,EXTERNAL RESIDENTIAL CARE,555657,130245330,19-Dec-14,"8,046.58",BROOKDALE CARE,SP0000282
WANDSWORTH COUNCIL,ASC,SOCIAL SERVICES,PRIVATE,Revenue,EXTERNAL RESIDENTIAL CARE,548831,130245330,11-Dec-14,"3,029.72",CRAEGMOOR FACILITIES CO LTD,SP0000306
WANDSWORTH COUNCIL,ASC,SOCIAL SERVICES,PRIVATE,Revenue,EXTERNAL RESIDENTIAL CARE,552746,130245330,18-Dec-14,"6,206.86",RESIDENTIAL COMMUNITY CARE,SP0000315
WANDSWORTH COUNCIL,ASC,SOCIAL SERVICES,PRIVATE,Revenue,EXTERNAL RESIDENTIAL CARE,552747,130245330,18-Dec-14,"6,263.46",RESIDENTIAL COMMUNITY CARE,SP0000315
WANDSWORTH COUNCIL,ASC,SOCIAL SERVICES,PRIVATE,Revenue,EXTERNAL RESIDENTIAL CARE,552748,130245330,18-Dec-14,"6,263.46",RESIDENTIAL COMMUNITY CARE,SP0000315
WANDSWORTH COUNCIL,ASC,SOCIAL SERVICES,PRIVATE,Revenue,EXTERNAL RESIDENTIAL CARE,548877,130245330,11-Dec-14,"5,476.25",DOLPHIN HOMES LTD,SP0000331
WANDSWORTH COUNCIL,ASC,SOCIAL SERVICES,PRIVATE,Revenue,EXTERNAL RESIDENTIAL CARE,548878,130245330,11-Dec-14,"4,311.16",DOLPHIN HOMES LTD,SP0000331
WANDSWORTH COUNCIL,ASC,SOCIAL SERVICES,PRIVATE,Revenue,EXTERNAL RESIDENTIAL CARE,557821,130245330,23-Dec-14,"5,476.25",DOLPHIN HOMES LTD,SP0000331
WANDSWORTH COUNCIL,ASC,SOCIAL SERVICES,PRIVATE,Revenue,EXTERNAL RESIDENTIAL CARE,557822,130245330,23-Dec-14,"4,311.16",DOLPHIN HOMES LTD,SP0000331
WANDSWORTH COUNCIL,ASC,SOCIAL SERVICES,PRIVATE,Revenue,EXTERNAL RESIDENTIAL CARE,548869,130245330,11-Dec-14,"6,154.44",NORWOOD SCHOOLS LTD,SP0000332
WANDSWORTH COUNCIL,ASC,SOCIAL SERVICES,PRIVATE,Revenue,EXTERNAL RESIDENTIAL CARE,548870,130245330,11-Dec-14,"6,409.80",NORWOOD SCHOOLS LTD,SP0000332
WANDSWORTH COUNCIL,ASC,SOCIAL SERVICES,PRIVATE,Revenue,EXTERNAL RESIDENTIAL CARE,544290,130245330,08-Dec-14,"3,107.14",HEYWOODS GRANGE LTD,SP0000361
WANDSWORTH COUNCIL,ASC,SOCIAL SERVICES,PRIVATE,Revenue,EXTERNAL RESIDENTIAL CARE,555667,130245330,19-Dec-14,"2,571.36",HEYWOODS GRANGE LTD,SP0000361
WANDSWORTH COUNCIL,ASC,SOCIAL SERVICES,PRIVATE,Revenue,EXTERNAL RESIDENTIAL CARE,555679,130245330,19-Dec-14,"5,979.28",VOYAGE CARE LTD,SP0000366
WANDSWORTH COUNCIL,ASC,SOCIAL SERVICES,PRIVATE,Revenue,EXTERNAL RESIDENTIAL CARE,555684,130245330,19-Dec-14,"7,444.36",VOYAGE CARE LTD,SP0000366
WANDSWORTH COUNCIL,ASC,SOCIAL SERVICES,PRIVATE,Revenue,EXTERNAL RESIDENTIAL CARE,555697,130245330,19-Dec-14,"6,091.76",VOYAGE CARE LTD,SP0000366
WANDSWORTH COUNCIL,ASC,SOCIAL SERVICES,PRIVATE,Revenue,EXTERNAL RESIDENTIAL CARE,555698,130245330,19-Dec-14,"6,127.81",VOYAGE CARE LTD,SP0000366
WANDSWORTH COUNCIL,ASC,SOCIAL SERVICES,PRIVATE,Revenue,EXTERNAL RESIDENTIAL CARE,555699,130245330,19-Dec-14,"7,325.71",VOYAGE CARE LTD,SP0000366
WANDSWORTH COUNCIL,ASC,SOCIAL SERVICES,PRIVATE,Revenue,EXTERNAL RESIDENTIAL CARE,555703,130245330,19-Dec-14,"6,441.12",VOYAGE CARE LTD,SP0000366
WANDSWORTH COUNCIL,ASC,SOCIAL SERVICES,PRIVATE,Revenue,EXTERNAL RESIDENTIAL CARE,555704,130245330,19-Dec-14,"7,766.72",VOYAGE CARE LTD,SP0000366
WANDSWORTH COUNCIL,ASC,SOCIAL SERVICES,PRIVATE,Revenue,EXTERNAL RESIDENTIAL CARE,557762,130245330,23-Dec-14,"2,178.12",ST DAVIDS CARE IN THE COMMUNITY,SP0000379
WANDSWORTH COUNCIL,ASC,SOCIAL SERVICES,PRIVATE,Revenue,EXTERNAL RESIDENTIAL CARE,557763,130245330,23-Dec-14,"2,625.12",ST DAVIDS CARE IN THE COMMUNITY,SP0000379
WANDSWORTH COUNCIL,ASC,SOCIAL SERVICES,PRIVATE,Revenue,EXTERNAL RESIDENTIAL CARE,557764,130245330,23-Dec-14,"2,178.12",ST DAVIDS CARE IN THE COMMUNITY,SP0000379
WANDSWORTH COUNCIL,ASC,SOCIAL SERVICES,PRIVATE,Revenue,EXTERNAL RESIDENTIAL CARE,557809,130245330,23-Dec-14,"5,646.25",ESSEX CARE CONSORTIUM,SP0000387
WANDSWORTH COUNCIL,ASC,SOCIAL SERVICES,PRIVATE,Revenue,EXTERNAL RESIDENTIAL CARE,560457,130245330,30-Dec-14,"3,135.60",POTENSIAL LTD,SP0000395
WANDSWORTH COUNCIL,ASC,SOCIAL SERVICES,PRIVATE,Revenue,EXTERNAL RESIDENTIAL CARE,552788,130245330,18-Dec-14,"3,976.83",KENILWORTH RESIDENTIAL HOME,SP0000432
WANDSWORTH COUNCIL,ASC,SOCIAL SERVICES,PRIVATE,Revenue,EXTERNAL RESIDENTIAL CARE,552789,130245330,18-Dec-14,"4,150.04",KENILWORTH RESIDENTIAL HOME,SP0000432
WANDSWORTH COUNCIL,ASC,SOCIAL SERVICES,PRIVATE,Revenue,EXTERNAL RESIDENTIAL CARE,552753,130245330,18-Dec-14,"4,654.08",THE WELL HOUSE,SP0000448
WANDSWORTH COUNCIL,ASC,SOCIAL SERVICES,PRIVATE,Revenue,EXTERNAL RESIDENTIAL CARE,552754,130245330,18-Dec-14,"4,403.76",THE WELL HOUSE,SP0000448
WANDSWORTH COUNCIL,ASC,SOCIAL SERVICES,PRIVATE,Revenue,EXTERNAL RESIDENTIAL CARE,542615,130245330,04-Dec-14,"14,882.57",MACINTYRE CARE,SP0000473
WANDSWORTH COUNCIL,ASC,SOCIAL SERVICES,PRIVATE,Revenue,EXTERNAL RESIDENTIAL CARE,542616,130245330,04-Dec-14,"4,296.00",MACINTYRE CARE,SP0000473
WANDSWORTH COUNCIL,ASC,SOCIAL SERVICES,PRIVATE,Revenue,EXTERNAL RESIDENTIAL CARE,544197,130245330,08-Dec-14,"5,206.28",MACINTYRE CARE,SP0000473
WANDSWORTH COUNCIL,ASC,SOCIAL SERVICES,PRIVATE,Revenue,EXTERNAL RESIDENTIAL CARE,544198,130245330,08-Dec-14,"3,759.64",MACINTYRE CARE,SP0000473
WANDSWORTH COUNCIL,ASC,SOCIAL SERVICES,PRIVATE,Revenue,EXTERNAL RESIDENTIAL CARE,544199,130245330,08-Dec-14,"5,429.64",MACINTYRE CARE,SP0000473
WANDSWORTH COUNCIL,ASC,SOCIAL SERVICES,PRIVATE,Revenue,EXTERNAL RESIDENTIAL CARE,544201,130245330,08-Dec-14,"3,759.64",MACINTYRE CARE,SP0000473
WANDSWORTH COUNCIL,ASC,SOCIAL SERVICES,PRIVATE,Revenue,EXTERNAL RESIDENTIAL CARE,544202,130245330,08-Dec-14,"5,192.48",MACINTYRE CARE,SP0000473
WANDSWORTH COUNCIL,ASC,SOCIAL SERVICES,PRIVATE,Revenue,EXTERNAL RESIDENTIAL CARE,544203,130245330,08-Dec-14,"3,750.72",MACINTYRE CARE,SP0000473
WANDSWORTH COUNCIL,ASC,SOCIAL SERVICES,PRIVATE,Revenue,EXTERNAL RESIDENTIAL CARE,544204,130245330,08-Dec-14,"3,813.84",MACINTYRE CARE,SP0000473
WANDSWORTH COUNCIL,ASC,SOCIAL SERVICES,PRIVATE,Revenue,EXTERNAL RESIDENTIAL CARE,544205,130245330,08-Dec-14,"4,998.84",MACINTYRE CARE,SP0000473
WANDSWORTH COUNCIL,ASC,SOCIAL SERVICES,PRIVATE,Revenue,EXTERNAL RESIDENTIAL CARE,544206,130245330,08-Dec-14,"5,097.20",MACINTYRE CARE,SP0000473
WANDSWORTH COUNCIL,ASC,SOCIAL SERVICES,PRIVATE,Revenue,EXTERNAL RESIDENTIAL CARE,544208,130245330,08-Dec-14,"2,301.48",MACINTYRE CARE,SP0000473
WANDSWORTH COUNCIL,ASC,SOCIAL SERVICES,PRIVATE,Revenue,EXTERNAL RESIDENTIAL CARE,544210,130245330,08-Dec-14,"8,054.24",MACINTYRE CARE,SP0000473
WANDSWORTH COUNCIL,ASC,SOCIAL SERVICES,PRIVATE,Revenue,EXTERNAL RESIDENTIAL CARE,544211,130245330,08-Dec-14,"5,026.36",MACINTYRE CARE,SP0000473
WANDSWORTH COUNCIL,ASC,SOCIAL SERVICES,PRIVATE,Revenue,EXTERNAL RESIDENTIAL CARE,544212,130245330,08-Dec-14,"5,429.76",MACINTYRE CARE,SP0000473
WANDSWORTH COUNCIL,ASC,SOCIAL SERVICES,PRIVATE,Revenue,EXTERNAL RESIDENTIAL CARE,544214,130245330,08-Dec-14,"4,909.16",MACINTYRE CARE,SP0000473
WANDSWORTH COUNCIL,ASC,SOCIAL SERVICES,PRIVATE,Revenue,EXTERNAL RESIDENTIAL CARE,544215,130245330,08-Dec-14,"4,909.16",MACINTYRE CARE,SP0000473
WANDSWORTH COUNCIL,ASC,SOCIAL SERVICES,PRIVATE,Revenue,EXTERNAL RESIDENTIAL CARE,544217,130245330,08-Dec-14,"4,907.76",MACINTYRE CARE,SP0000473
WANDSWORTH COUNCIL,ASC,SOCIAL SERVICES,PRIVATE,Revenue,EXTERNAL RESIDENTIAL CARE,544218,130245330,08-Dec-14,"4,907.76",MACINTYRE CARE,SP0000473
WANDSWORTH COUNCIL,ASC,SOCIAL SERVICES,PRIVATE,Revenue,EXTERNAL RESIDENTIAL CARE,544219,130245330,08-Dec-14,"4,901.68",MACINTYRE CARE,SP0000473
WANDSWORTH COUNCIL,ASC,SOCIAL SERVICES,PRIVATE,Revenue,EXTERNAL RESIDENTIAL CARE,544220,130245330,08-Dec-14,"5,030.56",MACINTYRE CARE,SP0000473
WANDSWORTH COUNCIL,ASC,SOCIAL SERVICES,PRIVATE,Revenue,EXTERNAL RESIDENTIAL CARE,544221,130245330,08-Dec-14,"4,907.76",MACINTYRE CARE,SP0000473
WANDSWORTH COUNCIL,ASC,SOCIAL SERVICES,PRIVATE,Revenue,EXTERNAL RESIDENTIAL CARE,552757,130245330,18-Dec-14,"3,759.64",MACINTYRE CARE,SP0000473
WANDSWORTH COUNCIL,ASC,SOCIAL SERVICES,PRIVATE,Revenue,EXTERNAL RESIDENTIAL CARE,552758,130245330,18-Dec-14,"5,206.28",MACINTYRE CARE,SP0000473
WANDSWORTH COUNCIL,ASC,SOCIAL SERVICES,PRIVATE,Revenue,EXTERNAL RESIDENTIAL CARE,552759,130245330,18-Dec-14,"3,759.64",MACINTYRE CARE,SP0000473
WANDSWORTH COUNCIL,ASC,SOCIAL SERVICES,PRIVATE,Revenue,EXTERNAL RESIDENTIAL CARE,552760,130245330,18-Dec-14,"5,192.48",MACINTYRE CARE,SP0000473
WANDSWORTH COUNCIL,ASC,SOCIAL SERVICES,PRIVATE,Revenue,EXTERNAL RESIDENTIAL CARE,552761,130245330,18-Dec-14,"3,750.72",MACINTYRE CARE,SP0000473
WANDSWORTH COUNCIL,ASC,SOCIAL SERVICES,PRIVATE,Revenue,EXTERNAL RESIDENTIAL CARE,552762,130245330,18-Dec-14,"5,097.20",MACINTYRE CARE,SP0000473
WANDSWORTH COUNCIL,ASC,SOCIAL SERVICES,PRIVATE,Revenue,EXTERNAL RESIDENTIAL CARE,552763,130245330,18-Dec-14,"8,054.24",MACINTYRE CARE,SP0000473
WANDSWORTH COUNCIL,ASC,SOCIAL SERVICES,PRIVATE,Revenue,EXTERNAL RESIDENTIAL CARE,552764,130245330,18-Dec-14,"5,026.36",MACINTYRE CARE,SP0000473
WANDSWORTH COUNCIL,ASC,SOCIAL SERVICES,PRIVATE,Revenue,EXTERNAL RESIDENTIAL CARE,552765,130245330,18-Dec-14,"5,429.76",MACINTYRE CARE,SP0000473
WANDSWORTH COUNCIL,ASC,SOCIAL SERVICES,PRIVATE,Revenue,EXTERNAL RESIDENTIAL CARE,552766,130245330,18-Dec-14,"4,296.00",MACINTYRE CARE,SP0000473
WANDSWORTH COUNCIL,ASC,SOCIAL SERVICES,PRIVATE,Revenue,EXTERNAL RESIDENTIAL CARE,552767,130245330,18-Dec-14,"4,909.16",MACINTYRE CARE,SP0000473
WANDSWORTH COUNCIL,ASC,SOCIAL SERVICES,PRIVATE,Revenue,EXTERNAL RESIDENTIAL CARE,552768,130245330,18-Dec-14,"4,909.16",MACINTYRE CARE,SP0000473
WANDSWORTH COUNCIL,ASC,SOCIAL SERVICES,PRIVATE,Revenue,EXTERNAL RESIDENTIAL CARE,552769,130245330,18-Dec-14,"4,907.76",MACINTYRE CARE,SP0000473
WANDSWORTH COUNCIL,ASC,SOCIAL SERVICES,PRIVATE,Revenue,EXTERNAL RESIDENTIAL CARE,552770,130245330,18-Dec-14,"4,901.68",MACINTYRE CARE,SP0000473
WANDSWORTH COUNCIL,ASC,SOCIAL SERVICES,PRIVATE,Revenue,EXTERNAL RESIDENTIAL CARE,552771,130245330,18-Dec-14,"5,030.56",MACINTYRE CARE,SP0000473
WANDSWORTH COUNCIL,ASC,SOCIAL SERVICES,PRIVATE,Revenue,EXTERNAL RESIDENTIAL CARE,552772,130245330,18-Dec-14,"4,907.76",MACINTYRE CARE,SP0000473
WANDSWORTH COUNCIL,ASC,SOCIAL SERVICES,PRIVATE,Revenue,EXTERNAL RESIDENTIAL CARE,552773,130245330,18-Dec-14,"5,429.64",MACINTYRE CARE,SP0000473
WANDSWORTH COUNCIL,ASC,SOCIAL SERVICES,PRIVATE,Revenue,EXTERNAL RESIDENTIAL CARE,552775,130245330,18-Dec-14,"3,813.84",MACINTYRE CARE,SP0000473
WANDSWORTH COUNCIL,ASC,SOCIAL SERVICES,PRIVATE,Revenue,EXTERNAL RESIDENTIAL CARE,552776,130245330,18-Dec-14,"1,241.27",MACINTYRE CARE,SP0000473
WANDSWORTH COUNCIL,ASC,SOCIAL SERVICES,PRIVATE,Revenue,EXTERNAL RESIDENTIAL CARE,552778,130245330,18-Dec-14,"2,301.48",MACINTYRE CARE,SP0000473
WANDSWORTH COUNCIL,ASC,SOCIAL SERVICES,PRIVATE,Revenue,EXTERNAL RESIDENTIAL CARE,555637,130245330,19-Dec-14,"4,907.76",MACINTYRE CARE,SP0000473
WANDSWORTH COUNCIL,ASC,SOCIAL SERVICES,PRIVATE,Revenue,EXTERNAL RESIDENTIAL CARE,560411,130245330,30-Dec-14,"5,206.28",MACINTYRE CARE,SP0000473
WANDSWORTH COUNCIL,ASC,SOCIAL SERVICES,PRIVATE,Revenue,EXTERNAL RESIDENTIAL CARE,560412,130245330,30-Dec-14,"3,759.64",MACINTYRE CARE,SP0000473
WANDSWORTH COUNCIL,ASC,SOCIAL SERVICES,PRIVATE,Revenue,EXTERNAL RESIDENTIAL CARE,560413,130245330,30-Dec-14,"5,429.64",MACINTYRE CARE,SP0000473
WANDSWORTH COUNCIL,ASC,SOCIAL SERVICES,PRIVATE,Revenue,EXTERNAL RESIDENTIAL CARE,560415,130245330,30-Dec-14,"3,759.64",MACINTYRE CARE,SP0000473
WANDSWORTH COUNCIL,ASC,SOCIAL SERVICES,PRIVATE,Revenue,EXTERNAL RESIDENTIAL CARE,560416,130245330,30-Dec-14,"5,192.48",MACINTYRE CARE,SP0000473
WANDSWORTH COUNCIL,ASC,SOCIAL SERVICES,PRIVATE,Revenue,EXTERNAL RESIDENTIAL CARE,560417,130245330,30-Dec-14,"3,750.72",MACINTYRE CARE,SP0000473
WANDSWORTH COUNCIL,ASC,SOCIAL SERVICES,PRIVATE,Revenue,EXTERNAL RESIDENTIAL CARE,560418,130245330,30-Dec-14,"3,813.84",MACINTYRE CARE,SP0000473
WANDSWORTH COUNCIL,ASC,SOCIAL SERVICES,PRIVATE,Revenue,EXTERNAL RESIDENTIAL CARE,560419,130245330,30-Dec-14,"4,998.84",MACINTYRE CARE,SP0000473
WANDSWORTH COUNCIL,ASC,SOCIAL SERVICES,PRIVATE,Revenue,EXTERNAL RESIDENTIAL CARE,560420,130245330,30-Dec-14,"5,097.20",MACINTYRE CARE,SP0000473
WANDSWORTH COUNCIL,ASC,SOCIAL SERVICES,PRIVATE,Revenue,EXTERNAL RESIDENTIAL CARE,560421,130245330,30-Dec-14,"8,054.24",MACINTYRE CARE,SP0000473
WANDSWORTH COUNCIL,ASC,SOCIAL SERVICES,PRIVATE,Revenue,EXTERNAL RESIDENTIAL CARE,560422,130245330,30-Dec-14,"5,026.36",MACINTYRE CARE,SP0000473
WANDSWORTH COUNCIL,ASC,SOCIAL SERVICES,PRIVATE,Revenue,EXTERNAL RESIDENTIAL CARE,560423,130245330,30-Dec-14,"5,429.76",MACINTYRE CARE,SP0000473
WANDSWORTH COUNCIL,ASC,SOCIAL SERVICES,PRIVATE,Revenue,EXTERNAL RESIDENTIAL CARE,560424,130245330,30-Dec-14,"4,296.00",MACINTYRE CARE,SP0000473
WANDSWORTH COUNCIL,ASC,SOCIAL SERVICES,PRIVATE,Revenue,EXTERNAL RESIDENTIAL CARE,560425,130245330,30-Dec-14,"4,909.16",MACINTYRE CARE,SP0000473
WANDSWORTH COUNCIL,ASC,SOCIAL SERVICES,PRIVATE,Revenue,EXTERNAL RESIDENTIAL CARE,560426,130245330,30-Dec-14,"4,909.16",MACINTYRE CARE,SP0000473
WANDSWORTH COUNCIL,ASC,SOCIAL SERVICES,PRIVATE,Revenue,EXTERNAL RESIDENTIAL CARE,560428,130245330,30-Dec-14,"4,907.76",MACINTYRE CARE,SP0000473
WANDSWORTH COUNCIL,ASC,SOCIAL SERVICES,PRIVATE,Revenue,EXTERNAL RESIDENTIAL CARE,560429,130245330,30-Dec-14,"4,907.76",MACINTYRE CARE,SP0000473
WANDSWORTH COUNCIL,ASC,SOCIAL SERVICES,PRIVATE,Revenue,EXTERNAL RESIDENTIAL CARE,560430,130245330,30-Dec-14,"4,901.68",MACINTYRE CARE,SP0000473
WANDSWORTH COUNCIL,ASC,SOCIAL SERVICES,PRIVATE,Revenue,EXTERNAL RESIDENTIAL CARE,560431,130245330,30-Dec-14,"5,030.56",MACINTYRE CARE,SP0000473
WANDSWORTH COUNCIL,ASC,SOCIAL SERVICES,PRIVATE,Revenue,EXTERNAL RESIDENTIAL CARE,560432,130245330,30-Dec-14,"4,907.76",MACINTYRE CARE,SP0000473
WANDSWORTH COUNCIL,ASC,SOCIAL SERVICES,PRIVATE,Revenue,EXTERNAL RESIDENTIAL CARE,560467,130245330,30-Dec-14,"2,290.07",MACINTYRE CARE,SP0000473
WANDSWORTH COUNCIL,ASC,SOCIAL SERVICES,PRIVATE,Revenue,EXTERNAL RESIDENTIAL CARE,555689,130245330,19-Dec-14,"8,982.39",SURREY & BORDERS PARTNERSHIP NHS TRUST,SP0000501
WANDSWORTH COUNCIL,ASC,SOCIAL SERVICES,PRIVATE,Revenue,EXTERNAL RESIDENTIAL CARE,555690,130245330,19-Dec-14,"5,622.80",SURREY & BORDERS PARTNERSHIP NHS TRUST,SP0000501
WANDSWORTH COUNCIL,ASC,SOCIAL SERVICES,PRIVATE,Revenue,EXTERNAL RESIDENTIAL CARE,544224,130245330,08-Dec-14,"7,717.76",LORING HALL LIMITED,SP0000511
WANDSWORTH COUNCIL,ASC,SOCIAL SERVICES,PRIVATE,Revenue,EXTERNAL RESIDENTIAL CARE,557819,130245330,23-Dec-14,"7,717.76",LORING HALL LIMITED,SP0000511
WANDSWORTH COUNCIL,ASC,SOCIAL SERVICES,PRIVATE,Revenue,EXTERNAL RESIDENTIAL CARE,548122,130245330,11-Dec-14,"8,100.81",AIMS CARE PARTNERSHIP,SP0000561
WANDSWORTH COUNCIL,ASC,SOCIAL SERVICES,PRIVATE,Revenue,EXTERNAL RESIDENTIAL CARE,555694,130245330,19-Dec-14,"8,370.84",AIMS CARE PARTNERSHIP,SP0000561
WANDSWORTH COUNCIL,ASC,SOCIAL SERVICES,PRIVATE,Revenue,EXTERNAL RESIDENTIAL CARE,557815,130245330,23-Dec-14,"7,534.59",SEEABILITY,SP0000572
WANDSWORTH COUNCIL,ASC,SOCIAL SERVICES,PRIVATE,Revenue,EXTERNAL RESIDENTIAL CARE,548824,130245330,11-Dec-14,"9,564.12",THE COMMUNITY CARE COMPANY UK LTD,SP0000576
WANDSWORTH COUNCIL,ASC,SOCIAL SERVICES,PRIVATE,Revenue,EXTERNAL RESIDENTIAL CARE,548825,130245330,11-Dec-14,"7,051.53",THE COMMUNITY CARE COMPANY UK LTD,SP0000576
WANDSWORTH COUNCIL,ASC,SOCIAL SERVICES,PRIVATE,Revenue,EXTERNAL RESIDENTIAL CARE,548826,130245330,11-Dec-14,"5,943.28",THE COMMUNITY CARE COMPANY UK LTD,SP0000576
WANDSWORTH COUNCIL,ASC,SOCIAL SERVICES,PRIVATE,Revenue,EXTERNAL RESIDENTIAL CARE,548835,130245330,11-Dec-14,"7,131.86",THE COMMUNITY CARE COMPANY UK LTD,SP0000576
WANDSWORTH COUNCIL,ASC,SOCIAL SERVICES,PRIVATE,Revenue,EXTERNAL RESIDENTIAL CARE,557788,130245330,23-Dec-14,"5,588.41",THE COMMUNITY CARE COMPANY UK LTD,SP0000576
WANDSWORTH COUNCIL,ASC,SOCIAL SERVICES,PRIVATE,Revenue,EXTERNAL RESIDENTIAL CARE,557808,130245330,23-Dec-14,"6,127.37",THE COMMUNITY CARE COMPANY UK LTD,SP0000576
WANDSWORTH COUNCIL,ASC,SOCIAL SERVICES,PRIVATE,Revenue,EXTERNAL RESIDENTIAL CARE,555629,130245330,19-Dec-14,"6,641.44",BIRCC,SP0000584
WANDSWORTH COUNCIL,ASC,SOCIAL SERVICES,PRIVATE,Revenue,EXTERNAL RESIDENTIAL CARE,548133,130245330,11-Dec-14,"5,895.16",THE REGARD PARTNERSHIP,SP0000588
WANDSWORTH COUNCIL,ASC,SOCIAL SERVICES,PRIVATE,Revenue,EXTERNAL RESIDENTIAL CARE,552734,130245330,18-Dec-14,"7,409.80",THE REGARD PARTNERSHIP,SP0000588
WANDSWORTH COUNCIL,ASC,SOCIAL SERVICES,PRIVATE,Revenue,EXTERNAL RESIDENTIAL CARE,552735,130245330,18-Dec-14,"6,689.58",THE REGARD PARTNERSHIP,SP0000588
WANDSWORTH COUNCIL,ASC,SOCIAL SERVICES,PRIVATE,Revenue,EXTERNAL RESIDENTIAL CARE,552736,130245330,18-Dec-14,"6,974.82",THE REGARD PARTNERSHIP,SP0000588
WANDSWORTH COUNCIL,ASC,SOCIAL SERVICES,PRIVATE,Revenue,EXTERNAL RESIDENTIAL CARE,552737,130245330,18-Dec-14,"7,073.85",THE REGARD PARTNERSHIP,SP0000588
WANDSWORTH COUNCIL,ASC,SOCIAL SERVICES,PRIVATE,Revenue,EXTERNAL RESIDENTIAL CARE,552755,130245330,18-Dec-14,"7,794.29",THE REGARD PARTNERSHIP,SP0000588
WANDSWORTH COUNCIL,ASC,SOCIAL SERVICES,PRIVATE,Revenue,EXTERNAL RESIDENTIAL CARE,557820,130245330,23-Dec-14,"10,118.48",EVERGREEN PARTNERSHIP,SP0000597
WANDSWORTH COUNCIL,ASC,SOCIAL SERVICES,PRIVATE,Revenue,EXTERNAL RESIDENTIAL CARE,549264,130245330,12-Dec-14,"4,792.20",LAETUS LODGE,SP0000600
WANDSWORTH COUNCIL,ASC,SOCIAL SERVICES,PRIVATE,Revenue,EXTERNAL RESIDENTIAL CARE,549265,130245330,12-Dec-14,"6,096.48",LAETUS LODGE,SP0000600
WANDSWORTH COUNCIL,ASC,SOCIAL SERVICES,PRIVATE,Revenue,EXTERNAL RESIDENTIAL CARE,549266,130245330,12-Dec-14,"3,759.76",LAETUS LODGE,SP0000600
WANDSWORTH COUNCIL,ASC,SOCIAL SERVICES,PRIVATE,Revenue,EXTERNAL RESIDENTIAL CARE,549267,130245330,12-Dec-14,"6,193.48",LAETUS LODGE,SP0000600
WANDSWORTH COUNCIL,ASC,SOCIAL SERVICES,PRIVATE,Revenue,EXTERNAL RESIDENTIAL CARE,549268,130245330,12-Dec-14,"3,669.12",LAETUS LODGE,SP0000600
WANDSWORTH COUNCIL,ASC,SOCIAL SERVICES,PRIVATE,Revenue,EXTERNAL RESIDENTIAL CARE,549269,130245330,12-Dec-14,"3,759.76",LAETUS LODGE,SP0000600
WANDSWORTH COUNCIL,ASC,SOCIAL SERVICES,PRIVATE,Revenue,EXTERNAL RESIDENTIAL CARE,549270,130245330,12-Dec-14,"5,240.56",LAETUS LODGE,SP0000600
WANDSWORTH COUNCIL,ASC,SOCIAL SERVICES,PRIVATE,Revenue,EXTERNAL RESIDENTIAL CARE,548188,130245330,11-Dec-14,"3,454.37",MENCAP,SP0000604
WANDSWORTH COUNCIL,ASC,SOCIAL SERVICES,PRIVATE,Revenue,EXTERNAL RESIDENTIAL CARE,548189,130245330,11-Dec-14,"3,454.37",MENCAP,SP0000604
WANDSWORTH COUNCIL,ASC,SOCIAL SERVICES,PRIVATE,Revenue,EXTERNAL RESIDENTIAL CARE,548193,130245330,11-Dec-14,"2,391.83",MENCAP,SP0000604
WANDSWORTH COUNCIL,ASC,SOCIAL SERVICES,PRIVATE,Revenue,EXTERNAL RESIDENTIAL CARE,548844,130245330,11-Dec-14,"8,026.83",HEALTHLINC INDIVIDUAL CARE,SP0000617
WANDSWORTH COUNCIL,ASC,SOCIAL SERVICES,PRIVATE,Revenue,EXTERNAL RESIDENTIAL CARE,544248,130245330,08-Dec-14,"4,756.88",METROPOLITAN HOUSING TRUST,SP0000626
WANDSWORTH COUNCIL,ASC,SOCIAL SERVICES,PRIVATE,Revenue,EXTERNAL RESIDENTIAL CARE,544249,130245330,08-Dec-14,"4,756.88",METROPOLITAN HOUSING TRUST,SP0000626
WANDSWORTH COUNCIL,ASC,SOCIAL SERVICES,PRIVATE,Revenue,EXTERNAL RESIDENTIAL CARE,544250,130245330,08-Dec-14,"4,427.04",METROPOLITAN HOUSING TRUST,SP0000626
WANDSWORTH COUNCIL,ASC,SOCIAL SERVICES,PRIVATE,Revenue,EXTERNAL RESIDENTIAL CARE,544251,130245330,08-Dec-14,"4,709.79",METROPOLITAN HOUSING TRUST,SP0000626
WANDSWORTH COUNCIL,ASC,SOCIAL SERVICES,PRIVATE,Revenue,EXTERNAL RESIDENTIAL CARE,544252,130245330,08-Dec-14,"4,709.79",METROPOLITAN HOUSING TRUST,SP0000626
WANDSWORTH COUNCIL,ASC,SOCIAL SERVICES,PRIVATE,Revenue,EXTERNAL RESIDENTIAL CARE,544254,130245330,08-Dec-14,"4,709.79",METROPOLITAN HOUSING TRUST,SP0000626
WANDSWORTH COUNCIL,ASC,SOCIAL SERVICES,PRIVATE,Revenue,EXTERNAL RESIDENTIAL CARE,544255,130245330,08-Dec-14,"4,709.79",METROPOLITAN HOUSING TRUST,SP0000626
WANDSWORTH COUNCIL,ASC,SOCIAL SERVICES,PRIVATE,Revenue,EXTERNAL RESIDENTIAL CARE,544256,130245330,08-Dec-14,"3,659.52",METROPOLITAN HOUSING TRUST,SP0000626
WANDSWORTH COUNCIL,ASC,SOCIAL SERVICES,PRIVATE,Revenue,EXTERNAL RESIDENTIAL CARE,544257,130245330,08-Dec-14,"3,659.52",METROPOLITAN HOUSING TRUST,SP0000626
WANDSWORTH COUNCIL,ASC,SOCIAL SERVICES,PRIVATE,Revenue,EXTERNAL RESIDENTIAL CARE,544258,130245330,08-Dec-14,"3,659.52",METROPOLITAN HOUSING TRUST,SP0000626
WANDSWORTH COUNCIL,ASC,SOCIAL SERVICES,PRIVATE,Revenue,EXTERNAL RESIDENTIAL CARE,544259,130245330,08-Dec-14,"3,659.52",METROPOLITAN HOUSING TRUST,SP0000626
WANDSWORTH COUNCIL,ASC,SOCIAL SERVICES,PRIVATE,Revenue,EXTERNAL RESIDENTIAL CARE,544260,130245330,08-Dec-14,"3,659.52",METROPOLITAN HOUSING TRUST,SP0000626
WANDSWORTH COUNCIL,ASC,SOCIAL SERVICES,PRIVATE,Revenue,EXTERNAL RESIDENTIAL CARE,544261,130245330,08-Dec-14,"3,628.36",METROPOLITAN HOUSING TRUST,SP0000626
WANDSWORTH COUNCIL,ASC,SOCIAL SERVICES,PRIVATE,Revenue,EXTERNAL RESIDENTIAL CARE,544262,130245330,08-Dec-14,"3,659.68",METROPOLITAN HOUSING TRUST,SP0000626
WANDSWORTH COUNCIL,ASC,SOCIAL SERVICES,PRIVATE,Revenue,EXTERNAL RESIDENTIAL CARE,544263,130245330,08-Dec-14,"3,659.52",METROPOLITAN HOUSING TRUST,SP0000626
WANDSWORTH COUNCIL,ASC,SOCIAL SERVICES,PRIVATE,Revenue,EXTERNAL RESIDENTIAL CARE,544264,130245330,08-Dec-14,"3,492.64",METROPOLITAN HOUSING TRUST,SP0000626
WANDSWORTH COUNCIL,ASC,SOCIAL SERVICES,PRIVATE,Revenue,EXTERNAL RESIDENTIAL CARE,544268,130245330,08-Dec-14,"4,756.88",METROPOLITAN HOUSING TRUST,SP0000626
WANDSWORTH COUNCIL,ASC,SOCIAL SERVICES,PRIVATE,Revenue,EXTERNAL RESIDENTIAL CARE,544269,130245330,08-Dec-14,"4,756.88",METROPOLITAN HOUSING TRUST,SP0000626
WANDSWORTH COUNCIL,ASC,SOCIAL SERVICES,PRIVATE,Revenue,EXTERNAL RESIDENTIAL CARE,544270,130245330,08-Dec-14,"4,427.04",METROPOLITAN HOUSING TRUST,SP0000626
WANDSWORTH COUNCIL,ASC,SOCIAL SERVICES,PRIVATE,Revenue,EXTERNAL RESIDENTIAL CARE,544271,130245330,08-Dec-14,"4,709.79",METROPOLITAN HOUSING TRUST,SP0000626
WANDSWORTH COUNCIL,ASC,SOCIAL SERVICES,PRIVATE,Revenue,EXTERNAL RESIDENTIAL CARE,544272,130245330,08-Dec-14,"4,709.79",METROPOLITAN HOUSING TRUST,SP0000626
WANDSWORTH COUNCIL,ASC,SOCIAL SERVICES,PRIVATE,Revenue,EXTERNAL RESIDENTIAL CARE,544274,130245330,08-Dec-14,"4,709.79",METROPOLITAN HOUSING TRUST,SP0000626
WANDSWORTH COUNCIL,ASC,SOCIAL SERVICES,PRIVATE,Revenue,EXTERNAL RESIDENTIAL CARE,544275,130245330,08-Dec-14,"4,709.79",METROPOLITAN HOUSING TRUST,SP0000626
WANDSWORTH COUNCIL,ASC,SOCIAL SERVICES,PRIVATE,Revenue,EXTERNAL RESIDENTIAL CARE,544276,130245330,08-Dec-14,"3,659.52",METROPOLITAN HOUSING TRUST,SP0000626
WANDSWORTH COUNCIL,ASC,SOCIAL SERVICES,PRIVATE,Revenue,EXTERNAL RESIDENTIAL CARE,544277,130245330,08-Dec-14,"3,659.52",METROPOLITAN HOUSING TRUST,SP0000626
WANDSWORTH COUNCIL,ASC,SOCIAL SERVICES,PRIVATE,Revenue,EXTERNAL RESIDENTIAL CARE,544278,130245330,08-Dec-14,"3,659.52",METROPOLITAN HOUSING TRUST,SP0000626
WANDSWORTH COUNCIL,ASC,SOCIAL SERVICES,PRIVATE,Revenue,EXTERNAL RESIDENTIAL CARE,544279,130245330,08-Dec-14,"3,659.52",METROPOLITAN HOUSING TRUST,SP0000626
WANDSWORTH COUNCIL,ASC,SOCIAL SERVICES,PRIVATE,Revenue,EXTERNAL RESIDENTIAL CARE,544280,130245330,08-Dec-14,"3,659.52",METROPOLITAN HOUSING TRUST,SP0000626
WANDSWORTH COUNCIL,ASC,SOCIAL SERVICES,PRIVATE,Revenue,EXTERNAL RESIDENTIAL CARE,544281,130245330,08-Dec-14,"3,628.36",METROPOLITAN HOUSING TRUST,SP0000626
WANDSWORTH COUNCIL,ASC,SOCIAL SERVICES,PRIVATE,Revenue,EXTERNAL RESIDENTIAL CARE,544282,130245330,08-Dec-14,"3,659.68",METROPOLITAN HOUSING TRUST,SP0000626
WANDSWORTH COUNCIL,ASC,SOCIAL SERVICES,PRIVATE,Revenue,EXTERNAL RESIDENTIAL CARE,544283,130245330,08-Dec-14,"3,659.52",METROPOLITAN HOUSING TRUST,SP0000626
WANDSWORTH COUNCIL,ASC,SOCIAL SERVICES,PRIVATE,Revenue,EXTERNAL RESIDENTIAL CARE,544284,130245330,08-Dec-14,"3,492.64",METROPOLITAN HOUSING TRUST,SP0000626
WANDSWORTH COUNCIL,ASC,SOCIAL SERVICES,PRIVATE,Revenue,EXTERNAL RESIDENTIAL CARE,544222,130245330,08-Dec-14,"2,395.60",LIVABILITY,SP0000669
WANDSWORTH COUNCIL,ASC,SOCIAL SERVICES,PRIVATE,Revenue,EXTERNAL RESIDENTIAL CARE,548194,130245330,11-Dec-14,"2,395.60",LIVABILITY,SP0000669
WANDSWORTH COUNCIL,ASC,SOCIAL SERVICES,PRIVATE,Revenue,EXTERNAL RESIDENTIAL CARE,548854,130245330,11-Dec-14,"11,322.96",LOVING CARE LTD,SP0000670
WANDSWORTH COUNCIL,ASC,SOCIAL SERVICES,PRIVATE,Revenue,EXTERNAL RESIDENTIAL CARE,548855,130245330,11-Dec-14,"11,282.12",LOVING CARE LTD,SP0000670
WANDSWORTH COUNCIL,ASC,SOCIAL SERVICES,PRIVATE,Revenue,EXTERNAL RESIDENTIAL CARE,548856,130245330,11-Dec-14,"11,475.84",LOVING CARE LTD,SP0000670
WANDSWORTH COUNCIL,ASC,SOCIAL SERVICES,PRIVATE,Revenue,EXTERNAL RESIDENTIAL CARE,548857,130245330,11-Dec-14,"11,017.24",LOVING CARE LTD,SP0000670
WANDSWORTH COUNCIL,ASC,SOCIAL SERVICES,PRIVATE,Revenue,EXTERNAL RESIDENTIAL CARE,548858,130245330,11-Dec-14,"11,475.88",LOVING CARE LTD,SP0000670
WANDSWORTH COUNCIL,ASC,SOCIAL SERVICES,PRIVATE,Revenue,EXTERNAL RESIDENTIAL CARE,548880,130245330,11-Dec-14,"11,475.88",LOVING CARE LTD,SP0000670
WANDSWORTH COUNCIL,ASC,SOCIAL SERVICES,PRIVATE,Revenue,EXTERNAL RESIDENTIAL CARE,548881,130245330,11-Dec-14,"11,170.12",LOVING CARE LTD,SP0000670
WANDSWORTH COUNCIL,ASC,SOCIAL SERVICES,PRIVATE,Revenue,EXTERNAL RESIDENTIAL CARE,548861,130245330,11-Dec-14,"3,099.03",THE MANOR HOUSE,SP0000728
WANDSWORTH COUNCIL,ASC,SOCIAL SERVICES,PRIVATE,Revenue,EXTERNAL RESIDENTIAL CARE,552732,130245330,18-Dec-14,"7,763.33",RALEIGH HOUSE LTD,SP0000760
WANDSWORTH COUNCIL,ASC,SOCIAL SERVICES,PRIVATE,Revenue,EXTERNAL RESIDENTIAL CARE,552733,130245330,18-Dec-14,"8,576.72",RALEIGH HOUSE LTD,SP0000760
WANDSWORTH COUNCIL,ASC,SOCIAL SERVICES,PRIVATE,Revenue,EXTERNAL RESIDENTIAL CARE,544265,130245330,08-Dec-14,"4,831.44",WHITE ROSE CARE,SP0000780
WANDSWORTH COUNCIL,ASC,SOCIAL SERVICES,PRIVATE,Revenue,EXTERNAL RESIDENTIAL CARE,544266,130245330,08-Dec-14,"4,831.44",WHITE ROSE CARE,SP0000780
WANDSWORTH COUNCIL,ASC,SOCIAL SERVICES,PRIVATE,Revenue,EXTERNAL RESIDENTIAL CARE,544267,130245330,08-Dec-14,"4,831.44",WHITE ROSE CARE,SP0000780
WANDSWORTH COUNCIL,ASC,SOCIAL SERVICES,PRIVATE,Revenue,EXTERNAL RESIDENTIAL CARE,548121,130245330,11-Dec-14,"3,806.64",GLENCARE GROUP,SP0000791
WANDSWORTH COUNCIL,ASC,SOCIAL SERVICES,PRIVATE,Revenue,EXTERNAL RESIDENTIAL CARE,548158,130245330,11-Dec-14,"3,806.64",GLENCARE GROUP,SP0000791
WANDSWORTH COUNCIL,ASC,SOCIAL SERVICES,PRIVATE,Revenue,EXTERNAL RESIDENTIAL CARE,548159,130245330,11-Dec-14,"6,108.00",GLENCARE GROUP,SP0000791
WANDSWORTH COUNCIL,ASC,SOCIAL SERVICES,PRIVATE,Revenue,EXTERNAL RESIDENTIAL CARE,560451,130245330,30-Dec-14,"12,216.00",GLENCARE GROUP,SP0000791
WANDSWORTH COUNCIL,ASC,SOCIAL SERVICES,PRIVATE,Revenue,EXTERNAL RESIDENTIAL CARE,548830,130245330,11-Dec-14,"2,267.32",FREEWAYS TRUST LTD,SP0000793
WANDSWORTH COUNCIL,ASC,SOCIAL SERVICES,PRIVATE,Revenue,EXTERNAL RESIDENTIAL CARE,539604,130245330,01-Dec-14,"3,140.56",UNITED RESPONSE,SP0000797
WANDSWORTH COUNCIL,ASC,SOCIAL SERVICES,PRIVATE,Revenue,EXTERNAL RESIDENTIAL CARE,557818,130245330,23-Dec-14,"3,140.56",UNITED RESPONSE,SP0000797
WANDSWORTH COUNCIL,ASC,SOCIAL SERVICES,PRIVATE,Revenue,EXTERNAL RESIDENTIAL CARE,544213,130245330,08-Dec-14,"3,151.20",PROSPECTS,SP0000800
WANDSWORTH COUNCIL,ASC,SOCIAL SERVICES,PRIVATE,Revenue,EXTERNAL RESIDENTIAL CARE,552720,130245330,18-Dec-14,"3,151.20",PROSPECTS,SP0000800
WANDSWORTH COUNCIL,ASC,SOCIAL SERVICES,PRIVATE,Revenue,EXTERNAL RESIDENTIAL CARE,544288,130245330,08-Dec-14,"6,108.81",WESSEX AUTISTIC SOCIETY,SP0000805
WANDSWORTH COUNCIL,ASC,SOCIAL SERVICES,PRIVATE,Revenue,EXTERNAL RESIDENTIAL CARE,557780,130245330,23-Dec-14,"3,970.39",BEECH LODGE,SP0000807
WANDSWORTH COUNCIL,ASC,SOCIAL SERVICES,PRIVATE,Revenue,EXTERNAL RESIDENTIAL CARE,557781,130245330,23-Dec-14,"3,970.39",BEECH LODGE,SP0000807
WANDSWORTH COUNCIL,ASC,SOCIAL SERVICES,PRIVATE,Revenue,EXTERNAL RESIDENTIAL CARE,557782,130245330,23-Dec-14,"3,970.39",BEECH LODGE,SP0000807
WANDSWORTH COUNCIL,ASC,SOCIAL SERVICES,PRIVATE,Revenue,EXTERNAL RESIDENTIAL CARE,557773,130245330,23-Dec-14,"7,959.25",CHATSWORTH CARE,SP0000831
WANDSWORTH COUNCIL,ASC,SOCIAL SERVICES,PRIVATE,Revenue,EXTERNAL RESIDENTIAL CARE,548843,130245330,11-Dec-14,"8,051.14",FIRCROFT,SP0000840
WANDSWORTH COUNCIL,ASC,SOCIAL SERVICES,PRIVATE,Revenue,EXTERNAL RESIDENTIAL CARE,548112,130245330,11-Dec-14,"2,618.36",SCOPE,SP0000852
WANDSWORTH COUNCIL,ASC,SOCIAL SERVICES,PRIVATE,Revenue,EXTERNAL RESIDENTIAL CARE,548113,130245330,11-Dec-14,"2,763.53",SCOPE,SP0000852
WANDSWORTH COUNCIL,ASC,SOCIAL SERVICES,PRIVATE,Revenue,EXTERNAL RESIDENTIAL CARE,548822,130245330,11-Dec-14,"11,311.23",ASHCROFT CARE SERVICES,SP0000872
WANDSWORTH COUNCIL,ASC,SOCIAL SERVICES,PRIVATE,Revenue,EXTERNAL RESIDENTIAL CARE,548839,130245330,11-Dec-14,"4,472.68",229 MITCHAM LANE LTD,SP0000884
WANDSWORTH COUNCIL,ASC,SOCIAL SERVICES,PRIVATE,Revenue,EXTERNAL RESIDENTIAL CARE,548840,130245330,11-Dec-14,"5,236.12",229 MITCHAM LANE LTD,SP0000884
WANDSWORTH COUNCIL,ASC,SOCIAL SERVICES,PRIVATE,Revenue,EXTERNAL RESIDENTIAL CARE,548841,130245330,11-Dec-14,"5,558.83",229 MITCHAM LANE LTD,SP0000884
WANDSWORTH COUNCIL,ASC,SOCIAL SERVICES,PRIVATE,Revenue,EXTERNAL RESIDENTIAL CARE,548842,130245330,11-Dec-14,"5,236.12",229 MITCHAM LANE LTD,SP0000884
WANDSWORTH COUNCIL,ASC,SOCIAL SERVICES,PRIVATE,Revenue,EXTERNAL RESIDENTIAL CARE,552718,130245330,18-Dec-14,"3,957.32",THE LEO TRUST,SP0000908
WANDSWORTH COUNCIL,ASC,SOCIAL SERVICES,PRIVATE,Revenue,EXTERNAL RESIDENTIAL CARE,557767,130245330,23-Dec-14,"5,204.19",TRACS,SP0000914
WANDSWORTH COUNCIL,ASC,SOCIAL SERVICES,PRIVATE,Revenue,EXTERNAL RESIDENTIAL CARE,548186,130245330,11-Dec-14,"7,271.56",CORICH COMMUNITY CARE LTD,SP0000915
WANDSWORTH COUNCIL,ASC,SOCIAL SERVICES,PRIVATE,Revenue,EXTERNAL RESIDENTIAL CARE,555674,130245330,19-Dec-14,"1,418.40",REDACTED PERSONAL DATA,SP0000931
WANDSWORTH COUNCIL,ASC,SOCIAL SERVICES,PRIVATE,Revenue,EXTERNAL RESIDENTIAL CARE,548111,130245330,11-Dec-14,"8,456.27",PROGRESS HOUSING MARLOW,SP0000952
WANDSWORTH COUNCIL,ASC,SOCIAL SERVICES,PRIVATE,Revenue,EXTERNAL RESIDENTIAL CARE,548103,130245330,11-Dec-14,"2,930.00",MISSION CARE,SP0000958
WANDSWORTH COUNCIL,ASC,SOCIAL SERVICES,PRIVATE,Revenue,EXTERNAL RESIDENTIAL CARE,557792,130245330,23-Dec-14,"3,990.54",CHERRY LODGE,SP0000965
WANDSWORTH COUNCIL,ASC,SOCIAL SERVICES,PRIVATE,Revenue,EXTERNAL RESIDENTIAL CARE,548164,130245330,11-Dec-14,"6,493.16",RIDGEWOOD CARE SERVICES LTD,SP0000969
WANDSWORTH COUNCIL,ASC,SOCIAL SERVICES,PRIVATE,Revenue,EXTERNAL RESIDENTIAL CARE,555696,130245330,19-Dec-14,"3,548.76",RIDGEWOOD CARE SERVICES LTD,SP0000969
WANDSWORTH COUNCIL,ASC,SOCIAL SERVICES,PRIVATE,Revenue,EXTERNAL RESIDENTIAL CARE,555705,130245330,19-Dec-14,"3,335.36",RIDGEWOOD CARE SERVICES LTD,SP0000969
WANDSWORTH COUNCIL,ASC,SOCIAL SERVICES,PRIVATE,Revenue,EXTERNAL RESIDENTIAL CARE,544185,130245330,08-Dec-14,"4,167.12",LEONARD CHESHIRE,SP0000976
WANDSWORTH COUNCIL,ASC,SOCIAL SERVICES,PRIVATE,Revenue,EXTERNAL RESIDENTIAL CARE,544195,130245330,08-Dec-14,"6,119.91",LEONARD CHESHIRE,SP0000976
WANDSWORTH COUNCIL,ASC,SOCIAL SERVICES,PRIVATE,Revenue,EXTERNAL RESIDENTIAL CARE,555700,130245330,19-Dec-14,"4,483.31",LEONARD CHESHIRE,SP0000976
WANDSWORTH COUNCIL,ASC,SOCIAL SERVICES,PRIVATE,Revenue,EXTERNAL RESIDENTIAL CARE,560454,130245330,30-Dec-14,"6,323.91",LEONARD CHESHIRE,SP0000976
WANDSWORTH COUNCIL,ASC,SOCIAL SERVICES,PRIVATE,Revenue,EXTERNAL RESIDENTIAL CARE,560456,130245330,30-Dec-14,"4,306.03",LEONARD CHESHIRE,SP0000976
WANDSWORTH COUNCIL,ASC,SOCIAL SERVICES,PRIVATE,Revenue,EXTERNAL RESIDENTIAL CARE,555661,130245330,19-Dec-14,"5,385.27",CREDITON CARE & SUPPORT HOMES,SP0000998
WANDSWORTH COUNCIL,ASC,SOCIAL SERVICES,PRIVATE,Revenue,EXTERNAL RESIDENTIAL CARE,542610,130245330,04-Dec-14,"4,613.60",LOTUS CARE HOME LTD,SP0001006
WANDSWORTH COUNCIL,ASC,SOCIAL SERVICES,PRIVATE,Revenue,EXTERNAL RESIDENTIAL CARE,552744,130245330,18-Dec-14,"5,419.95",ST ELIZABETHS CENTRE,SP0001019
WANDSWORTH COUNCIL,ASC,SOCIAL SERVICES,PRIVATE,Revenue,EXTERNAL RESIDENTIAL CARE,548163,130245330,11-Dec-14,"5,020.50",M JINGREE T/A SUNLIGHT HOUSE,SP0001024
WANDSWORTH COUNCIL,ASC,SOCIAL SERVICES,PRIVATE,Revenue,EXTERNAL RESIDENTIAL CARE,555658,130245330,19-Dec-14,"6,060.62",CARE UK LEARNING DISABILITIES SERVICES L,SP0001039
WANDSWORTH COUNCIL,ASC,SOCIAL SERVICES,PRIVATE,Revenue,EXTERNAL RESIDENTIAL CARE,539605,130245330,01-Dec-14,"2,743.88",THE HOME FARM TRUST LTD,SP0001048
WANDSWORTH COUNCIL,ASC,SOCIAL SERVICES,PRIVATE,Revenue,EXTERNAL RESIDENTIAL CARE,539606,130245330,01-Dec-14,"2,323.00",THE HOME FARM TRUST LTD,SP0001048
WANDSWORTH COUNCIL,ASC,SOCIAL SERVICES,PRIVATE,Revenue,EXTERNAL RESIDENTIAL CARE,539607,130245330,01-Dec-14,"2,457.40",THE HOME FARM TRUST LTD,SP0001048
WANDSWORTH COUNCIL,ASC,SOCIAL SERVICES,PRIVATE,Revenue,EXTERNAL RESIDENTIAL CARE,548845,130245330,11-Dec-14,"3,708.20",THE HOME FARM TRUST LTD,SP0001048
WANDSWORTH COUNCIL,ASC,SOCIAL SERVICES,PRIVATE,Revenue,EXTERNAL RESIDENTIAL CARE,557746,130245330,23-Dec-14,"3,708.20",THE HOME FARM TRUST LTD,SP0001048
WANDSWORTH COUNCIL,ASC,SOCIAL SERVICES,PRIVATE,Revenue,EXTERNAL RESIDENTIAL CARE,557747,130245330,23-Dec-14,"3,708.20",THE HOME FARM TRUST LTD,SP0001048
WANDSWORTH COUNCIL,ASC,SOCIAL SERVICES,PRIVATE,Revenue,EXTERNAL RESIDENTIAL CARE,557785,130245330,23-Dec-14,"2,743.88",THE HOME FARM TRUST LTD,SP0001048
WANDSWORTH COUNCIL,ASC,SOCIAL SERVICES,PRIVATE,Revenue,EXTERNAL RESIDENTIAL CARE,557786,130245330,23-Dec-14,"2,323.00",THE HOME FARM TRUST LTD,SP0001048
WANDSWORTH COUNCIL,ASC,SOCIAL SERVICES,PRIVATE,Revenue,EXTERNAL RESIDENTIAL CARE,557787,130245330,23-Dec-14,"2,457.40",THE HOME FARM TRUST LTD,SP0001048
WANDSWORTH COUNCIL,ASC,SOCIAL SERVICES,PRIVATE,Revenue,EXTERNAL RESIDENTIAL CARE,548165,130245330,11-Dec-14,"4,630.48",ALLIED CARE (MHS) LTD,SP0001069
WANDSWORTH COUNCIL,ASC,SOCIAL SERVICES,PRIVATE,Revenue,EXTERNAL RESIDENTIAL CARE,548166,130245330,11-Dec-14,"4,630.48",ALLIED CARE (MHS) LTD,SP0001069
WANDSWORTH COUNCIL,ASC,SOCIAL SERVICES,PRIVATE,Revenue,EXTERNAL RESIDENTIAL CARE,548167,130245330,11-Dec-14,"4,630.48",ALLIED CARE (MHS) LTD,SP0001069
WANDSWORTH COUNCIL,ASC,SOCIAL SERVICES,PRIVATE,Revenue,EXTERNAL RESIDENTIAL CARE,548833,130245330,11-Dec-14,"4,839.00",ALLIED CARE (MHS) LTD,SP0001069
WANDSWORTH COUNCIL,ASC,SOCIAL SERVICES,PRIVATE,Revenue,EXTERNAL RESIDENTIAL CARE,548834,130245330,11-Dec-14,"7,054.98",ALLIED CARE (MHS) LTD,SP0001069
WANDSWORTH COUNCIL,ASC,SOCIAL SERVICES,PRIVATE,Revenue,EXTERNAL RESIDENTIAL CARE,557779,130245330,23-Dec-14,"4,332.74",ALLIED CARE (MHS) LTD,SP0001069
WANDSWORTH COUNCIL,ASC,SOCIAL SERVICES,PRIVATE,Revenue,EXTERNAL RESIDENTIAL CARE,557804,130245330,23-Dec-14,"5,000.30",ALLIED CARE (MHS) LTD,SP0001069
WANDSWORTH COUNCIL,ASC,SOCIAL SERVICES,PRIVATE,Revenue,EXTERNAL RESIDENTIAL CARE,557760,130245330,23-Dec-14,"2,500.06",SAXON COURT,SP0001100
WANDSWORTH COUNCIL,ASC,SOCIAL SERVICES,PRIVATE,Revenue,EXTERNAL RESIDENTIAL CARE,555683,130245330,19-Dec-14,"12,485.03",ILG LTD,SP0001103
WANDSWORTH COUNCIL,ASC,SOCIAL SERVICES,PRIVATE,Revenue,EXTERNAL RESIDENTIAL CARE,549271,130245330,12-Dec-14,"7,395.80",TOTTERDOWN,SP0001113
WANDSWORTH COUNCIL,ASC,SOCIAL SERVICES,PRIVATE,Revenue,EXTERNAL RESIDENTIAL CARE,549272,130245330,12-Dec-14,"3,671.24",TOTTERDOWN,SP0001113
WANDSWORTH COUNCIL,ASC,SOCIAL SERVICES,PRIVATE,Revenue,EXTERNAL RESIDENTIAL CARE,548846,130245330,11-Dec-14,"6,186.62",SUSSEX HEALTH CARE,SP0001115
WANDSWORTH COUNCIL,ASC,SOCIAL SERVICES,PRIVATE,Revenue,EXTERNAL RESIDENTIAL CARE,557783,130245330,23-Dec-14,"7,086.22",SUSSEX HEALTH CARE,SP0001115
WANDSWORTH COUNCIL,ASC,SOCIAL SERVICES,PRIVATE,Revenue,EXTERNAL RESIDENTIAL CARE,548848,130245330,11-Dec-14,"6,916.63",LONDON CARE PARTNERSHIP LTD,SP0001138
WANDSWORTH COUNCIL,ASC,SOCIAL SERVICES,PRIVATE,Revenue,EXTERNAL RESIDENTIAL CARE,548849,130245330,11-Dec-14,"8,835.00",LONDON CARE PARTNERSHIP LTD,SP0001138
WANDSWORTH COUNCIL,ASC,SOCIAL SERVICES,PRIVATE,Revenue,EXTERNAL RESIDENTIAL CARE,548850,130245330,11-Dec-14,"8,192.86",LONDON CARE PARTNERSHIP LTD,SP0001138
WANDSWORTH COUNCIL,ASC,SOCIAL SERVICES,PRIVATE,Revenue,EXTERNAL RESIDENTIAL CARE,548851,130245330,11-Dec-14,"8,303.57",LONDON CARE PARTNERSHIP LTD,SP0001138
WANDSWORTH COUNCIL,ASC,SOCIAL SERVICES,PRIVATE,Revenue,EXTERNAL RESIDENTIAL CARE,548852,130245330,11-Dec-14,"8,303.57",LONDON CARE PARTNERSHIP LTD,SP0001138
WANDSWORTH COUNCIL,ASC,SOCIAL SERVICES,PRIVATE,Revenue,EXTERNAL RESIDENTIAL CARE,548853,130245330,11-Dec-14,"8,525.00",LONDON CARE PARTNERSHIP LTD,SP0001138
WANDSWORTH COUNCIL,ASC,SOCIAL SERVICES,PRIVATE,Revenue,EXTERNAL RESIDENTIAL CARE,544207,130245330,08-Dec-14,"6,628.16",CHOICE CARE GROUP,SP0001367
WANDSWORTH COUNCIL,ASC,SOCIAL SERVICES,PRIVATE,Revenue,EXTERNAL RESIDENTIAL CARE,552715,130245330,18-Dec-14,"6,628.16",CHOICE CARE GROUP,SP0001367
WANDSWORTH COUNCIL,ASC,SOCIAL SERVICES,PRIVATE,Revenue,EXTERNAL RESIDENTIAL CARE,548101,130245330,11-Dec-14,"6,679.26",HOME FROM HOME CARE LIMITED,SP0001373
WANDSWORTH COUNCIL,ASC,SOCIAL SERVICES,PRIVATE,Revenue,EXTERNAL RESIDENTIAL CARE,548865,130245330,11-Dec-14,"4,967.48",LARKFIELD HALL LTD T/A PEPENBURY,SP0001378
WANDSWORTH COUNCIL,ASC,SOCIAL SERVICES,PRIVATE,Revenue,EXTERNAL RESIDENTIAL CARE,552749,130245330,18-Dec-14,"31,415.02",THE WEST OF ENGLAND SCHOOL & COLLEGE,SP0001486
WANDSWORTH COUNCIL,ASC,SOCIAL SERVICES,PRIVATE,Revenue,EXTERNAL RESIDENTIAL CARE,557769,130245330,23-Dec-14,"25,414.42",THE WEST OF ENGLAND SCHOOL & COLLEGE,SP0001486
WANDSWORTH COUNCIL,ASC,SOCIAL SERVICES,PRIVATE,Revenue,EXTERNAL RESIDENTIAL CARE,557770,130245330,23-Dec-14,"38,135.95",THE WEST OF ENGLAND SCHOOL & COLLEGE,SP0001486
WANDSWORTH COUNCIL,ASC,SOCIAL SERVICES,PRIVATE,Revenue,EXTERNAL RESIDENTIAL CARE,557771,130245330,23-Dec-14,"43,066.26",THE WEST OF ENGLAND SCHOOL & COLLEGE,SP0001486
WANDSWORTH COUNCIL,ASC,SOCIAL SERVICES,PRIVATE,Revenue,EXTERNAL RESIDENTIAL CARE,548879,130245330,11-Dec-14,"8,784.69",ROOKERY HOVE PRIORY,SP0001498
WANDSWORTH COUNCIL,ASC,SOCIAL SERVICES,PRIVATE,Revenue,EXTERNAL RESIDENTIAL CARE,544247,130245330,08-Dec-14,"7,523.88",MCCH SOCIETY LIMITED,SP0001531
WANDSWORTH COUNCIL,ASC,SOCIAL SERVICES,PRIVATE,Revenue,EXTERNAL RESIDENTIAL CARE,548827,130245330,11-Dec-14,"3,514.80",CARE UNLIMITED GROUP LTD,SP0001575
WANDSWORTH COUNCIL,ASC,SOCIAL SERVICES,PRIVATE,Revenue,EXTERNAL RESIDENTIAL CARE,557790,130245330,23-Dec-14,"3,631.96",CARE UNLIMITED GROUP LTD,SP0001575
WANDSWORTH COUNCIL,ASC,SOCIAL SERVICES,PRIVATE,Revenue,EXTERNAL RESIDENTIAL CARE,548192,130245330,11-Dec-14,"4,383.40",NUTLEY HALL LTD,SP0001581
WANDSWORTH COUNCIL,ASC,SOCIAL SERVICES,PRIVATE,Revenue,EXTERNAL RESIDENTIAL CARE,555659,130245330,19-Dec-14,"8,192.86",CONDOVER COLLEGE LTD,SP0001641
WANDSWORTH COUNCIL,ASC,SOCIAL SERVICES,PRIVATE,Revenue,EXTERNAL RESIDENTIAL CARE,555648,130245330,19-Dec-14,"5,095.92",ACH OF LONDON LLP,SP0001688
WANDSWORTH COUNCIL,ASC,SOCIAL SERVICES,PRIVATE,Revenue,EXTERNAL RESIDENTIAL CARE,555649,130245330,19-Dec-14,"16,787.70",ACH OF LONDON LLP,SP0001688
WANDSWORTH COUNCIL,ASC,SOCIAL SERVICES,PRIVATE,Revenue,EXTERNAL RESIDENTIAL CARE,548117,130245330,11-Dec-14,"9,889.80",SALISBURY AUTISTIC CARE,SP0001691
WANDSWORTH COUNCIL,ASC,SOCIAL SERVICES,PRIVATE,Revenue,EXTERNAL RESIDENTIAL CARE,552730,130245330,18-Dec-14,"7,581.49",PATHWAY HEALTHCARE,SP0001779
WANDSWORTH COUNCIL,ASC,SOCIAL SERVICES,PRIVATE,Revenue,EXTERNAL RESIDENTIAL CARE,552731,130245330,18-Dec-14,"7,134.21",PATHWAY HEALTHCARE,SP0001779
WANDSWORTH COUNCIL,ASC,SOCIAL SERVICES,PRIVATE,Revenue,EXTERNAL RESIDENTIAL CARE,552780,130245330,18-Dec-14,"11,057.48",KISIMUL GROUP LTD,SP0002487
WANDSWORTH COUNCIL,ASC,SOCIAL SERVICES,PRIVATE,Revenue,EXTERNAL RESIDENTIAL CARE,559623,130245330,29-Dec-14,"11,014.92",KISIMUL GROUP LTD,SP0002487
WANDSWORTH COUNCIL,ASC,SOCIAL SERVICES,PRIVATE,Revenue,EXTERNAL RESIDENTIAL CARE,559625,130245330,29-Dec-14,"11,057.48",KISIMUL GROUP LTD,SP0002487
WANDSWORTH COUNCIL,ASC,SOCIAL SERVICES,PRIVATE,Revenue,EXTERNAL RESIDENTIAL CARE,544289,130245330,08-Dec-14,"6,408.96",THE BRANDON TRUST,SP0005337
WANDSWORTH COUNCIL,ASC,SOCIAL SERVICES,PRIVATE,Revenue,EXTERNAL RESIDENTIAL CARE,552727,130245330,18-Dec-14,"2,755.56",HASTINGS & BEXHILL MENCAP SOCIETY,SP0005380
WANDSWORTH COUNCIL,ASC,SOCIAL SERVICES,PRIVATE,Revenue,EXTERNAL RESIDENTIAL CARE,544177,130245330,08-Dec-14,991.49,ENHAM,SP0005845
WANDSWORTH COUNCIL,ASC,SOCIAL SERVICES,PRIVATE,Revenue,EXTERNAL RESIDENTIAL CARE,544178,130245330,08-Dec-14,"5,980.80",ENHAM,SP0005845
WANDSWORTH COUNCIL,ASC,SOCIAL SERVICES,PRIVATE,Revenue,EXTERNAL RESIDENTIAL CARE,560462,130245330,30-Dec-14,"5,980.80",ENHAM,SP0005845
WANDSWORTH COUNCIL,ASC,SOCIAL SERVICES,PRIVATE,Revenue,EXTERNAL RESIDENTIAL CARE,557775,130245330,23-Dec-14,"4,035.96",PARK LODGE SOLUTIONS LTD,SP0006663
WANDSWORTH COUNCIL,ASC,SOCIAL SERVICES,PRIVATE,Revenue,EXTERNAL RESI RESPITE CARE,557769,130245340,23-Dec-14,778.64,THE WEST OF ENGLAND SCHOOL & COLLEGE,SP0001486
WANDSWORTH COUNCIL,ASC,SOCIAL SERVICES,PRIVATE,Revenue,EXTERNAL RESI RESPITE CARE,557770,130245340,23-Dec-14,528.85,THE WEST OF ENGLAND SCHOOL & COLLEGE,SP0001486
WANDSWORTH COUNCIL,ASC,SOCIAL SERVICES,PRIVATE,Revenue,EXTERNAL RESI RESPITE CARE,557771,130245340,23-Dec-14,778.64,THE WEST OF ENGLAND SCHOOL & COLLEGE,SP0001486
WANDSWORTH COUNCIL,ASC,SOCIAL SERVICES,PRIVATE,Revenue,RESPITE CARE AT HOME -VOUCHERS,548212,130245510,11-Dec-14,822.08,RAINBOW MEDICAL SERVICES,SP0000037
WANDSWORTH COUNCIL,ASC,SOCIAL SERVICES,PRIVATE,Revenue,ONE TO ONE CARE,548574,130246220,11-Dec-14,"2,133.60",RAINBOW MEDICAL SERVICES,SP0000037
WANDSWORTH COUNCIL,ASC,SOCIAL SERVICES,PRIVATE,Revenue,ONE TO ONE CARE,548575,130246220,11-Dec-14,914.40,RAINBOW MEDICAL SERVICES,SP0000037
WANDSWORTH COUNCIL,ASC,SOCIAL SERVICES,PRIVATE,Revenue,ONE TO ONE CARE,548577,130246220,11-Dec-14,"1,553.60",RAINBOW MEDICAL SERVICES,SP0000037
WANDSWORTH COUNCIL,ASC,SOCIAL SERVICES,PRIVATE,Revenue,ONE TO ONE CARE,548579,130246220,11-Dec-14,"2,056.08",RAINBOW MEDICAL SERVICES,SP0000037
WANDSWORTH COUNCIL,ASC,SOCIAL SERVICES,PRIVATE,Revenue,ONE TO ONE CARE,544409,130246220,08-Dec-14,720.00,THE CHESTNUTS,SP0000182
WANDSWORTH COUNCIL,ASC,SOCIAL SERVICES,PRIVATE,Revenue,ONE TO ONE CARE,539742,130246220,01-Dec-14,671.40,ST MARYS RESIDENTIAL HOME,SP0000215
WANDSWORTH COUNCIL,ASC,SOCIAL SERVICES,PRIVATE,Revenue,ONE TO ONE CARE,539743,130246220,01-Dec-14,627.90,ST MARYS RESIDENTIAL HOME,SP0000215
WANDSWORTH COUNCIL,ASC,SOCIAL SERVICES,PRIVATE,Revenue,ONE TO ONE CARE,553006,130246220,18-Dec-14,648.83,ST MARYS RESIDENTIAL HOME,SP0000215
WANDSWORTH COUNCIL,ASC,SOCIAL SERVICES,PRIVATE,Revenue,ONE TO ONE CARE,552746,130246220,18-Dec-14,"1,963.85",RESIDENTIAL COMMUNITY CARE,SP0000315
WANDSWORTH COUNCIL,ASC,SOCIAL SERVICES,PRIVATE,Revenue,ONE TO ONE CARE,557625,130246220,23-Dec-14,"1,062.86",VOYAGE CARE LTD,SP0000366
WANDSWORTH COUNCIL,ASC,SOCIAL SERVICES,PRIVATE,Revenue,ONE TO ONE CARE,543476,130246220,08-Dec-14,"1,350.52",MACINTYRE CARE,SP0000473
WANDSWORTH COUNCIL,ASC,SOCIAL SERVICES,PRIVATE,Revenue,ONE TO ONE CARE,543477,130246220,08-Dec-14,"1,350.52",MACINTYRE CARE,SP0000473
WANDSWORTH COUNCIL,ASC,SOCIAL SERVICES,PRIVATE,Revenue,ONE TO ONE CARE,543478,130246220,08-Dec-14,"1,910.04",MACINTYRE CARE,SP0000473
WANDSWORTH COUNCIL,ASC,SOCIAL SERVICES,PRIVATE,Revenue,ONE TO ONE CARE,543479,130246220,08-Dec-14,"1,350.52",MACINTYRE CARE,SP0000473
WANDSWORTH COUNCIL,ASC,SOCIAL SERVICES,PRIVATE,Revenue,ONE TO ONE CARE,543480,130246220,08-Dec-14,694.56,MACINTYRE CARE,SP0000473
WANDSWORTH COUNCIL,ASC,SOCIAL SERVICES,PRIVATE,Revenue,ONE TO ONE CARE,551634,130246220,17-Dec-14,"1,350.52",MACINTYRE CARE,SP0000473
WANDSWORTH COUNCIL,ASC,SOCIAL SERVICES,PRIVATE,Revenue,ONE TO ONE CARE,551635,130246220,17-Dec-14,"1,350.52",MACINTYRE CARE,SP0000473
WANDSWORTH COUNCIL,ASC,SOCIAL SERVICES,PRIVATE,Revenue,ONE TO ONE CARE,551636,130246220,17-Dec-14,694.56,MACINTYRE CARE,SP0000473
WANDSWORTH COUNCIL,ASC,SOCIAL SERVICES,PRIVATE,Revenue,ONE TO ONE CARE,551637,130246220,17-Dec-14,"3,260.56",MACINTYRE CARE,SP0000473
WANDSWORTH COUNCIL,ASC,SOCIAL SERVICES,PRIVATE,Revenue,ONE TO ONE CARE,560661,130246220,30-Dec-14,"1,910.04",MACINTYRE CARE,SP0000473
WANDSWORTH COUNCIL,ASC,SOCIAL SERVICES,PRIVATE,Revenue,ONE TO ONE CARE,560662,130246220,30-Dec-14,"1,350.52",MACINTYRE CARE,SP0000473
WANDSWORTH COUNCIL,ASC,SOCIAL SERVICES,PRIVATE,Revenue,ONE TO ONE CARE,560663,130246220,30-Dec-14,"1,350.52",MACINTYRE CARE,SP0000473
WANDSWORTH COUNCIL,ASC,SOCIAL SERVICES,PRIVATE,Revenue,ONE TO ONE CARE,560664,130246220,30-Dec-14,"1,350.52",MACINTYRE CARE,SP0000473
WANDSWORTH COUNCIL,ASC,SOCIAL SERVICES,PRIVATE,Revenue,ONE TO ONE CARE,560665,130246220,30-Dec-14,694.56,MACINTYRE CARE,SP0000473
WANDSWORTH COUNCIL,ASC,SOCIAL SERVICES,PRIVATE,Revenue,ONE TO ONE CARE,548968,130246220,11-Dec-14,"1,152.89",THE COMMUNITY CARE COMPANY UK LTD,SP0000576
WANDSWORTH COUNCIL,ASC,SOCIAL SERVICES,PRIVATE,Revenue,ONE TO ONE CARE,548969,130246220,11-Dec-14,"1,314.80",THE COMMUNITY CARE COMPANY UK LTD,SP0000576
WANDSWORTH COUNCIL,ASC,SOCIAL SERVICES,PRIVATE,Revenue,ONE TO ONE CARE,539737,130246220,01-Dec-14,"3,171.84",METROPOLITAN HOUSING TRUST,SP0000626
WANDSWORTH COUNCIL,ASC,SOCIAL SERVICES,PRIVATE,Revenue,ONE TO ONE CARE,539740,130246220,01-Dec-14,"2,039.04",METROPOLITAN HOUSING TRUST,SP0000626
WANDSWORTH COUNCIL,ASC,SOCIAL SERVICES,PRIVATE,Revenue,ONE TO ONE CARE,548187,130246220,11-Dec-14,"1,600.44",CORICH COMMUNITY CARE LTD,SP0000915
WANDSWORTH COUNCIL,ASC,SOCIAL SERVICES,PRIVATE,Revenue,ONE TO ONE CARE,539748,130246220,01-Dec-14,900.00,HILL PARK AUTISTIC TRUST,SP0000926
WANDSWORTH COUNCIL,ASC,SOCIAL SERVICES,PRIVATE,Revenue,ONE TO ONE CARE,551585,130246220,17-Dec-14,"1,597.44",TOTTERDOWN,SP0001113
WANDSWORTH COUNCIL,ASC,SOCIAL SERVICES,PRIVATE,Revenue,ONE TO ONE CARE,548972,130246220,11-Dec-14,613.62,FRONTIER SUPPORT SERVICES LTD,SP0001132
WANDSWORTH COUNCIL,ASC,SOCIAL SERVICES,PRIVATE,Revenue,ONE TO ONE CARE,549479,130246220,12-Dec-14,901.44,HARROW MENCAP,SP0001347
WANDSWORTH COUNCIL,ASC,SOCIAL SERVICES,PRIVATE,Revenue,ONE TO ONE CARE,548619,130246220,11-Dec-14,802.08,LARKFIELD HALL LTD T/A PEPENBURY,SP0001378
WANDSWORTH COUNCIL,ASC,SOCIAL SERVICES,PRIVATE,Revenue,ONE TO ONE CARE,555780,130246220,19-Dec-14,"2,018.10",ACH OF LONDON LLP,SP0001688
WANDSWORTH COUNCIL,ASC,SOCIAL SERVICES,PRIVATE,Revenue,ONE TO ONE CARE,543488,130246220,08-Dec-14,324.00,THE BRANDON TRUST,SP0005337
WANDSWORTH COUNCIL,ASC,SOCIAL SERVICES,PRIVATE,Revenue,ONE TO ONE CARE,543503,130246220,08-Dec-14,331.20,THE BRANDON TRUST,SP0005337
WANDSWORTH COUNCIL,ASC,SOCIAL SERVICES,PRIVATE,Revenue,ONE TO ONE CARE,543523,130246220,08-Dec-14,"1,987.20",THE BRANDON TRUST,SP0005337
WANDSWORTH COUNCIL,ASC,SOCIAL SERVICES,PRIVATE,Revenue,ONE TO ONE CARE,543524,130246220,08-Dec-14,"1,312.00",THE BRANDON TRUST,SP0005337
WANDSWORTH COUNCIL,ASC,SOCIAL SERVICES,PRIVATE,Revenue,ONE TO ONE CARE,543527,130246220,08-Dec-14,"2,450.88",THE BRANDON TRUST,SP0005337
WANDSWORTH COUNCIL,ASC,SOCIAL SERVICES,PRIVATE,Revenue,ONE TO ONE CARE,543539,130246220,08-Dec-14,331.20,THE BRANDON TRUST,SP0005337
WANDSWORTH COUNCIL,ASC,SOCIAL SERVICES,PRIVATE,Revenue,ONE TO ONE CARE,544433,130246220,08-Dec-14,600.04,THE BRANDON TRUST,SP0005337
WANDSWORTH COUNCIL,ASC,SOCIAL SERVICES,VOL ASS,Revenue,SUPPORTED HOUSING PROGRAMME,20298363,130248030,24-Dec-14,"1,119.72",GOLDEN LANE HOUSING LTD,2003592
WANDSWORTH COUNCIL,ASC,SOCIAL SERVICES,VOL ASS,Revenue,SUPPORTED HOUSING PROGRAMME,544193,130248030,08-Dec-14,"4,120.24",CMG HOMES LTD,SP0000075
WANDSWORTH COUNCIL,ASC,SOCIAL SERVICES,VOL ASS,Revenue,SUPPORTED HOUSING PROGRAMME,548175,130248030,11-Dec-14,"4,120.24",CMG HOMES LTD,SP0000075
WANDSWORTH COUNCIL,ASC,SOCIAL SERVICES,VOL ASS,Revenue,SUPPORTED HOUSING PROGRAMME,548209,130248030,11-Dec-14,"1,861.19",HARINGEY ASSOCIATION FOR INDEPENDENT LIV,SP0000222
WANDSWORTH COUNCIL,ASC,SOCIAL SERVICES,VOL ASS,Revenue,SUPPORTED HOUSING PROGRAMME,548210,130248030,11-Dec-14,790.53,HARINGEY ASSOCIATION FOR INDEPENDENT LIV,SP0000222
WANDSWORTH COUNCIL,ASC,SOCIAL SERVICES,VOL ASS,Revenue,SUPPORTED HOUSING PROGRAMME,552867,130248030,18-Dec-14,833.06,HARINGEY ASSOCIATION FOR INDEPENDENT LIV,SP0000222
WANDSWORTH COUNCIL,ASC,SOCIAL SERVICES,VOL ASS,Revenue,SUPPORTED HOUSING PROGRAMME,552869,130248030,18-Dec-14,"3,247.28",HARINGEY ASSOCIATION FOR INDEPENDENT LIV,SP0000222
WANDSWORTH COUNCIL,ASC,SOCIAL SERVICES,VOL ASS,Revenue,SUPPORTED HOUSING PROGRAMME,552870,130248030,18-Dec-14,"1,521.52",HARINGEY ASSOCIATION FOR INDEPENDENT LIV,SP0000222
WANDSWORTH COUNCIL,ASC,SOCIAL SERVICES,VOL ASS,Revenue,SUPPORTED HOUSING PROGRAMME,548620,130248030,11-Dec-14,"5,543.72",NORWOOD SCHOOLS LTD,SP0000332
WANDSWORTH COUNCIL,ASC,SOCIAL SERVICES,VOL ASS,Revenue,SUPPORTED HOUSING PROGRAMME,539735,130248030,01-Dec-14,"1,015.28",LIFEWAYS COMMUNITY CARE LTD,SP0000364
WANDSWORTH COUNCIL,ASC,SOCIAL SERVICES,VOL ASS,Revenue,SUPPORTED HOUSING PROGRAMME,539736,130248030,01-Dec-14,"1,015.28",LIFEWAYS COMMUNITY CARE LTD,SP0000364
WANDSWORTH COUNCIL,ASC,SOCIAL SERVICES,VOL ASS,Revenue,SUPPORTED HOUSING PROGRAMME,548581,130248030,11-Dec-14,"3,292.68",LIFEWAYS COMMUNITY CARE LTD,SP0000364
WANDSWORTH COUNCIL,ASC,SOCIAL SERVICES,VOL ASS,Revenue,SUPPORTED HOUSING PROGRAMME,548582,130248030,11-Dec-14,"2,210.76",LIFEWAYS COMMUNITY CARE LTD,SP0000364
WANDSWORTH COUNCIL,ASC,SOCIAL SERVICES,VOL ASS,Revenue,SUPPORTED HOUSING PROGRAMME,548583,130248030,11-Dec-14,"1,850.12",LIFEWAYS COMMUNITY CARE LTD,SP0000364
WANDSWORTH COUNCIL,ASC,SOCIAL SERVICES,VOL ASS,Revenue,SUPPORTED HOUSING PROGRAMME,548584,130248030,11-Dec-14,"1,901.64",LIFEWAYS COMMUNITY CARE LTD,SP0000364
WANDSWORTH COUNCIL,ASC,SOCIAL SERVICES,VOL ASS,Revenue,SUPPORTED HOUSING PROGRAMME,548585,130248030,11-Dec-14,"1,695.56",LIFEWAYS COMMUNITY CARE LTD,SP0000364
WANDSWORTH COUNCIL,ASC,SOCIAL SERVICES,VOL ASS,Revenue,SUPPORTED HOUSING PROGRAMME,548586,130248030,11-Dec-14,"2,932.04",LIFEWAYS COMMUNITY CARE LTD,SP0000364
WANDSWORTH COUNCIL,ASC,SOCIAL SERVICES,VOL ASS,Revenue,SUPPORTED HOUSING PROGRAMME,548587,130248030,11-Dec-14,"1,953.16",LIFEWAYS COMMUNITY CARE LTD,SP0000364
WANDSWORTH COUNCIL,ASC,SOCIAL SERVICES,VOL ASS,Revenue,SUPPORTED HOUSING PROGRAMME,548588,130248030,11-Dec-14,"1,695.56",LIFEWAYS COMMUNITY CARE LTD,SP0000364
WANDSWORTH COUNCIL,ASC,SOCIAL SERVICES,VOL ASS,Revenue,SUPPORTED HOUSING PROGRAMME,548589,130248030,11-Dec-14,"1,901.64",LIFEWAYS COMMUNITY CARE LTD,SP0000364
WANDSWORTH COUNCIL,ASC,SOCIAL SERVICES,VOL ASS,Revenue,SUPPORTED HOUSING PROGRAMME,548590,130248030,11-Dec-14,"2,056.20",LIFEWAYS COMMUNITY CARE LTD,SP0000364
WANDSWORTH COUNCIL,ASC,SOCIAL SERVICES,VOL ASS,Revenue,SUPPORTED HOUSING PROGRAMME,548591,130248030,11-Dec-14,"1,489.48",LIFEWAYS COMMUNITY CARE LTD,SP0000364
WANDSWORTH COUNCIL,ASC,SOCIAL SERVICES,VOL ASS,Revenue,SUPPORTED HOUSING PROGRAMME,548592,130248030,11-Dec-14,"1,644.04",LIFEWAYS COMMUNITY CARE LTD,SP0000364
WANDSWORTH COUNCIL,ASC,SOCIAL SERVICES,VOL ASS,Revenue,SUPPORTED HOUSING PROGRAMME,548593,130248030,11-Dec-14,"2,725.96",LIFEWAYS COMMUNITY CARE LTD,SP0000364
WANDSWORTH COUNCIL,ASC,SOCIAL SERVICES,VOL ASS,Revenue,SUPPORTED HOUSING PROGRAMME,548594,130248030,11-Dec-14,"1,015.28",LIFEWAYS COMMUNITY CARE LTD,SP0000364
WANDSWORTH COUNCIL,ASC,SOCIAL SERVICES,VOL ASS,Revenue,SUPPORTED HOUSING PROGRAMME,548598,130248030,11-Dec-14,"3,335.96",LIFEWAYS COMMUNITY CARE LTD,SP0000364
WANDSWORTH COUNCIL,ASC,SOCIAL SERVICES,VOL ASS,Revenue,SUPPORTED HOUSING PROGRAMME,548599,130248030,11-Dec-14,"2,603.48",LIFEWAYS COMMUNITY CARE LTD,SP0000364
WANDSWORTH COUNCIL,ASC,SOCIAL SERVICES,VOL ASS,Revenue,SUPPORTED HOUSING PROGRAMME,548600,130248030,11-Dec-14,"2,551.16",LIFEWAYS COMMUNITY CARE LTD,SP0000364
WANDSWORTH COUNCIL,ASC,SOCIAL SERVICES,VOL ASS,Revenue,SUPPORTED HOUSING PROGRAMME,548601,130248030,11-Dec-14,"3,335.96",LIFEWAYS COMMUNITY CARE LTD,SP0000364
WANDSWORTH COUNCIL,ASC,SOCIAL SERVICES,VOL ASS,Revenue,SUPPORTED HOUSING PROGRAMME,548602,130248030,11-Dec-14,"2,603.48",LIFEWAYS COMMUNITY CARE LTD,SP0000364
WANDSWORTH COUNCIL,ASC,SOCIAL SERVICES,VOL ASS,Revenue,SUPPORTED HOUSING PROGRAMME,548603,130248030,11-Dec-14,"2,969.72",LIFEWAYS COMMUNITY CARE LTD,SP0000364
WANDSWORTH COUNCIL,ASC,SOCIAL SERVICES,VOL ASS,Revenue,SUPPORTED HOUSING PROGRAMME,548604,130248030,11-Dec-14,"2,341.88",LIFEWAYS COMMUNITY CARE LTD,SP0000364
WANDSWORTH COUNCIL,ASC,SOCIAL SERVICES,VOL ASS,Revenue,SUPPORTED HOUSING PROGRAMME,548605,130248030,11-Dec-14,"2,551.16",LIFEWAYS COMMUNITY CARE LTD,SP0000364
WANDSWORTH COUNCIL,ASC,SOCIAL SERVICES,VOL ASS,Revenue,SUPPORTED HOUSING PROGRAMME,548606,130248030,11-Dec-14,"1,292.80",LIFEWAYS COMMUNITY CARE LTD,SP0000364
WANDSWORTH COUNCIL,ASC,SOCIAL SERVICES,VOL ASS,Revenue,SUPPORTED HOUSING PROGRAMME,548607,130248030,11-Dec-14,"1,975.56",LIFEWAYS COMMUNITY CARE LTD,SP0000364
WANDSWORTH COUNCIL,ASC,SOCIAL SERVICES,VOL ASS,Revenue,SUPPORTED HOUSING PROGRAMME,548608,130248030,11-Dec-14,"2,025.24",LIFEWAYS COMMUNITY CARE LTD,SP0000364
WANDSWORTH COUNCIL,ASC,SOCIAL SERVICES,VOL ASS,Revenue,SUPPORTED HOUSING PROGRAMME,548609,130248030,11-Dec-14,"2,025.24",LIFEWAYS COMMUNITY CARE LTD,SP0000364
WANDSWORTH COUNCIL,ASC,SOCIAL SERVICES,VOL ASS,Revenue,SUPPORTED HOUSING PROGRAMME,548610,130248030,11-Dec-14,"2,025.24",LIFEWAYS COMMUNITY CARE LTD,SP0000364
WANDSWORTH COUNCIL,ASC,SOCIAL SERVICES,VOL ASS,Revenue,SUPPORTED HOUSING PROGRAMME,548611,130248030,11-Dec-14,"2,244.28",LIFEWAYS COMMUNITY CARE LTD,SP0000364
WANDSWORTH COUNCIL,ASC,SOCIAL SERVICES,VOL ASS,Revenue,SUPPORTED HOUSING PROGRAMME,548612,130248030,11-Dec-14,"2,518.08",LIFEWAYS COMMUNITY CARE LTD,SP0000364
WANDSWORTH COUNCIL,ASC,SOCIAL SERVICES,VOL ASS,Revenue,SUPPORTED HOUSING PROGRAMME,548613,130248030,11-Dec-14,"2,025.24",LIFEWAYS COMMUNITY CARE LTD,SP0000364
WANDSWORTH COUNCIL,ASC,SOCIAL SERVICES,VOL ASS,Revenue,SUPPORTED HOUSING PROGRAMME,548614,130248030,11-Dec-14,"2,244.28",LIFEWAYS COMMUNITY CARE LTD,SP0000364
WANDSWORTH COUNCIL,ASC,SOCIAL SERVICES,VOL ASS,Revenue,SUPPORTED HOUSING PROGRAMME,548615,130248030,11-Dec-14,"2,056.72",LIFEWAYS COMMUNITY CARE LTD,SP0000364
WANDSWORTH COUNCIL,ASC,SOCIAL SERVICES,VOL ASS,Revenue,SUPPORTED HOUSING PROGRAMME,548616,130248030,11-Dec-14,"2,187.52",LIFEWAYS COMMUNITY CARE LTD,SP0000364
WANDSWORTH COUNCIL,ASC,SOCIAL SERVICES,VOL ASS,Revenue,SUPPORTED HOUSING PROGRAMME,548617,130248030,11-Dec-14,"2,501.44",LIFEWAYS COMMUNITY CARE LTD,SP0000364
WANDSWORTH COUNCIL,ASC,SOCIAL SERVICES,VOL ASS,Revenue,SUPPORTED HOUSING PROGRAMME,557614,130248030,23-Dec-14,"1,566.76",LIFEWAYS COMMUNITY CARE LTD,SP0000364
WANDSWORTH COUNCIL,ASC,SOCIAL SERVICES,VOL ASS,Revenue,SUPPORTED HOUSING PROGRAMME,557615,130248030,23-Dec-14,"1,015.28",LIFEWAYS COMMUNITY CARE LTD,SP0000364
WANDSWORTH COUNCIL,ASC,SOCIAL SERVICES,VOL ASS,Revenue,SUPPORTED HOUSING PROGRAMME,539608,130248030,01-Dec-14,"9,574.36",CHOICE SUPPORT,SP0000398
WANDSWORTH COUNCIL,ASC,SOCIAL SERVICES,VOL ASS,Revenue,SUPPORTED HOUSING PROGRAMME,539609,130248030,01-Dec-14,"7,972.24",CHOICE SUPPORT,SP0000398
WANDSWORTH COUNCIL,ASC,SOCIAL SERVICES,VOL ASS,Revenue,SUPPORTED HOUSING PROGRAMME,539747,130248030,01-Dec-14,"8,080.68",CHOICE SUPPORT,SP0000398
WANDSWORTH COUNCIL,ASC,SOCIAL SERVICES,VOL ASS,Revenue,SUPPORTED HOUSING PROGRAMME,548829,130248030,11-Dec-14,"9,574.36",CHOICE SUPPORT,SP0000398
WANDSWORTH COUNCIL,ASC,SOCIAL SERVICES,VOL ASS,Revenue,SUPPORTED HOUSING PROGRAMME,548970,130248030,11-Dec-14,"8,080.68",CHOICE SUPPORT,SP0000398
WANDSWORTH COUNCIL,ASC,SOCIAL SERVICES,VOL ASS,Revenue,SUPPORTED HOUSING PROGRAMME,557793,130248030,23-Dec-14,"7,972.24",CHOICE SUPPORT,SP0000398
WANDSWORTH COUNCIL,ASC,SOCIAL SERVICES,VOL ASS,Revenue,SUPPORTED HOUSING PROGRAMME,549494,130248030,12-Dec-14,"1,964.20",C M CARE LTD,SP0000455
WANDSWORTH COUNCIL,ASC,SOCIAL SERVICES,VOL ASS,Revenue,SUPPORTED HOUSING PROGRAMME,539749,130248030,01-Dec-14,"1,353.32",FRONTIER SUPPORT SERVICES LTD,SP0001132
WANDSWORTH COUNCIL,ASC,SOCIAL SERVICES,VOL ASS,Revenue,SUPPORTED HOUSING PROGRAMME,551613,130248030,17-Dec-14,"1,535.48",FRONTIER SUPPORT SERVICES LTD,SP0001132
WANDSWORTH COUNCIL,ASC,SOCIAL SERVICES,VOL ASS,Revenue,SUPPORTED HOUSING PROGRAMME,551615,130248030,17-Dec-14,"1,533.00",FRONTIER SUPPORT SERVICES LTD,SP0001132
WANDSWORTH COUNCIL,ASC,SOCIAL SERVICES,VOL ASS,Revenue,SUPPORTED HOUSING PROGRAMME,551616,130248030,17-Dec-14,"1,353.32",FRONTIER SUPPORT SERVICES LTD,SP0001132
WANDSWORTH COUNCIL,ASC,SOCIAL SERVICES,VOL ASS,Revenue,SUPPORTED HOUSING PROGRAMME,551617,130248030,17-Dec-14,"1,097.52",FRONTIER SUPPORT SERVICES LTD,SP0001132
WANDSWORTH COUNCIL,ASC,SOCIAL SERVICES,VOL ASS,Revenue,SUPPORTED HOUSING PROGRAMME,551618,130248030,17-Dec-14,"1,353.32",FRONTIER SUPPORT SERVICES LTD,SP0001132
WANDSWORTH COUNCIL,ASC,SOCIAL SERVICES,VOL ASS,Revenue,SUPPORTED HOUSING PROGRAMME,551619,130248030,17-Dec-14,"1,097.56",FRONTIER SUPPORT SERVICES LTD,SP0001132
WANDSWORTH COUNCIL,ASC,SOCIAL SERVICES,VOL ASS,Revenue,SUPPORTED HOUSING PROGRAMME,551621,130248030,17-Dec-14,"1,864.88",FRONTIER SUPPORT SERVICES LTD,SP0001132
WANDSWORTH COUNCIL,ASC,SOCIAL SERVICES,VOL ASS,Revenue,SUPPORTED HOUSING PROGRAMME,551622,130248030,17-Dec-14,657.80,FRONTIER SUPPORT SERVICES LTD,SP0001132
WANDSWORTH COUNCIL,ASC,SOCIAL SERVICES,VOL ASS,Revenue,SUPPORTED HOUSING PROGRAMME,551623,130248030,17-Dec-14,"2,509.20",FRONTIER SUPPORT SERVICES LTD,SP0001132
WANDSWORTH COUNCIL,ASC,SOCIAL SERVICES,VOL ASS,Revenue,SUPPORTED HOUSING PROGRAMME,551624,130248030,17-Dec-14,"1,251.12",FRONTIER SUPPORT SERVICES LTD,SP0001132
WANDSWORTH COUNCIL,ASC,SOCIAL SERVICES,VOL ASS,Revenue,SUPPORTED HOUSING PROGRAMME,551625,130248030,17-Dec-14,"1,685.92",FRONTIER SUPPORT SERVICES LTD,SP0001132
WANDSWORTH COUNCIL,ASC,SOCIAL SERVICES,VOL ASS,Revenue,SUPPORTED HOUSING PROGRAMME,551609,130248030,17-Dec-14,"9,036.32",PRECIOUS HOMES LTD,SP0001459
WANDSWORTH COUNCIL,ASC,SOCIAL SERVICES,VOL ASS,Revenue,SUPPORTED HOUSING PROGRAMME,551610,130248030,17-Dec-14,"3,954.71",PRECIOUS HOMES LTD,SP0001459
WANDSWORTH COUNCIL,ASC,SOCIAL SERVICES,VOL ASS,Revenue,SUPPORTED HOUSING PROGRAMME,543483,130248030,08-Dec-14,"1,551.32",THE BRANDON TRUST,SP0005337
WANDSWORTH COUNCIL,ASC,SOCIAL SERVICES,VOL ASS,Revenue,SUPPORTED HOUSING PROGRAMME,543484,130248030,08-Dec-14,"1,504.84",THE BRANDON TRUST,SP0005337
WANDSWORTH COUNCIL,ASC,SOCIAL SERVICES,VOL ASS,Revenue,SUPPORTED HOUSING PROGRAMME,543485,130248030,08-Dec-14,"1,504.84",THE BRANDON TRUST,SP0005337
WANDSWORTH COUNCIL,ASC,SOCIAL SERVICES,VOL ASS,Revenue,SUPPORTED HOUSING PROGRAMME,543486,130248030,08-Dec-14,"1,936.52",THE BRANDON TRUST,SP0005337
WANDSWORTH COUNCIL,ASC,SOCIAL SERVICES,VOL ASS,Revenue,SUPPORTED HOUSING PROGRAMME,543487,130248030,08-Dec-14,"7,764.16",THE BRANDON TRUST,SP0005337
WANDSWORTH COUNCIL,ASC,SOCIAL SERVICES,VOL ASS,Revenue,SUPPORTED HOUSING PROGRAMME,543488,130248030,08-Dec-14,"2,327.04",THE BRANDON TRUST,SP0005337
WANDSWORTH COUNCIL,ASC,SOCIAL SERVICES,VOL ASS,Revenue,SUPPORTED HOUSING PROGRAMME,543489,130248030,08-Dec-14,"2,969.16",THE BRANDON TRUST,SP0005337
WANDSWORTH COUNCIL,ASC,SOCIAL SERVICES,VOL ASS,Revenue,SUPPORTED HOUSING PROGRAMME,543490,130248030,08-Dec-14,"1,513.68",THE BRANDON TRUST,SP0005337
WANDSWORTH COUNCIL,ASC,SOCIAL SERVICES,VOL ASS,Revenue,SUPPORTED HOUSING PROGRAMME,543491,130248030,08-Dec-14,"1,513.68",THE BRANDON TRUST,SP0005337
WANDSWORTH COUNCIL,ASC,SOCIAL SERVICES,VOL ASS,Revenue,SUPPORTED HOUSING PROGRAMME,543492,130248030,08-Dec-14,"2,856.96",THE BRANDON TRUST,SP0005337
WANDSWORTH COUNCIL,ASC,SOCIAL SERVICES,VOL ASS,Revenue,SUPPORTED HOUSING PROGRAMME,543493,130248030,08-Dec-14,"2,260.80",THE BRANDON TRUST,SP0005337
WANDSWORTH COUNCIL,ASC,SOCIAL SERVICES,VOL ASS,Revenue,SUPPORTED HOUSING PROGRAMME,543494,130248030,08-Dec-14,"3,453.12",THE BRANDON TRUST,SP0005337
WANDSWORTH COUNCIL,ASC,SOCIAL SERVICES,VOL ASS,Revenue,SUPPORTED HOUSING PROGRAMME,543495,130248030,08-Dec-14,"2,790.72",THE BRANDON TRUST,SP0005337
WANDSWORTH COUNCIL,ASC,SOCIAL SERVICES,VOL ASS,Revenue,SUPPORTED HOUSING PROGRAMME,543496,130248030,08-Dec-14,"1,886.40",THE BRANDON TRUST,SP0005337
WANDSWORTH COUNCIL,ASC,SOCIAL SERVICES,VOL ASS,Revenue,SUPPORTED HOUSING PROGRAMME,543497,130248030,08-Dec-14,"1,797.12",THE BRANDON TRUST,SP0005337
WANDSWORTH COUNCIL,ASC,SOCIAL SERVICES,VOL ASS,Revenue,SUPPORTED HOUSING PROGRAMME,543498,130248030,08-Dec-14,"2,062.08",THE BRANDON TRUST,SP0005337
WANDSWORTH COUNCIL,ASC,SOCIAL SERVICES,VOL ASS,Revenue,SUPPORTED HOUSING PROGRAMME,543499,130248030,08-Dec-14,"3,520.16",THE BRANDON TRUST,SP0005337
WANDSWORTH COUNCIL,ASC,SOCIAL SERVICES,VOL ASS,Revenue,SUPPORTED HOUSING PROGRAMME,543500,130248030,08-Dec-14,"2,580.17",THE BRANDON TRUST,SP0005337
WANDSWORTH COUNCIL,ASC,SOCIAL SERVICES,VOL ASS,Revenue,SUPPORTED HOUSING PROGRAMME,543501,130248030,08-Dec-14,"1,929.60",THE BRANDON TRUST,SP0005337
WANDSWORTH COUNCIL,ASC,SOCIAL SERVICES,VOL ASS,Revenue,SUPPORTED HOUSING PROGRAMME,543502,130248030,08-Dec-14,"1,499.04",THE BRANDON TRUST,SP0005337
WANDSWORTH COUNCIL,ASC,SOCIAL SERVICES,VOL ASS,Revenue,SUPPORTED HOUSING PROGRAMME,543503,130248030,08-Dec-14,"2,459.52",THE BRANDON TRUST,SP0005337
WANDSWORTH COUNCIL,ASC,SOCIAL SERVICES,VOL ASS,Revenue,SUPPORTED HOUSING PROGRAMME,543504,130248030,08-Dec-14,"3,883.68",THE BRANDON TRUST,SP0005337
WANDSWORTH COUNCIL,ASC,SOCIAL SERVICES,VOL ASS,Revenue,SUPPORTED HOUSING PROGRAMME,543505,130248030,08-Dec-14,"1,730.88",THE BRANDON TRUST,SP0005337
WANDSWORTH COUNCIL,ASC,SOCIAL SERVICES,VOL ASS,Revenue,SUPPORTED HOUSING PROGRAMME,543506,130248030,08-Dec-14,"1,465.92",THE BRANDON TRUST,SP0005337
WANDSWORTH COUNCIL,ASC,SOCIAL SERVICES,VOL ASS,Revenue,SUPPORTED HOUSING PROGRAMME,543507,130248030,08-Dec-14,"2,979.92",THE BRANDON TRUST,SP0005337
WANDSWORTH COUNCIL,ASC,SOCIAL SERVICES,VOL ASS,Revenue,SUPPORTED HOUSING PROGRAMME,543508,130248030,08-Dec-14,"2,186.04",THE BRANDON TRUST,SP0005337
WANDSWORTH COUNCIL,ASC,SOCIAL SERVICES,VOL ASS,Revenue,SUPPORTED HOUSING PROGRAMME,543509,130248030,08-Dec-14,"1,125.08",THE BRANDON TRUST,SP0005337
WANDSWORTH COUNCIL,ASC,SOCIAL SERVICES,VOL ASS,Revenue,SUPPORTED HOUSING PROGRAMME,543510,130248030,08-Dec-14,"1,155.88",THE BRANDON TRUST,SP0005337
WANDSWORTH COUNCIL,ASC,SOCIAL SERVICES,VOL ASS,Revenue,SUPPORTED HOUSING PROGRAMME,543511,130248030,08-Dec-14,"1,854.72",THE BRANDON TRUST,SP0005337
WANDSWORTH COUNCIL,ASC,SOCIAL SERVICES,VOL ASS,Revenue,SUPPORTED HOUSING PROGRAMME,543512,130248030,08-Dec-14,"1,380.64",THE BRANDON TRUST,SP0005337
WANDSWORTH COUNCIL,ASC,SOCIAL SERVICES,VOL ASS,Revenue,SUPPORTED HOUSING PROGRAMME,543513,130248030,08-Dec-14,"1,466.16",THE BRANDON TRUST,SP0005337
WANDSWORTH COUNCIL,ASC,SOCIAL SERVICES,VOL ASS,Revenue,SUPPORTED HOUSING PROGRAMME,543515,130248030,08-Dec-14,"2,923.88",THE BRANDON TRUST,SP0005337
WANDSWORTH COUNCIL,ASC,SOCIAL SERVICES,VOL ASS,Revenue,SUPPORTED HOUSING PROGRAMME,543516,130248030,08-Dec-14,"4,687.20",THE BRANDON TRUST,SP0005337
WANDSWORTH COUNCIL,ASC,SOCIAL SERVICES,VOL ASS,Revenue,SUPPORTED HOUSING PROGRAMME,543517,130248030,08-Dec-14,"4,688.56",THE BRANDON TRUST,SP0005337
WANDSWORTH COUNCIL,ASC,SOCIAL SERVICES,VOL ASS,Revenue,SUPPORTED HOUSING PROGRAMME,543518,130248030,08-Dec-14,"3,320.64",THE BRANDON TRUST,SP0005337
WANDSWORTH COUNCIL,ASC,SOCIAL SERVICES,VOL ASS,Revenue,SUPPORTED HOUSING PROGRAMME,543519,130248030,08-Dec-14,"3,702.20",THE BRANDON TRUST,SP0005337
WANDSWORTH COUNCIL,ASC,SOCIAL SERVICES,VOL ASS,Revenue,SUPPORTED HOUSING PROGRAMME,543520,130248030,08-Dec-14,"1,465.92",THE BRANDON TRUST,SP0005337
WANDSWORTH COUNCIL,ASC,SOCIAL SERVICES,VOL ASS,Revenue,SUPPORTED HOUSING PROGRAMME,543521,130248030,08-Dec-14,"3,718.08",THE BRANDON TRUST,SP0005337
WANDSWORTH COUNCIL,ASC,SOCIAL SERVICES,VOL ASS,Revenue,SUPPORTED HOUSING PROGRAMME,543522,130248030,08-Dec-14,"3,121.92",THE BRANDON TRUST,SP0005337
WANDSWORTH COUNCIL,ASC,SOCIAL SERVICES,VOL ASS,Revenue,SUPPORTED HOUSING PROGRAMME,543523,130248030,08-Dec-14,"5,688.08",THE BRANDON TRUST,SP0005337
WANDSWORTH COUNCIL,ASC,SOCIAL SERVICES,VOL ASS,Revenue,SUPPORTED HOUSING PROGRAMME,543524,130248030,08-Dec-14,"5,983.44",THE BRANDON TRUST,SP0005337
WANDSWORTH COUNCIL,ASC,SOCIAL SERVICES,VOL ASS,Revenue,SUPPORTED HOUSING PROGRAMME,543525,130248030,08-Dec-14,"4,827.60",THE BRANDON TRUST,SP0005337
WANDSWORTH COUNCIL,ASC,SOCIAL SERVICES,VOL ASS,Revenue,SUPPORTED HOUSING PROGRAMME,543526,130248030,08-Dec-14,"6,346.04",THE BRANDON TRUST,SP0005337
WANDSWORTH COUNCIL,ASC,SOCIAL SERVICES,VOL ASS,Revenue,SUPPORTED HOUSING PROGRAMME,543527,130248030,08-Dec-14,"3,324.96",THE BRANDON TRUST,SP0005337
WANDSWORTH COUNCIL,ASC,SOCIAL SERVICES,VOL ASS,Revenue,SUPPORTED HOUSING PROGRAMME,543528,130248030,08-Dec-14,"2,886.04",THE BRANDON TRUST,SP0005337
WANDSWORTH COUNCIL,ASC,SOCIAL SERVICES,VOL ASS,Revenue,SUPPORTED HOUSING PROGRAMME,543529,130248030,08-Dec-14,331.20,THE BRANDON TRUST,SP0005337
WANDSWORTH COUNCIL,ASC,SOCIAL SERVICES,VOL ASS,Revenue,SUPPORTED HOUSING PROGRAMME,543530,130248030,08-Dec-14,"2,758.28",THE BRANDON TRUST,SP0005337
WANDSWORTH COUNCIL,ASC,SOCIAL SERVICES,VOL ASS,Revenue,SUPPORTED HOUSING PROGRAMME,543531,130248030,08-Dec-14,"2,128.32",THE BRANDON TRUST,SP0005337
WANDSWORTH COUNCIL,ASC,SOCIAL SERVICES,VOL ASS,Revenue,SUPPORTED HOUSING PROGRAMME,543532,130248030,08-Dec-14,"6,198.76",THE BRANDON TRUST,SP0005337
WANDSWORTH COUNCIL,ASC,SOCIAL SERVICES,VOL ASS,Revenue,SUPPORTED HOUSING PROGRAMME,543533,130248030,08-Dec-14,"1,465.92",THE BRANDON TRUST,SP0005337
WANDSWORTH COUNCIL,ASC,SOCIAL SERVICES,VOL ASS,Revenue,SUPPORTED HOUSING PROGRAMME,543534,130248030,08-Dec-14,"1,548.72",THE BRANDON TRUST,SP0005337
WANDSWORTH COUNCIL,ASC,SOCIAL SERVICES,VOL ASS,Revenue,SUPPORTED HOUSING PROGRAMME,543535,130248030,08-Dec-14,"2,658.24",THE BRANDON TRUST,SP0005337
WANDSWORTH COUNCIL,ASC,SOCIAL SERVICES,VOL ASS,Revenue,SUPPORTED HOUSING PROGRAMME,543536,130248030,08-Dec-14,"2,592.60",THE BRANDON TRUST,SP0005337
WANDSWORTH COUNCIL,ASC,SOCIAL SERVICES,VOL ASS,Revenue,SUPPORTED HOUSING PROGRAMME,543537,130248030,08-Dec-14,"2,724.48",THE BRANDON TRUST,SP0005337
WANDSWORTH COUNCIL,ASC,SOCIAL SERVICES,VOL ASS,Revenue,SUPPORTED HOUSING PROGRAMME,543538,130248030,08-Dec-14,"2,658.24",THE BRANDON TRUST,SP0005337
WANDSWORTH COUNCIL,ASC,SOCIAL SERVICES,VOL ASS,Revenue,SUPPORTED HOUSING PROGRAMME,543539,130248030,08-Dec-14,"2,618.48",THE BRANDON TRUST,SP0005337
WANDSWORTH COUNCIL,ASC,SOCIAL SERVICES,VOL ASS,Revenue,SUPPORTED HOUSING PROGRAMME,544420,130248030,08-Dec-14,"1,034.48",THE BRANDON TRUST,SP0005337
WANDSWORTH COUNCIL,ASC,SOCIAL SERVICES,VOL ASS,Revenue,SUPPORTED HOUSING PROGRAMME,544439,130248030,08-Dec-14,"1,477.60",THE BRANDON TRUST,SP0005337
WANDSWORTH COUNCIL,ASC,SOCIAL SERVICES,VOL ASS,Revenue,SUPPORTED HOUSING PROGRAMME,544440,130248030,08-Dec-14,"1,674.84",THE BRANDON TRUST,SP0005337
WANDSWORTH COUNCIL,ASC,SOCIAL SERVICES,VOL ASS,Revenue,SUPPORTED HOUSING PROGRAMME,544441,130248030,08-Dec-14,"2,405.96",THE BRANDON TRUST,SP0005337
WANDSWORTH COUNCIL,ASC,SOCIAL SERVICES,VOL ASS,Revenue,SUPPORTED HOUSING PROGRAMME,544442,130248030,08-Dec-14,"3,564.56",THE BRANDON TRUST,SP0005337
WANDSWORTH COUNCIL,ASC,SOCIAL SERVICES,VOL ASS,Revenue,SUPPORTED HOUSING PROGRAMME,544443,130248030,08-Dec-14,"3,416.80",THE BRANDON TRUST,SP0005337
WANDSWORTH COUNCIL,ASC,SOCIAL SERVICES,VOL ASS,Revenue,SUPPORTED HOUSING PROGRAMME,544444,130248030,08-Dec-14,"2,848.72",THE BRANDON TRUST,SP0005337
WANDSWORTH COUNCIL,ASC,SOCIAL SERVICES,VOL ASS,Revenue,SUPPORTED HOUSING PROGRAMME,544445,130248030,08-Dec-14,"2,327.24",THE BRANDON TRUST,SP0005337
WANDSWORTH COUNCIL,ASC,SOCIAL SERVICES,VOL ASS,Revenue,SUPPORTED HOUSING PROGRAMME,544446,130248030,08-Dec-14,"2,327.24",THE BRANDON TRUST,SP0005337
WANDSWORTH COUNCIL,ASC,SOCIAL SERVICES,VOL ASS,Revenue,SUPPORTED HOUSING PROGRAMME,544447,130248030,08-Dec-14,"2,065.12",THE BRANDON TRUST,SP0005337
WANDSWORTH COUNCIL,ASC,SOCIAL SERVICES,VOL ASS,Revenue,SUPPORTED HOUSING PROGRAMME,544940,130248030,08-Dec-14,"1,477.60",THE BRANDON TRUST,SP0005337
WANDSWORTH COUNCIL,ASC,SOCIAL SERVICES,VOL ASS,Revenue,SUPPORTED HOUSING PROGRAMME,544408,130248030,08-Dec-14,"4,772.00",CARE UNLIMITED DOMCARE LIMITED,SP0005359
WANDSWORTH COUNCIL,ASC,SOCIAL SERVICES,VOL ASS,Revenue,SUPPORTED HOUSING PROGRAMME,544936,130248030,08-Dec-14,"4,772.00",CARE UNLIMITED DOMCARE LIMITED,SP0005359
WANDSWORTH COUNCIL,ASC,SOCIAL SERVICES,VOL ASS,Revenue,SUPPORTED HOUSING PROGRAMME,544937,130248030,08-Dec-14,"4,772.00",CARE UNLIMITED DOMCARE LIMITED,SP0005359
WANDSWORTH COUNCIL,ASC,SOCIAL SERVICES,VOL ASS,Revenue,SUPPORTED HOUSING PROGRAMME,544938,130248030,08-Dec-14,"4,772.00",CARE UNLIMITED DOMCARE LIMITED,SP0005359
WANDSWORTH COUNCIL,ASC,SOCIAL SERVICES,VOL ASS,Revenue,SUPPORTED HOUSING PROGRAMME,544939,130248030,08-Dec-14,"4,772.00",CARE UNLIMITED DOMCARE LIMITED,SP0005359
WANDSWORTH COUNCIL,ASC,SOCIAL SERVICES,VOL ASS,Revenue,SUPPORTED HOUSING PROGRAMME,551630,130248030,17-Dec-14,"7,650.00",RELIABLE PERSONNEL LTD,SP0005657
WANDSWORTH COUNCIL,ASC,SOCIAL SERVICES,DIRECT,Revenue,DIRECT PAYMENTS,545367,130250380,08-Dec-14,838.12,VIBRANCE,SP0005489
WANDSWORTH COUNCIL,ASC,SOCIAL SERVICES,DIRECT,Revenue,DIRECT PAYMENTS,556204,130250380,19-Dec-14,838.12,VIBRANCE,SP0005489
WANDSWORTH COUNCIL,ASC,SOCIAL SERVICES,CUSTOMER & CLIENT RECPTS - EXT,Revenue,CL CONT EXT RESIDEN S28A 100%,548838,130280680,11-Dec-14,-495.80,ELEANOR NURSING & SOCIAL CARE,SP0000110
WANDSWORTH COUNCIL,ASC,SOCIAL SERVICES,CUSTOMER & CLIENT RECPTS - EXT,Revenue,CL CONT EXT RESIDEN S28A 100%,539592,130280680,01-Dec-14,-531.21,ST MARYS RESIDENTIAL HOME,SP0000215
WANDSWORTH COUNCIL,ASC,SOCIAL SERVICES,CUSTOMER & CLIENT RECPTS - EXT,Revenue,CL CONT EXT RESIDEN S28A 100%,552800,130280680,18-Dec-14,-548.92,ST MARYS RESIDENTIAL HOME,SP0000215
WANDSWORTH COUNCIL,ASC,SOCIAL SERVICES,CUSTOMER & CLIENT RECPTS - EXT,Revenue,CL CONT EXT RESIDEN S28A 100%,555676,130280680,19-Dec-14,-548.92,VOYAGE CARE LTD,SP0000366
WANDSWORTH COUNCIL,ASC,SOCIAL SERVICES,CUSTOMER & CLIENT RECPTS - EXT,Revenue,CL CONT EXT RESIDEN S28A 100%,555677,130280680,19-Dec-14,-353.62,VOYAGE CARE LTD,SP0000366
WANDSWORTH COUNCIL,ASC,SOCIAL SERVICES,CUSTOMER & CLIENT RECPTS - EXT,Revenue,CL CONT EXT RESIDEN S28A 100%,555701,130280680,19-Dec-14,-353.62,VOYAGE CARE LTD,SP0000366
WANDSWORTH COUNCIL,ASC,SOCIAL SERVICES,CUSTOMER & CLIENT RECPTS - EXT,Revenue,CL CONT EXT RESIDEN S28A 100%,548837,130280680,11-Dec-14,-495.80,ASHTON CARE,SP0000695
WANDSWORTH COUNCIL,ASC,SOCIAL SERVICES,CUSTOMER & CLIENT RECPTS - EXT,Revenue,CL CONT EXT RESIDEN S28A 100%,552733,130280680,18-Dec-14,-548.92,RALEIGH HOUSE LTD,SP0000760
WANDSWORTH COUNCIL,ASC,SOCIAL SERVICES,CUSTOMER & CLIENT RECPTS - EXT,Revenue,CL CONT EXTERNAL RESIDENT S28A,544188,130280710,08-Dec-14,-397.20,CMG HOMES LTD,SP0000075
WANDSWORTH COUNCIL,ASC,SOCIAL SERVICES,CUSTOMER & CLIENT RECPTS - EXT,Revenue,CL CONT EXTERNAL RESIDENT S28A,548171,130280710,11-Dec-14,-397.20,CMG HOMES LTD,SP0000075
WANDSWORTH COUNCIL,ASC,SOCIAL SERVICES,CUSTOMER & CLIENT RECPTS - EXT,Revenue,CL CONT EXTERNAL RESIDENT S28A,544202,130280710,08-Dec-14,-319.40,MACINTYRE CARE,SP0000473
WANDSWORTH COUNCIL,ASC,SOCIAL SERVICES,CUSTOMER & CLIENT RECPTS - EXT,Revenue,CL CONT EXTERNAL RESIDENT S28A,544214,130280710,08-Dec-14,-511.80,MACINTYRE CARE,SP0000473
WANDSWORTH COUNCIL,ASC,SOCIAL SERVICES,CUSTOMER & CLIENT RECPTS - EXT,Revenue,CL CONT EXTERNAL RESIDENT S28A,544217,130280710,08-Dec-14,-319.40,MACINTYRE CARE,SP0000473
WANDSWORTH COUNCIL,ASC,SOCIAL SERVICES,CUSTOMER & CLIENT RECPTS - EXT,Revenue,CL CONT EXTERNAL RESIDENT S28A,552760,130280710,18-Dec-14,-319.40,MACINTYRE CARE,SP0000473
WANDSWORTH COUNCIL,ASC,SOCIAL SERVICES,CUSTOMER & CLIENT RECPTS - EXT,Revenue,CL CONT EXTERNAL RESIDENT S28A,552767,130280710,18-Dec-14,-511.80,MACINTYRE CARE,SP0000473
WANDSWORTH COUNCIL,ASC,SOCIAL SERVICES,CUSTOMER & CLIENT RECPTS - EXT,Revenue,CL CONT EXTERNAL RESIDENT S28A,552769,130280710,18-Dec-14,-319.40,MACINTYRE CARE,SP0000473
WANDSWORTH COUNCIL,ASC,SOCIAL SERVICES,CUSTOMER & CLIENT RECPTS - EXT,Revenue,CL CONT EXTERNAL RESIDENT S28A,560416,130280710,30-Dec-14,-319.40,MACINTYRE CARE,SP0000473
WANDSWORTH COUNCIL,ASC,SOCIAL SERVICES,CUSTOMER & CLIENT RECPTS - EXT,Revenue,CL CONT EXTERNAL RESIDENT S28A,560425,130280710,30-Dec-14,-511.80,MACINTYRE CARE,SP0000473
WANDSWORTH COUNCIL,ASC,SOCIAL SERVICES,CUSTOMER & CLIENT RECPTS - EXT,Revenue,CL CONT EXTERNAL RESIDENT S28A,560428,130280710,30-Dec-14,-319.40,MACINTYRE CARE,SP0000473
WANDSWORTH COUNCIL,ASC,SOCIAL SERVICES,CUSTOMER & CLIENT RECPTS - EXT,Revenue,CL CONT EXTERNAL RESIDENT S28A,555689,130280710,19-Dec-14,-319.40,SURREY & BORDERS PARTNERSHIP NHS TRUST,SP0000501
WANDSWORTH COUNCIL,ASC,SOCIAL SERVICES,CUSTOMER & CLIENT RECPTS - EXT,Revenue,CL CONT EXTERNAL RESIDENT S28A,548863,130280710,11-Dec-14,-353.62,PARKGATE MANOR,SP0000521
WANDSWORTH COUNCIL,ASC,SOCIAL SERVICES,CUSTOMER & CLIENT RECPTS - EXT,Revenue,CL CONT EXTERNAL RESIDENT S28A,548819,130280710,11-Dec-14,-548.92,THE COMMUNITY CARE COMPANY UK LTD,SP0000576
WANDSWORTH COUNCIL,ASC,SOCIAL SERVICES,CUSTOMER & CLIENT RECPTS - EXT,Revenue,CL CONT EXTERNAL RESIDENT S28A,544253,130280710,08-Dec-14,-319.40,METROPOLITAN HOUSING TRUST,SP0000626
WANDSWORTH COUNCIL,ASC,SOCIAL SERVICES,CUSTOMER & CLIENT RECPTS - EXT,Revenue,CL CONT EXTERNAL RESIDENT S28A,544258,130280710,08-Dec-14,-319.40,METROPOLITAN HOUSING TRUST,SP0000626
WANDSWORTH COUNCIL,ASC,SOCIAL SERVICES,CUSTOMER & CLIENT RECPTS - EXT,Revenue,CL CONT EXTERNAL RESIDENT S28A,544261,130280710,08-Dec-14,-486.00,METROPOLITAN HOUSING TRUST,SP0000626
WANDSWORTH COUNCIL,ASC,SOCIAL SERVICES,CUSTOMER & CLIENT RECPTS - EXT,Revenue,CL CONT EXTERNAL RESIDENT S28A,544273,130280710,08-Dec-14,-319.40,METROPOLITAN HOUSING TRUST,SP0000626
WANDSWORTH COUNCIL,ASC,SOCIAL SERVICES,CUSTOMER & CLIENT RECPTS - EXT,Revenue,CL CONT EXTERNAL RESIDENT S28A,544278,130280710,08-Dec-14,-319.40,METROPOLITAN HOUSING TRUST,SP0000626
WANDSWORTH COUNCIL,ASC,SOCIAL SERVICES,CUSTOMER & CLIENT RECPTS - EXT,Revenue,CL CONT EXTERNAL RESIDENT S28A,544281,130280710,08-Dec-14,-486.00,METROPOLITAN HOUSING TRUST,SP0000626
WANDSWORTH COUNCIL,ASC,SOCIAL SERVICES,CUSTOMER & CLIENT RECPTS - EXT,Revenue,CL CONT EXTERNAL RESIDENTIAL,545523,130280720,08-Dec-14,-980.40,THE LYLE PARK TRUST,SP0000070
WANDSWORTH COUNCIL,ASC,SOCIAL SERVICES,CUSTOMER & CLIENT RECPTS - EXT,Revenue,CL CONT EXTERNAL RESIDENTIAL,544184,130280720,08-Dec-14,-319.40,CMG HOMES LTD,SP0000075
WANDSWORTH COUNCIL,ASC,SOCIAL SERVICES,CUSTOMER & CLIENT RECPTS - EXT,Revenue,CL CONT EXTERNAL RESIDENTIAL,544186,130280720,08-Dec-14,-335.00,CMG HOMES LTD,SP0000075
WANDSWORTH COUNCIL,ASC,SOCIAL SERVICES,CUSTOMER & CLIENT RECPTS - EXT,Revenue,CL CONT EXTERNAL RESIDENTIAL,544189,130280720,08-Dec-14,-259.20,CMG HOMES LTD,SP0000075
WANDSWORTH COUNCIL,ASC,SOCIAL SERVICES,CUSTOMER & CLIENT RECPTS - EXT,Revenue,CL CONT EXTERNAL RESIDENTIAL,544190,130280720,08-Dec-14,-319.40,CMG HOMES LTD,SP0000075
WANDSWORTH COUNCIL,ASC,SOCIAL SERVICES,CUSTOMER & CLIENT RECPTS - EXT,Revenue,CL CONT EXTERNAL RESIDENTIAL,544191,130280720,08-Dec-14,-319.40,CMG HOMES LTD,SP0000075
WANDSWORTH COUNCIL,ASC,SOCIAL SERVICES,CUSTOMER & CLIENT RECPTS - EXT,Revenue,CL CONT EXTERNAL RESIDENTIAL,544192,130280720,08-Dec-14,-495.80,CMG HOMES LTD,SP0000075
WANDSWORTH COUNCIL,ASC,SOCIAL SERVICES,CUSTOMER & CLIENT RECPTS - EXT,Revenue,CL CONT EXTERNAL RESIDENTIAL,544194,130280720,08-Dec-14,-362.80,CMG HOMES LTD,SP0000075
WANDSWORTH COUNCIL,ASC,SOCIAL SERVICES,CUSTOMER & CLIENT RECPTS - EXT,Revenue,CL CONT EXTERNAL RESIDENTIAL,544196,130280720,08-Dec-14,-319.40,CMG HOMES LTD,SP0000075
WANDSWORTH COUNCIL,ASC,SOCIAL SERVICES,CUSTOMER & CLIENT RECPTS - EXT,Revenue,CL CONT EXTERNAL RESIDENTIAL,548168,130280720,11-Dec-14,-319.40,CMG HOMES LTD,SP0000075
WANDSWORTH COUNCIL,ASC,SOCIAL SERVICES,CUSTOMER & CLIENT RECPTS - EXT,Revenue,CL CONT EXTERNAL RESIDENTIAL,548169,130280720,11-Dec-14,-335.00,CMG HOMES LTD,SP0000075
WANDSWORTH COUNCIL,ASC,SOCIAL SERVICES,CUSTOMER & CLIENT RECPTS - EXT,Revenue,CL CONT EXTERNAL RESIDENTIAL,548172,130280720,11-Dec-14,-319.40,CMG HOMES LTD,SP0000075
WANDSWORTH COUNCIL,ASC,SOCIAL SERVICES,CUSTOMER & CLIENT RECPTS - EXT,Revenue,CL CONT EXTERNAL RESIDENTIAL,548173,130280720,11-Dec-14,-319.40,CMG HOMES LTD,SP0000075
WANDSWORTH COUNCIL,ASC,SOCIAL SERVICES,CUSTOMER & CLIENT RECPTS - EXT,Revenue,CL CONT EXTERNAL RESIDENTIAL,548174,130280720,11-Dec-14,-495.80,CMG HOMES LTD,SP0000075
WANDSWORTH COUNCIL,ASC,SOCIAL SERVICES,CUSTOMER & CLIENT RECPTS - EXT,Revenue,CL CONT EXTERNAL RESIDENTIAL,548176,130280720,11-Dec-14,-362.80,CMG HOMES LTD,SP0000075
WANDSWORTH COUNCIL,ASC,SOCIAL SERVICES,CUSTOMER & CLIENT RECPTS - EXT,Revenue,CL CONT EXTERNAL RESIDENTIAL,555660,130280720,19-Dec-14,-353.62,COUNTRY CARE,SP0000090
WANDSWORTH COUNCIL,ASC,SOCIAL SERVICES,CUSTOMER & CLIENT RECPTS - EXT,Revenue,CL CONT EXTERNAL RESIDENTIAL,557749,130280720,23-Dec-14,-453.51,NATIONAL SOCIETY FOR EPILEPSY,SP0000120
WANDSWORTH COUNCIL,ASC,SOCIAL SERVICES,CUSTOMER & CLIENT RECPTS - EXT,Revenue,CL CONT EXTERNAL RESIDENTIAL,545384,130280720,08-Dec-14,-319.40,SANCTUARY CARE LTD,SP0000121
WANDSWORTH COUNCIL,ASC,SOCIAL SERVICES,CUSTOMER & CLIENT RECPTS - EXT,Revenue,CL CONT EXTERNAL RESIDENTIAL,548847,130280720,11-Dec-14,-305.62,IN CHORUS LTD,SP0000129
WANDSWORTH COUNCIL,ASC,SOCIAL SERVICES,CUSTOMER & CLIENT RECPTS - EXT,Revenue,CL CONT EXTERNAL RESIDENTIAL,552717,130280720,18-Dec-14,-305.61,IN CHORUS LTD,SP0000129
WANDSWORTH COUNCIL,ASC,SOCIAL SERVICES,CUSTOMER & CLIENT RECPTS - EXT,Revenue,CL CONT EXTERNAL RESIDENTIAL,560464,130280720,30-Dec-14,-319.40,THE CHESTNUTS,SP0000182
WANDSWORTH COUNCIL,ASC,SOCIAL SERVICES,CUSTOMER & CLIENT RECPTS - EXT,Revenue,CL CONT EXTERNAL RESIDENTIAL,560465,130280720,30-Dec-14,-319.40,THE CHESTNUTS,SP0000182
WANDSWORTH COUNCIL,ASC,SOCIAL SERVICES,CUSTOMER & CLIENT RECPTS - EXT,Revenue,CL CONT EXTERNAL RESIDENTIAL,552777,130280720,18-Dec-14,-319.40,ORCHARD VALE TRUST,SP0000214
WANDSWORTH COUNCIL,ASC,SOCIAL SERVICES,CUSTOMER & CLIENT RECPTS - EXT,Revenue,CL CONT EXTERNAL RESIDENTIAL,539581,130280720,01-Dec-14,-259.50,ST MARYS RESIDENTIAL HOME,SP0000215
WANDSWORTH COUNCIL,ASC,SOCIAL SERVICES,CUSTOMER & CLIENT RECPTS - EXT,Revenue,CL CONT EXTERNAL RESIDENTIAL,539582,130280720,01-Dec-14,-531.21,ST MARYS RESIDENTIAL HOME,SP0000215
WANDSWORTH COUNCIL,ASC,SOCIAL SERVICES,CUSTOMER & CLIENT RECPTS - EXT,Revenue,CL CONT EXTERNAL RESIDENTIAL,539583,130280720,01-Dec-14,-342.21,ST MARYS RESIDENTIAL HOME,SP0000215
WANDSWORTH COUNCIL,ASC,SOCIAL SERVICES,CUSTOMER & CLIENT RECPTS - EXT,Revenue,CL CONT EXTERNAL RESIDENTIAL,539584,130280720,01-Dec-14,-342.21,ST MARYS RESIDENTIAL HOME,SP0000215
WANDSWORTH COUNCIL,ASC,SOCIAL SERVICES,CUSTOMER & CLIENT RECPTS - EXT,Revenue,CL CONT EXTERNAL RESIDENTIAL,539585,130280720,01-Dec-14,-531.21,ST MARYS RESIDENTIAL HOME,SP0000215
WANDSWORTH COUNCIL,ASC,SOCIAL SERVICES,CUSTOMER & CLIENT RECPTS - EXT,Revenue,CL CONT EXTERNAL RESIDENTIAL,539586,130280720,01-Dec-14,-342.21,ST MARYS RESIDENTIAL HOME,SP0000215
WANDSWORTH COUNCIL,ASC,SOCIAL SERVICES,CUSTOMER & CLIENT RECPTS - EXT,Revenue,CL CONT EXTERNAL RESIDENTIAL,539587,130280720,01-Dec-14,-342.21,ST MARYS RESIDENTIAL HOME,SP0000215
WANDSWORTH COUNCIL,ASC,SOCIAL SERVICES,CUSTOMER & CLIENT RECPTS - EXT,Revenue,CL CONT EXTERNAL RESIDENTIAL,539588,130280720,01-Dec-14,-342.21,ST MARYS RESIDENTIAL HOME,SP0000215
WANDSWORTH COUNCIL,ASC,SOCIAL SERVICES,CUSTOMER & CLIENT RECPTS - EXT,Revenue,CL CONT EXTERNAL RESIDENTIAL,539589,130280720,01-Dec-14,-531.21,ST MARYS RESIDENTIAL HOME,SP0000215
WANDSWORTH COUNCIL,ASC,SOCIAL SERVICES,CUSTOMER & CLIENT RECPTS - EXT,Revenue,CL CONT EXTERNAL RESIDENTIAL,539591,130280720,01-Dec-14,-711.32,ST MARYS RESIDENTIAL HOME,SP0000215
WANDSWORTH COUNCIL,ASC,SOCIAL SERVICES,CUSTOMER & CLIENT RECPTS - EXT,Revenue,CL CONT EXTERNAL RESIDENTIAL,539593,130280720,01-Dec-14,"-1,333.40",ST MARYS RESIDENTIAL HOME,SP0000215
WANDSWORTH COUNCIL,ASC,SOCIAL SERVICES,CUSTOMER & CLIENT RECPTS - EXT,Revenue,CL CONT EXTERNAL RESIDENTIAL,539594,130280720,01-Dec-14,-319.40,ST MARYS RESIDENTIAL HOME,SP0000215
WANDSWORTH COUNCIL,ASC,SOCIAL SERVICES,CUSTOMER & CLIENT RECPTS - EXT,Revenue,CL CONT EXTERNAL RESIDENTIAL,552790,130280720,18-Dec-14,-268.15,ST MARYS RESIDENTIAL HOME,SP0000215
WANDSWORTH COUNCIL,ASC,SOCIAL SERVICES,CUSTOMER & CLIENT RECPTS - EXT,Revenue,CL CONT EXTERNAL RESIDENTIAL,552791,130280720,18-Dec-14,-548.92,ST MARYS RESIDENTIAL HOME,SP0000215
WANDSWORTH COUNCIL,ASC,SOCIAL SERVICES,CUSTOMER & CLIENT RECPTS - EXT,Revenue,CL CONT EXTERNAL RESIDENTIAL,552792,130280720,18-Dec-14,-353.62,ST MARYS RESIDENTIAL HOME,SP0000215
WANDSWORTH COUNCIL,ASC,SOCIAL SERVICES,CUSTOMER & CLIENT RECPTS - EXT,Revenue,CL CONT EXTERNAL RESIDENTIAL,552793,130280720,18-Dec-14,-548.92,ST MARYS RESIDENTIAL HOME,SP0000215
WANDSWORTH COUNCIL,ASC,SOCIAL SERVICES,CUSTOMER & CLIENT RECPTS - EXT,Revenue,CL CONT EXTERNAL RESIDENTIAL,552794,130280720,18-Dec-14,-353.62,ST MARYS RESIDENTIAL HOME,SP0000215
WANDSWORTH COUNCIL,ASC,SOCIAL SERVICES,CUSTOMER & CLIENT RECPTS - EXT,Revenue,CL CONT EXTERNAL RESIDENTIAL,552795,130280720,18-Dec-14,-353.62,ST MARYS RESIDENTIAL HOME,SP0000215
WANDSWORTH COUNCIL,ASC,SOCIAL SERVICES,CUSTOMER & CLIENT RECPTS - EXT,Revenue,CL CONT EXTERNAL RESIDENTIAL,552796,130280720,18-Dec-14,-353.62,ST MARYS RESIDENTIAL HOME,SP0000215
WANDSWORTH COUNCIL,ASC,SOCIAL SERVICES,CUSTOMER & CLIENT RECPTS - EXT,Revenue,CL CONT EXTERNAL RESIDENTIAL,552797,130280720,18-Dec-14,-548.92,ST MARYS RESIDENTIAL HOME,SP0000215
WANDSWORTH COUNCIL,ASC,SOCIAL SERVICES,CUSTOMER & CLIENT RECPTS - EXT,Revenue,CL CONT EXTERNAL RESIDENTIAL,552799,130280720,18-Dec-14,-711.32,ST MARYS RESIDENTIAL HOME,SP0000215
WANDSWORTH COUNCIL,ASC,SOCIAL SERVICES,CUSTOMER & CLIENT RECPTS - EXT,Revenue,CL CONT EXTERNAL RESIDENTIAL,552801,130280720,18-Dec-14,"-1,333.40",ST MARYS RESIDENTIAL HOME,SP0000215
WANDSWORTH COUNCIL,ASC,SOCIAL SERVICES,CUSTOMER & CLIENT RECPTS - EXT,Revenue,CL CONT EXTERNAL RESIDENTIAL,552802,130280720,18-Dec-14,-319.40,ST MARYS RESIDENTIAL HOME,SP0000215
WANDSWORTH COUNCIL,ASC,SOCIAL SERVICES,CUSTOMER & CLIENT RECPTS - EXT,Revenue,CL CONT EXTERNAL RESIDENTIAL,542617,130280720,04-Dec-14,-319.40,NAS SERVICES LIMITED,SP0000217
WANDSWORTH COUNCIL,ASC,SOCIAL SERVICES,CUSTOMER & CLIENT RECPTS - EXT,Revenue,CL CONT EXTERNAL RESIDENTIAL,548875,130280720,11-Dec-14,-319.40,SPRING LAKE,SP0000223
WANDSWORTH COUNCIL,ASC,SOCIAL SERVICES,CUSTOMER & CLIENT RECPTS - EXT,Revenue,CL CONT EXTERNAL RESIDENTIAL,548876,130280720,11-Dec-14,-362.80,SPRING LAKE,SP0000223
WANDSWORTH COUNCIL,ASC,SOCIAL SERVICES,CUSTOMER & CLIENT RECPTS - EXT,Revenue,CL CONT EXTERNAL RESIDENTIAL,544209,130280720,08-Dec-14,-319.40,HAYDON PARK LODGE LTD,SP0000231
WANDSWORTH COUNCIL,ASC,SOCIAL SERVICES,CUSTOMER & CLIENT RECPTS - EXT,Revenue,CL CONT EXTERNAL RESIDENTIAL,557784,130280720,23-Dec-14,-622.48,CAMERON LODGE LIMITED,SP0000271
WANDSWORTH COUNCIL,ASC,SOCIAL SERVICES,CUSTOMER & CLIENT RECPTS - EXT,Revenue,CL CONT EXTERNAL RESIDENTIAL,555656,130280720,19-Dec-14,-388.71,BROOKDALE CARE,SP0000282
WANDSWORTH COUNCIL,ASC,SOCIAL SERVICES,CUSTOMER & CLIENT RECPTS - EXT,Revenue,CL CONT EXTERNAL RESIDENTIAL,555657,130280720,19-Dec-14,-401.67,BROOKDALE CARE,SP0000282
WANDSWORTH COUNCIL,ASC,SOCIAL SERVICES,CUSTOMER & CLIENT RECPTS - EXT,Revenue,CL CONT EXTERNAL RESIDENTIAL,548831,130280720,11-Dec-14,-319.40,CRAEGMOOR FACILITIES CO LTD,SP0000306
WANDSWORTH COUNCIL,ASC,SOCIAL SERVICES,CUSTOMER & CLIENT RECPTS - EXT,Revenue,CL CONT EXTERNAL RESIDENTIAL,552746,130280720,18-Dec-14,-353.62,RESIDENTIAL COMMUNITY CARE,SP0000315
WANDSWORTH COUNCIL,ASC,SOCIAL SERVICES,CUSTOMER & CLIENT RECPTS - EXT,Revenue,CL CONT EXTERNAL RESIDENTIAL,548877,130280720,11-Dec-14,-353.62,DOLPHIN HOMES LTD,SP0000331
WANDSWORTH COUNCIL,ASC,SOCIAL SERVICES,CUSTOMER & CLIENT RECPTS - EXT,Revenue,CL CONT EXTERNAL RESIDENTIAL,548878,130280720,11-Dec-14,-353.62,DOLPHIN HOMES LTD,SP0000331
WANDSWORTH COUNCIL,ASC,SOCIAL SERVICES,CUSTOMER & CLIENT RECPTS - EXT,Revenue,CL CONT EXTERNAL RESIDENTIAL,557821,130280720,23-Dec-14,-353.62,DOLPHIN HOMES LTD,SP0000331
WANDSWORTH COUNCIL,ASC,SOCIAL SERVICES,CUSTOMER & CLIENT RECPTS - EXT,Revenue,CL CONT EXTERNAL RESIDENTIAL,557822,130280720,23-Dec-14,-353.62,DOLPHIN HOMES LTD,SP0000331
WANDSWORTH COUNCIL,ASC,SOCIAL SERVICES,CUSTOMER & CLIENT RECPTS - EXT,Revenue,CL CONT EXTERNAL RESIDENTIAL,548869,130280720,11-Dec-14,-319.40,NORWOOD SCHOOLS LTD,SP0000332
WANDSWORTH COUNCIL,ASC,SOCIAL SERVICES,CUSTOMER & CLIENT RECPTS - EXT,Revenue,CL CONT EXTERNAL RESIDENTIAL,548870,130280720,11-Dec-14,-319.40,NORWOOD SCHOOLS LTD,SP0000332
WANDSWORTH COUNCIL,ASC,SOCIAL SERVICES,CUSTOMER & CLIENT RECPTS - EXT,Revenue,CL CONT EXTERNAL RESIDENTIAL,555667,130280720,19-Dec-14,-548.92,HEYWOODS GRANGE LTD,SP0000361
WANDSWORTH COUNCIL,ASC,SOCIAL SERVICES,CUSTOMER & CLIENT RECPTS - EXT,Revenue,CL CONT EXTERNAL RESIDENTIAL,555678,130280720,19-Dec-14,-568.32,VOYAGE CARE LTD,SP0000366
WANDSWORTH COUNCIL,ASC,SOCIAL SERVICES,CUSTOMER & CLIENT RECPTS - EXT,Revenue,CL CONT EXTERNAL RESIDENTIAL,555679,130280720,19-Dec-14,-372.28,VOYAGE CARE LTD,SP0000366
WANDSWORTH COUNCIL,ASC,SOCIAL SERVICES,CUSTOMER & CLIENT RECPTS - EXT,Revenue,CL CONT EXTERNAL RESIDENTIAL,555684,130280720,19-Dec-14,-397.20,VOYAGE CARE LTD,SP0000366
WANDSWORTH COUNCIL,ASC,SOCIAL SERVICES,CUSTOMER & CLIENT RECPTS - EXT,Revenue,CL CONT EXTERNAL RESIDENTIAL,555697,130280720,19-Dec-14,-353.62,VOYAGE CARE LTD,SP0000366
WANDSWORTH COUNCIL,ASC,SOCIAL SERVICES,CUSTOMER & CLIENT RECPTS - EXT,Revenue,CL CONT EXTERNAL RESIDENTIAL,555699,130280720,19-Dec-14,-203.08,VOYAGE CARE LTD,SP0000366
WANDSWORTH COUNCIL,ASC,SOCIAL SERVICES,CUSTOMER & CLIENT RECPTS - EXT,Revenue,CL CONT EXTERNAL RESIDENTIAL,555703,130280720,19-Dec-14,-345.80,VOYAGE CARE LTD,SP0000366
WANDSWORTH COUNCIL,ASC,SOCIAL SERVICES,CUSTOMER & CLIENT RECPTS - EXT,Revenue,CL CONT EXTERNAL RESIDENTIAL,555704,130280720,19-Dec-14,-350.60,VOYAGE CARE LTD,SP0000366
WANDSWORTH COUNCIL,ASC,SOCIAL SERVICES,CUSTOMER & CLIENT RECPTS - EXT,Revenue,CL CONT EXTERNAL RESIDENTIAL,557762,130280720,23-Dec-14,-353.62,ST DAVIDS CARE IN THE COMMUNITY,SP0000379
WANDSWORTH COUNCIL,ASC,SOCIAL SERVICES,CUSTOMER & CLIENT RECPTS - EXT,Revenue,CL CONT EXTERNAL RESIDENTIAL,557763,130280720,23-Dec-14,-353.62,ST DAVIDS CARE IN THE COMMUNITY,SP0000379
WANDSWORTH COUNCIL,ASC,SOCIAL SERVICES,CUSTOMER & CLIENT RECPTS - EXT,Revenue,CL CONT EXTERNAL RESIDENTIAL,557764,130280720,23-Dec-14,-353.62,ST DAVIDS CARE IN THE COMMUNITY,SP0000379
WANDSWORTH COUNCIL,ASC,SOCIAL SERVICES,CUSTOMER & CLIENT RECPTS - EXT,Revenue,CL CONT EXTERNAL RESIDENTIAL,557809,130280720,23-Dec-14,-353.62,ESSEX CARE CONSORTIUM,SP0000387
WANDSWORTH COUNCIL,ASC,SOCIAL SERVICES,CUSTOMER & CLIENT RECPTS - EXT,Revenue,CL CONT EXTERNAL RESIDENTIAL,560457,130280720,30-Dec-14,-319.40,POTENSIAL LTD,SP0000395
WANDSWORTH COUNCIL,ASC,SOCIAL SERVICES,CUSTOMER & CLIENT RECPTS - EXT,Revenue,CL CONT EXTERNAL RESIDENTIAL,552788,130280720,18-Dec-14,-319.40,KENILWORTH RESIDENTIAL HOME,SP0000432
WANDSWORTH COUNCIL,ASC,SOCIAL SERVICES,CUSTOMER & CLIENT RECPTS - EXT,Revenue,CL CONT EXTERNAL RESIDENTIAL,552789,130280720,18-Dec-14,-495.80,KENILWORTH RESIDENTIAL HOME,SP0000432
WANDSWORTH COUNCIL,ASC,SOCIAL SERVICES,CUSTOMER & CLIENT RECPTS - EXT,Revenue,CL CONT EXTERNAL RESIDENTIAL,552753,130280720,18-Dec-14,-362.80,THE WELL HOUSE,SP0000448
WANDSWORTH COUNCIL,ASC,SOCIAL SERVICES,CUSTOMER & CLIENT RECPTS - EXT,Revenue,CL CONT EXTERNAL RESIDENTIAL,552754,130280720,18-Dec-14,-319.40,THE WELL HOUSE,SP0000448
WANDSWORTH COUNCIL,ASC,SOCIAL SERVICES,CUSTOMER & CLIENT RECPTS - EXT,Revenue,CL CONT EXTERNAL RESIDENTIAL,542615,130280720,04-Dec-14,"-1,528.44",MACINTYRE CARE,SP0000473
WANDSWORTH COUNCIL,ASC,SOCIAL SERVICES,CUSTOMER & CLIENT RECPTS - EXT,Revenue,CL CONT EXTERNAL RESIDENTIAL,542616,130280720,04-Dec-14,-441.20,MACINTYRE CARE,SP0000473
WANDSWORTH COUNCIL,ASC,SOCIAL SERVICES,CUSTOMER & CLIENT RECPTS - EXT,Revenue,CL CONT EXTERNAL RESIDENTIAL,544197,130280720,08-Dec-14,-315.20,MACINTYRE CARE,SP0000473
WANDSWORTH COUNCIL,ASC,SOCIAL SERVICES,CUSTOMER & CLIENT RECPTS - EXT,Revenue,CL CONT EXTERNAL RESIDENTIAL,544198,130280720,08-Dec-14,-319.40,MACINTYRE CARE,SP0000473
WANDSWORTH COUNCIL,ASC,SOCIAL SERVICES,CUSTOMER & CLIENT RECPTS - EXT,Revenue,CL CONT EXTERNAL RESIDENTIAL,544199,130280720,08-Dec-14,-495.80,MACINTYRE CARE,SP0000473
WANDSWORTH COUNCIL,ASC,SOCIAL SERVICES,CUSTOMER & CLIENT RECPTS - EXT,Revenue,CL CONT EXTERNAL RESIDENTIAL,544201,130280720,08-Dec-14,-319.40,MACINTYRE CARE,SP0000473
WANDSWORTH COUNCIL,ASC,SOCIAL SERVICES,CUSTOMER & CLIENT RECPTS - EXT,Revenue,CL CONT EXTERNAL RESIDENTIAL,544203,130280720,08-Dec-14,-362.80,MACINTYRE CARE,SP0000473
WANDSWORTH COUNCIL,ASC,SOCIAL SERVICES,CUSTOMER & CLIENT RECPTS - EXT,Revenue,CL CONT EXTERNAL RESIDENTIAL,544204,130280720,08-Dec-14,-319.40,MACINTYRE CARE,SP0000473
WANDSWORTH COUNCIL,ASC,SOCIAL SERVICES,CUSTOMER & CLIENT RECPTS - EXT,Revenue,CL CONT EXTERNAL RESIDENTIAL,544205,130280720,08-Dec-14,-319.40,MACINTYRE CARE,SP0000473
WANDSWORTH COUNCIL,ASC,SOCIAL SERVICES,CUSTOMER & CLIENT RECPTS - EXT,Revenue,CL CONT EXTERNAL RESIDENTIAL,544206,130280720,08-Dec-14,-319.40,MACINTYRE CARE,SP0000473
WANDSWORTH COUNCIL,ASC,SOCIAL SERVICES,CUSTOMER & CLIENT RECPTS - EXT,Revenue,CL CONT EXTERNAL RESIDENTIAL,544208,130280720,08-Dec-14,-319.40,MACINTYRE CARE,SP0000473
WANDSWORTH COUNCIL,ASC,SOCIAL SERVICES,CUSTOMER & CLIENT RECPTS - EXT,Revenue,CL CONT EXTERNAL RESIDENTIAL,544210,130280720,08-Dec-14,-407.20,MACINTYRE CARE,SP0000473
WANDSWORTH COUNCIL,ASC,SOCIAL SERVICES,CUSTOMER & CLIENT RECPTS - EXT,Revenue,CL CONT EXTERNAL RESIDENTIAL,544211,130280720,08-Dec-14,-315.20,MACINTYRE CARE,SP0000473
WANDSWORTH COUNCIL,ASC,SOCIAL SERVICES,CUSTOMER & CLIENT RECPTS - EXT,Revenue,CL CONT EXTERNAL RESIDENTIAL,544212,130280720,08-Dec-14,-495.80,MACINTYRE CARE,SP0000473
WANDSWORTH COUNCIL,ASC,SOCIAL SERVICES,CUSTOMER & CLIENT RECPTS - EXT,Revenue,CL CONT EXTERNAL RESIDENTIAL,544215,130280720,08-Dec-14,-495.80,MACINTYRE CARE,SP0000473
WANDSWORTH COUNCIL,ASC,SOCIAL SERVICES,CUSTOMER & CLIENT RECPTS - EXT,Revenue,CL CONT EXTERNAL RESIDENTIAL,544218,130280720,08-Dec-14,-319.40,MACINTYRE CARE,SP0000473
WANDSWORTH COUNCIL,ASC,SOCIAL SERVICES,CUSTOMER & CLIENT RECPTS - EXT,Revenue,CL CONT EXTERNAL RESIDENTIAL,544219,130280720,08-Dec-14,-319.40,MACINTYRE CARE,SP0000473
WANDSWORTH COUNCIL,ASC,SOCIAL SERVICES,CUSTOMER & CLIENT RECPTS - EXT,Revenue,CL CONT EXTERNAL RESIDENTIAL,544220,130280720,08-Dec-14,-514.80,MACINTYRE CARE,SP0000473
WANDSWORTH COUNCIL,ASC,SOCIAL SERVICES,CUSTOMER & CLIENT RECPTS - EXT,Revenue,CL CONT EXTERNAL RESIDENTIAL,544221,130280720,08-Dec-14,-319.40,MACINTYRE CARE,SP0000473
WANDSWORTH COUNCIL,ASC,SOCIAL SERVICES,CUSTOMER & CLIENT RECPTS - EXT,Revenue,CL CONT EXTERNAL RESIDENTIAL,552757,130280720,18-Dec-14,-319.40,MACINTYRE CARE,SP0000473
WANDSWORTH COUNCIL,ASC,SOCIAL SERVICES,CUSTOMER & CLIENT RECPTS - EXT,Revenue,CL CONT EXTERNAL RESIDENTIAL,552758,130280720,18-Dec-14,-315.20,MACINTYRE CARE,SP0000473
WANDSWORTH COUNCIL,ASC,SOCIAL SERVICES,CUSTOMER & CLIENT RECPTS - EXT,Revenue,CL CONT EXTERNAL RESIDENTIAL,552759,130280720,18-Dec-14,-319.40,MACINTYRE CARE,SP0000473
WANDSWORTH COUNCIL,ASC,SOCIAL SERVICES,CUSTOMER & CLIENT RECPTS - EXT,Revenue,CL CONT EXTERNAL RESIDENTIAL,552761,130280720,18-Dec-14,-362.80,MACINTYRE CARE,SP0000473
WANDSWORTH COUNCIL,ASC,SOCIAL SERVICES,CUSTOMER & CLIENT RECPTS - EXT,Revenue,CL CONT EXTERNAL RESIDENTIAL,552762,130280720,18-Dec-14,-319.40,MACINTYRE CARE,SP0000473
WANDSWORTH COUNCIL,ASC,SOCIAL SERVICES,CUSTOMER & CLIENT RECPTS - EXT,Revenue,CL CONT EXTERNAL RESIDENTIAL,552763,130280720,18-Dec-14,-407.20,MACINTYRE CARE,SP0000473
WANDSWORTH COUNCIL,ASC,SOCIAL SERVICES,CUSTOMER & CLIENT RECPTS - EXT,Revenue,CL CONT EXTERNAL RESIDENTIAL,552764,130280720,18-Dec-14,-315.20,MACINTYRE CARE,SP0000473
WANDSWORTH COUNCIL,ASC,SOCIAL SERVICES,CUSTOMER & CLIENT RECPTS - EXT,Revenue,CL CONT EXTERNAL RESIDENTIAL,552765,130280720,18-Dec-14,-495.80,MACINTYRE CARE,SP0000473
WANDSWORTH COUNCIL,ASC,SOCIAL SERVICES,CUSTOMER & CLIENT RECPTS - EXT,Revenue,CL CONT EXTERNAL RESIDENTIAL,552766,130280720,18-Dec-14,-441.20,MACINTYRE CARE,SP0000473
WANDSWORTH COUNCIL,ASC,SOCIAL SERVICES,CUSTOMER & CLIENT RECPTS - EXT,Revenue,CL CONT EXTERNAL RESIDENTIAL,552768,130280720,18-Dec-14,-495.80,MACINTYRE CARE,SP0000473
WANDSWORTH COUNCIL,ASC,SOCIAL SERVICES,CUSTOMER & CLIENT RECPTS - EXT,Revenue,CL CONT EXTERNAL RESIDENTIAL,552770,130280720,18-Dec-14,-319.40,MACINTYRE CARE,SP0000473
WANDSWORTH COUNCIL,ASC,SOCIAL SERVICES,CUSTOMER & CLIENT RECPTS - EXT,Revenue,CL CONT EXTERNAL RESIDENTIAL,552771,130280720,18-Dec-14,-514.80,MACINTYRE CARE,SP0000473
WANDSWORTH COUNCIL,ASC,SOCIAL SERVICES,CUSTOMER & CLIENT RECPTS - EXT,Revenue,CL CONT EXTERNAL RESIDENTIAL,552772,130280720,18-Dec-14,-319.40,MACINTYRE CARE,SP0000473
WANDSWORTH COUNCIL,ASC,SOCIAL SERVICES,CUSTOMER & CLIENT RECPTS - EXT,Revenue,CL CONT EXTERNAL RESIDENTIAL,552773,130280720,18-Dec-14,-495.80,MACINTYRE CARE,SP0000473
WANDSWORTH COUNCIL,ASC,SOCIAL SERVICES,CUSTOMER & CLIENT RECPTS - EXT,Revenue,CL CONT EXTERNAL RESIDENTIAL,552775,130280720,18-Dec-14,-319.40,MACINTYRE CARE,SP0000473
WANDSWORTH COUNCIL,ASC,SOCIAL SERVICES,CUSTOMER & CLIENT RECPTS - EXT,Revenue,CL CONT EXTERNAL RESIDENTIAL,552776,130280720,18-Dec-14,-79.85,MACINTYRE CARE,SP0000473
WANDSWORTH COUNCIL,ASC,SOCIAL SERVICES,CUSTOMER & CLIENT RECPTS - EXT,Revenue,CL CONT EXTERNAL RESIDENTIAL,552778,130280720,18-Dec-14,-319.40,MACINTYRE CARE,SP0000473
WANDSWORTH COUNCIL,ASC,SOCIAL SERVICES,CUSTOMER & CLIENT RECPTS - EXT,Revenue,CL CONT EXTERNAL RESIDENTIAL,555637,130280720,19-Dec-14,-319.40,MACINTYRE CARE,SP0000473
WANDSWORTH COUNCIL,ASC,SOCIAL SERVICES,CUSTOMER & CLIENT RECPTS - EXT,Revenue,CL CONT EXTERNAL RESIDENTIAL,560411,130280720,30-Dec-14,-315.20,MACINTYRE CARE,SP0000473
WANDSWORTH COUNCIL,ASC,SOCIAL SERVICES,CUSTOMER & CLIENT RECPTS - EXT,Revenue,CL CONT EXTERNAL RESIDENTIAL,560412,130280720,30-Dec-14,-319.40,MACINTYRE CARE,SP0000473
WANDSWORTH COUNCIL,ASC,SOCIAL SERVICES,CUSTOMER & CLIENT RECPTS - EXT,Revenue,CL CONT EXTERNAL RESIDENTIAL,560413,130280720,30-Dec-14,-495.80,MACINTYRE CARE,SP0000473
WANDSWORTH COUNCIL,ASC,SOCIAL SERVICES,CUSTOMER & CLIENT RECPTS - EXT,Revenue,CL CONT EXTERNAL RESIDENTIAL,560415,130280720,30-Dec-14,-319.40,MACINTYRE CARE,SP0000473
WANDSWORTH COUNCIL,ASC,SOCIAL SERVICES,CUSTOMER & CLIENT RECPTS - EXT,Revenue,CL CONT EXTERNAL RESIDENTIAL,560417,130280720,30-Dec-14,-362.80,MACINTYRE CARE,SP0000473
WANDSWORTH COUNCIL,ASC,SOCIAL SERVICES,CUSTOMER & CLIENT RECPTS - EXT,Revenue,CL CONT EXTERNAL RESIDENTIAL,560418,130280720,30-Dec-14,-319.40,MACINTYRE CARE,SP0000473
WANDSWORTH COUNCIL,ASC,SOCIAL SERVICES,CUSTOMER & CLIENT RECPTS - EXT,Revenue,CL CONT EXTERNAL RESIDENTIAL,560419,130280720,30-Dec-14,-319.40,MACINTYRE CARE,SP0000473
WANDSWORTH COUNCIL,ASC,SOCIAL SERVICES,CUSTOMER & CLIENT RECPTS - EXT,Revenue,CL CONT EXTERNAL RESIDENTIAL,560420,130280720,30-Dec-14,-319.40,MACINTYRE CARE,SP0000473
WANDSWORTH COUNCIL,ASC,SOCIAL SERVICES,CUSTOMER & CLIENT RECPTS - EXT,Revenue,CL CONT EXTERNAL RESIDENTIAL,560421,130280720,30-Dec-14,-407.20,MACINTYRE CARE,SP0000473
WANDSWORTH COUNCIL,ASC,SOCIAL SERVICES,CUSTOMER & CLIENT RECPTS - EXT,Revenue,CL CONT EXTERNAL RESIDENTIAL,560422,130280720,30-Dec-14,-315.20,MACINTYRE CARE,SP0000473
WANDSWORTH COUNCIL,ASC,SOCIAL SERVICES,CUSTOMER & CLIENT RECPTS - EXT,Revenue,CL CONT EXTERNAL RESIDENTIAL,560423,130280720,30-Dec-14,-495.80,MACINTYRE CARE,SP0000473
WANDSWORTH COUNCIL,ASC,SOCIAL SERVICES,CUSTOMER & CLIENT RECPTS - EXT,Revenue,CL CONT EXTERNAL RESIDENTIAL,560424,130280720,30-Dec-14,-441.20,MACINTYRE CARE,SP0000473
WANDSWORTH COUNCIL,ASC,SOCIAL SERVICES,CUSTOMER & CLIENT RECPTS - EXT,Revenue,CL CONT EXTERNAL RESIDENTIAL,560426,130280720,30-Dec-14,-495.80,MACINTYRE CARE,SP0000473
WANDSWORTH COUNCIL,ASC,SOCIAL SERVICES,CUSTOMER & CLIENT RECPTS - EXT,Revenue,CL CONT EXTERNAL RESIDENTIAL,560429,130280720,30-Dec-14,-319.40,MACINTYRE CARE,SP0000473
WANDSWORTH COUNCIL,ASC,SOCIAL SERVICES,CUSTOMER & CLIENT RECPTS - EXT,Revenue,CL CONT EXTERNAL RESIDENTIAL,560430,130280720,30-Dec-14,-319.40,MACINTYRE CARE,SP0000473
WANDSWORTH COUNCIL,ASC,SOCIAL SERVICES,CUSTOMER & CLIENT RECPTS - EXT,Revenue,CL CONT EXTERNAL RESIDENTIAL,560431,130280720,30-Dec-14,-514.80,MACINTYRE CARE,SP0000473
WANDSWORTH COUNCIL,ASC,SOCIAL SERVICES,CUSTOMER & CLIENT RECPTS - EXT,Revenue,CL CONT EXTERNAL RESIDENTIAL,560432,130280720,30-Dec-14,-319.40,MACINTYRE CARE,SP0000473
WANDSWORTH COUNCIL,ASC,SOCIAL SERVICES,CUSTOMER & CLIENT RECPTS - EXT,Revenue,CL CONT EXTERNAL RESIDENTIAL,560467,130280720,30-Dec-14,-307.99,MACINTYRE CARE,SP0000473
WANDSWORTH COUNCIL,ASC,SOCIAL SERVICES,CUSTOMER & CLIENT RECPTS - EXT,Revenue,CL CONT EXTERNAL RESIDENTIAL,555690,130280720,19-Dec-14,-495.80,SURREY & BORDERS PARTNERSHIP NHS TRUST,SP0000501
WANDSWORTH COUNCIL,ASC,SOCIAL SERVICES,CUSTOMER & CLIENT RECPTS - EXT,Revenue,CL CONT EXTERNAL RESIDENTIAL,548122,130280720,11-Dec-14,-342.21,AIMS CARE PARTNERSHIP,SP0000561
WANDSWORTH COUNCIL,ASC,SOCIAL SERVICES,CUSTOMER & CLIENT RECPTS - EXT,Revenue,CL CONT EXTERNAL RESIDENTIAL,555694,130280720,19-Dec-14,-353.62,AIMS CARE PARTNERSHIP,SP0000561
WANDSWORTH COUNCIL,ASC,SOCIAL SERVICES,CUSTOMER & CLIENT RECPTS - EXT,Revenue,CL CONT EXTERNAL RESIDENTIAL,557815,130280720,23-Dec-14,-353.62,SEEABILITY,SP0000572
WANDSWORTH COUNCIL,ASC,SOCIAL SERVICES,CUSTOMER & CLIENT RECPTS - EXT,Revenue,CL CONT EXTERNAL RESIDENTIAL,548824,130280720,11-Dec-14,-401.67,THE COMMUNITY CARE COMPANY UK LTD,SP0000576
WANDSWORTH COUNCIL,ASC,SOCIAL SERVICES,CUSTOMER & CLIENT RECPTS - EXT,Revenue,CL CONT EXTERNAL RESIDENTIAL,548825,130280720,11-Dec-14,-353.62,THE COMMUNITY CARE COMPANY UK LTD,SP0000576
WANDSWORTH COUNCIL,ASC,SOCIAL SERVICES,CUSTOMER & CLIENT RECPTS - EXT,Revenue,CL CONT EXTERNAL RESIDENTIAL,548826,130280720,11-Dec-14,-353.62,THE COMMUNITY CARE COMPANY UK LTD,SP0000576
WANDSWORTH COUNCIL,ASC,SOCIAL SERVICES,CUSTOMER & CLIENT RECPTS - EXT,Revenue,CL CONT EXTERNAL RESIDENTIAL,548835,130280720,11-Dec-14,-353.62,THE COMMUNITY CARE COMPANY UK LTD,SP0000576
WANDSWORTH COUNCIL,ASC,SOCIAL SERVICES,CUSTOMER & CLIENT RECPTS - EXT,Revenue,CL CONT EXTERNAL RESIDENTIAL,557788,130280720,23-Dec-14,-548.92,THE COMMUNITY CARE COMPANY UK LTD,SP0000576
WANDSWORTH COUNCIL,ASC,SOCIAL SERVICES,CUSTOMER & CLIENT RECPTS - EXT,Revenue,CL CONT EXTERNAL RESIDENTIAL,557808,130280720,23-Dec-14,-353.62,THE COMMUNITY CARE COMPANY UK LTD,SP0000576
WANDSWORTH COUNCIL,ASC,SOCIAL SERVICES,CUSTOMER & CLIENT RECPTS - EXT,Revenue,CL CONT EXTERNAL RESIDENTIAL,555629,130280720,19-Dec-14,-353.62,BIRCC,SP0000584
WANDSWORTH COUNCIL,ASC,SOCIAL SERVICES,CUSTOMER & CLIENT RECPTS - EXT,Revenue,CL CONT EXTERNAL RESIDENTIAL,552734,130280720,18-Dec-14,-439.76,THE REGARD PARTNERSHIP,SP0000588
WANDSWORTH COUNCIL,ASC,SOCIAL SERVICES,CUSTOMER & CLIENT RECPTS - EXT,Revenue,CL CONT EXTERNAL RESIDENTIAL,552735,130280720,18-Dec-14,-439.76,THE REGARD PARTNERSHIP,SP0000588
WANDSWORTH COUNCIL,ASC,SOCIAL SERVICES,CUSTOMER & CLIENT RECPTS - EXT,Revenue,CL CONT EXTERNAL RESIDENTIAL,552736,130280720,18-Dec-14,-353.62,THE REGARD PARTNERSHIP,SP0000588
WANDSWORTH COUNCIL,ASC,SOCIAL SERVICES,CUSTOMER & CLIENT RECPTS - EXT,Revenue,CL CONT EXTERNAL RESIDENTIAL,552737,130280720,18-Dec-14,-559.90,THE REGARD PARTNERSHIP,SP0000588
WANDSWORTH COUNCIL,ASC,SOCIAL SERVICES,CUSTOMER & CLIENT RECPTS - EXT,Revenue,CL CONT EXTERNAL RESIDENTIAL,552755,130280720,18-Dec-14,-439.76,THE REGARD PARTNERSHIP,SP0000588
WANDSWORTH COUNCIL,ASC,SOCIAL SERVICES,CUSTOMER & CLIENT RECPTS - EXT,Revenue,CL CONT EXTERNAL RESIDENTIAL,557820,130280720,23-Dec-14,-319.40,EVERGREEN PARTNERSHIP,SP0000597
WANDSWORTH COUNCIL,ASC,SOCIAL SERVICES,CUSTOMER & CLIENT RECPTS - EXT,Revenue,CL CONT EXTERNAL RESIDENTIAL,549264,130280720,12-Dec-14,-319.40,LAETUS LODGE,SP0000600
WANDSWORTH COUNCIL,ASC,SOCIAL SERVICES,CUSTOMER & CLIENT RECPTS - EXT,Revenue,CL CONT EXTERNAL RESIDENTIAL,549266,130280720,12-Dec-14,-397.20,LAETUS LODGE,SP0000600
WANDSWORTH COUNCIL,ASC,SOCIAL SERVICES,CUSTOMER & CLIENT RECPTS - EXT,Revenue,CL CONT EXTERNAL RESIDENTIAL,549268,130280720,12-Dec-14,-362.80,LAETUS LODGE,SP0000600
WANDSWORTH COUNCIL,ASC,SOCIAL SERVICES,CUSTOMER & CLIENT RECPTS - EXT,Revenue,CL CONT EXTERNAL RESIDENTIAL,549269,130280720,12-Dec-14,-319.40,LAETUS LODGE,SP0000600
WANDSWORTH COUNCIL,ASC,SOCIAL SERVICES,CUSTOMER & CLIENT RECPTS - EXT,Revenue,CL CONT EXTERNAL RESIDENTIAL,549270,130280720,12-Dec-14,-319.40,LAETUS LODGE,SP0000600
WANDSWORTH COUNCIL,ASC,SOCIAL SERVICES,CUSTOMER & CLIENT RECPTS - EXT,Revenue,CL CONT EXTERNAL RESIDENTIAL,548188,130280720,11-Dec-14,-353.62,MENCAP,SP0000604
WANDSWORTH COUNCIL,ASC,SOCIAL SERVICES,CUSTOMER & CLIENT RECPTS - EXT,Revenue,CL CONT EXTERNAL RESIDENTIAL,548189,130280720,11-Dec-14,-353.62,MENCAP,SP0000604
WANDSWORTH COUNCIL,ASC,SOCIAL SERVICES,CUSTOMER & CLIENT RECPTS - EXT,Revenue,CL CONT EXTERNAL RESIDENTIAL,548193,130280720,11-Dec-14,-353.62,MENCAP,SP0000604
WANDSWORTH COUNCIL,ASC,SOCIAL SERVICES,CUSTOMER & CLIENT RECPTS - EXT,Revenue,CL CONT EXTERNAL RESIDENTIAL,544248,130280720,08-Dec-14,-495.80,METROPOLITAN HOUSING TRUST,SP0000626
WANDSWORTH COUNCIL,ASC,SOCIAL SERVICES,CUSTOMER & CLIENT RECPTS - EXT,Revenue,CL CONT EXTERNAL RESIDENTIAL,544249,130280720,08-Dec-14,-319.40,METROPOLITAN HOUSING TRUST,SP0000626
WANDSWORTH COUNCIL,ASC,SOCIAL SERVICES,CUSTOMER & CLIENT RECPTS - EXT,Revenue,CL CONT EXTERNAL RESIDENTIAL,544250,130280720,08-Dec-14,-319.40,METROPOLITAN HOUSING TRUST,SP0000626
WANDSWORTH COUNCIL,ASC,SOCIAL SERVICES,CUSTOMER & CLIENT RECPTS - EXT,Revenue,CL CONT EXTERNAL RESIDENTIAL,544251,130280720,08-Dec-14,-495.80,METROPOLITAN HOUSING TRUST,SP0000626
WANDSWORTH COUNCIL,ASC,SOCIAL SERVICES,CUSTOMER & CLIENT RECPTS - EXT,Revenue,CL CONT EXTERNAL RESIDENTIAL,544254,130280720,08-Dec-14,-319.40,METROPOLITAN HOUSING TRUST,SP0000626
WANDSWORTH COUNCIL,ASC,SOCIAL SERVICES,CUSTOMER & CLIENT RECPTS - EXT,Revenue,CL CONT EXTERNAL RESIDENTIAL,544255,130280720,08-Dec-14,-319.40,METROPOLITAN HOUSING TRUST,SP0000626
WANDSWORTH COUNCIL,ASC,SOCIAL SERVICES,CUSTOMER & CLIENT RECPTS - EXT,Revenue,CL CONT EXTERNAL RESIDENTIAL,544256,130280720,08-Dec-14,-495.80,METROPOLITAN HOUSING TRUST,SP0000626
WANDSWORTH COUNCIL,ASC,SOCIAL SERVICES,CUSTOMER & CLIENT RECPTS - EXT,Revenue,CL CONT EXTERNAL RESIDENTIAL,544257,130280720,08-Dec-14,-319.40,METROPOLITAN HOUSING TRUST,SP0000626
WANDSWORTH COUNCIL,ASC,SOCIAL SERVICES,CUSTOMER & CLIENT RECPTS - EXT,Revenue,CL CONT EXTERNAL RESIDENTIAL,544259,130280720,08-Dec-14,-319.40,METROPOLITAN HOUSING TRUST,SP0000626
WANDSWORTH COUNCIL,ASC,SOCIAL SERVICES,CUSTOMER & CLIENT RECPTS - EXT,Revenue,CL CONT EXTERNAL RESIDENTIAL,544260,130280720,08-Dec-14,-319.40,METROPOLITAN HOUSING TRUST,SP0000626
WANDSWORTH COUNCIL,ASC,SOCIAL SERVICES,CUSTOMER & CLIENT RECPTS - EXT,Revenue,CL CONT EXTERNAL RESIDENTIAL,544262,130280720,08-Dec-14,-391.44,METROPOLITAN HOUSING TRUST,SP0000626
WANDSWORTH COUNCIL,ASC,SOCIAL SERVICES,CUSTOMER & CLIENT RECPTS - EXT,Revenue,CL CONT EXTERNAL RESIDENTIAL,544268,130280720,08-Dec-14,-495.80,METROPOLITAN HOUSING TRUST,SP0000626
WANDSWORTH COUNCIL,ASC,SOCIAL SERVICES,CUSTOMER & CLIENT RECPTS - EXT,Revenue,CL CONT EXTERNAL RESIDENTIAL,544269,130280720,08-Dec-14,-319.40,METROPOLITAN HOUSING TRUST,SP0000626
WANDSWORTH COUNCIL,ASC,SOCIAL SERVICES,CUSTOMER & CLIENT RECPTS - EXT,Revenue,CL CONT EXTERNAL RESIDENTIAL,544270,130280720,08-Dec-14,-319.40,METROPOLITAN HOUSING TRUST,SP0000626
WANDSWORTH COUNCIL,ASC,SOCIAL SERVICES,CUSTOMER & CLIENT RECPTS - EXT,Revenue,CL CONT EXTERNAL RESIDENTIAL,544271,130280720,08-Dec-14,-495.80,METROPOLITAN HOUSING TRUST,SP0000626
WANDSWORTH COUNCIL,ASC,SOCIAL SERVICES,CUSTOMER & CLIENT RECPTS - EXT,Revenue,CL CONT EXTERNAL RESIDENTIAL,544274,130280720,08-Dec-14,-319.40,METROPOLITAN HOUSING TRUST,SP0000626
WANDSWORTH COUNCIL,ASC,SOCIAL SERVICES,CUSTOMER & CLIENT RECPTS - EXT,Revenue,CL CONT EXTERNAL RESIDENTIAL,544275,130280720,08-Dec-14,-319.40,METROPOLITAN HOUSING TRUST,SP0000626
WANDSWORTH COUNCIL,ASC,SOCIAL SERVICES,CUSTOMER & CLIENT RECPTS - EXT,Revenue,CL CONT EXTERNAL RESIDENTIAL,544276,130280720,08-Dec-14,-495.80,METROPOLITAN HOUSING TRUST,SP0000626
WANDSWORTH COUNCIL,ASC,SOCIAL SERVICES,CUSTOMER & CLIENT RECPTS - EXT,Revenue,CL CONT EXTERNAL RESIDENTIAL,544277,130280720,08-Dec-14,-319.40,METROPOLITAN HOUSING TRUST,SP0000626
WANDSWORTH COUNCIL,ASC,SOCIAL SERVICES,CUSTOMER & CLIENT RECPTS - EXT,Revenue,CL CONT EXTERNAL RESIDENTIAL,544279,130280720,08-Dec-14,-319.40,METROPOLITAN HOUSING TRUST,SP0000626
WANDSWORTH COUNCIL,ASC,SOCIAL SERVICES,CUSTOMER & CLIENT RECPTS - EXT,Revenue,CL CONT EXTERNAL RESIDENTIAL,544280,130280720,08-Dec-14,-319.40,METROPOLITAN HOUSING TRUST,SP0000626
WANDSWORTH COUNCIL,ASC,SOCIAL SERVICES,CUSTOMER & CLIENT RECPTS - EXT,Revenue,CL CONT EXTERNAL RESIDENTIAL,544282,130280720,08-Dec-14,-391.44,METROPOLITAN HOUSING TRUST,SP0000626
WANDSWORTH COUNCIL,ASC,SOCIAL SERVICES,CUSTOMER & CLIENT RECPTS - EXT,Revenue,CL CONT EXTERNAL RESIDENTIAL,544222,130280720,08-Dec-14,-319.40,LIVABILITY,SP0000669
WANDSWORTH COUNCIL,ASC,SOCIAL SERVICES,CUSTOMER & CLIENT RECPTS - EXT,Revenue,CL CONT EXTERNAL RESIDENTIAL,548194,130280720,11-Dec-14,-319.40,LIVABILITY,SP0000669
WANDSWORTH COUNCIL,ASC,SOCIAL SERVICES,CUSTOMER & CLIENT RECPTS - EXT,Revenue,CL CONT EXTERNAL RESIDENTIAL,548854,130280720,11-Dec-14,-319.40,LOVING CARE LTD,SP0000670
WANDSWORTH COUNCIL,ASC,SOCIAL SERVICES,CUSTOMER & CLIENT RECPTS - EXT,Revenue,CL CONT EXTERNAL RESIDENTIAL,548855,130280720,11-Dec-14,-319.40,LOVING CARE LTD,SP0000670
WANDSWORTH COUNCIL,ASC,SOCIAL SERVICES,CUSTOMER & CLIENT RECPTS - EXT,Revenue,CL CONT EXTERNAL RESIDENTIAL,548856,130280720,11-Dec-14,-319.40,LOVING CARE LTD,SP0000670
WANDSWORTH COUNCIL,ASC,SOCIAL SERVICES,CUSTOMER & CLIENT RECPTS - EXT,Revenue,CL CONT EXTERNAL RESIDENTIAL,548857,130280720,11-Dec-14,-319.40,LOVING CARE LTD,SP0000670
WANDSWORTH COUNCIL,ASC,SOCIAL SERVICES,CUSTOMER & CLIENT RECPTS - EXT,Revenue,CL CONT EXTERNAL RESIDENTIAL,548858,130280720,11-Dec-14,-319.40,LOVING CARE LTD,SP0000670
WANDSWORTH COUNCIL,ASC,SOCIAL SERVICES,CUSTOMER & CLIENT RECPTS - EXT,Revenue,CL CONT EXTERNAL RESIDENTIAL,548880,130280720,11-Dec-14,-319.40,LOVING CARE LTD,SP0000670
WANDSWORTH COUNCIL,ASC,SOCIAL SERVICES,CUSTOMER & CLIENT RECPTS - EXT,Revenue,CL CONT EXTERNAL RESIDENTIAL,548881,130280720,11-Dec-14,-319.40,LOVING CARE LTD,SP0000670
WANDSWORTH COUNCIL,ASC,SOCIAL SERVICES,CUSTOMER & CLIENT RECPTS - EXT,Revenue,CL CONT EXTERNAL RESIDENTIAL,548861,130280720,11-Dec-14,-353.62,THE MANOR HOUSE,SP0000728
WANDSWORTH COUNCIL,ASC,SOCIAL SERVICES,CUSTOMER & CLIENT RECPTS - EXT,Revenue,CL CONT EXTERNAL RESIDENTIAL,552732,130280720,18-Dec-14,-548.92,RALEIGH HOUSE LTD,SP0000760
WANDSWORTH COUNCIL,ASC,SOCIAL SERVICES,CUSTOMER & CLIENT RECPTS - EXT,Revenue,CL CONT EXTERNAL RESIDENTIAL,544265,130280720,08-Dec-14,-362.80,WHITE ROSE CARE,SP0000780
WANDSWORTH COUNCIL,ASC,SOCIAL SERVICES,CUSTOMER & CLIENT RECPTS - EXT,Revenue,CL CONT EXTERNAL RESIDENTIAL,544266,130280720,08-Dec-14,-362.80,WHITE ROSE CARE,SP0000780
WANDSWORTH COUNCIL,ASC,SOCIAL SERVICES,CUSTOMER & CLIENT RECPTS - EXT,Revenue,CL CONT EXTERNAL RESIDENTIAL,544267,130280720,08-Dec-14,-362.80,WHITE ROSE CARE,SP0000780
WANDSWORTH COUNCIL,ASC,SOCIAL SERVICES,CUSTOMER & CLIENT RECPTS - EXT,Revenue,CL CONT EXTERNAL RESIDENTIAL,548121,130280720,11-Dec-14,-319.40,GLENCARE GROUP,SP0000791
WANDSWORTH COUNCIL,ASC,SOCIAL SERVICES,CUSTOMER & CLIENT RECPTS - EXT,Revenue,CL CONT EXTERNAL RESIDENTIAL,548158,130280720,11-Dec-14,-319.40,GLENCARE GROUP,SP0000791
WANDSWORTH COUNCIL,ASC,SOCIAL SERVICES,CUSTOMER & CLIENT RECPTS - EXT,Revenue,CL CONT EXTERNAL RESIDENTIAL,548159,130280720,11-Dec-14,-495.80,GLENCARE GROUP,SP0000791
WANDSWORTH COUNCIL,ASC,SOCIAL SERVICES,CUSTOMER & CLIENT RECPTS - EXT,Revenue,CL CONT EXTERNAL RESIDENTIAL,560451,130280720,30-Dec-14,-991.60,GLENCARE GROUP,SP0000791
WANDSWORTH COUNCIL,ASC,SOCIAL SERVICES,CUSTOMER & CLIENT RECPTS - EXT,Revenue,CL CONT EXTERNAL RESIDENTIAL,548830,130280720,11-Dec-14,-319.40,FREEWAYS TRUST LTD,SP0000793
WANDSWORTH COUNCIL,ASC,SOCIAL SERVICES,CUSTOMER & CLIENT RECPTS - EXT,Revenue,CL CONT EXTERNAL RESIDENTIAL,539604,130280720,01-Dec-14,-319.40,UNITED RESPONSE,SP0000797
WANDSWORTH COUNCIL,ASC,SOCIAL SERVICES,CUSTOMER & CLIENT RECPTS - EXT,Revenue,CL CONT EXTERNAL RESIDENTIAL,557818,130280720,23-Dec-14,-319.40,UNITED RESPONSE,SP0000797
WANDSWORTH COUNCIL,ASC,SOCIAL SERVICES,CUSTOMER & CLIENT RECPTS - EXT,Revenue,CL CONT EXTERNAL RESIDENTIAL,544213,130280720,08-Dec-14,-319.40,PROSPECTS,SP0000800
WANDSWORTH COUNCIL,ASC,SOCIAL SERVICES,CUSTOMER & CLIENT RECPTS - EXT,Revenue,CL CONT EXTERNAL RESIDENTIAL,552720,130280720,18-Dec-14,-319.40,PROSPECTS,SP0000800
WANDSWORTH COUNCIL,ASC,SOCIAL SERVICES,CUSTOMER & CLIENT RECPTS - EXT,Revenue,CL CONT EXTERNAL RESIDENTIAL,544288,130280720,08-Dec-14,-342.21,WESSEX AUTISTIC SOCIETY,SP0000805
WANDSWORTH COUNCIL,ASC,SOCIAL SERVICES,CUSTOMER & CLIENT RECPTS - EXT,Revenue,CL CONT EXTERNAL RESIDENTIAL,557780,130280720,23-Dec-14,-353.62,BEECH LODGE,SP0000807
WANDSWORTH COUNCIL,ASC,SOCIAL SERVICES,CUSTOMER & CLIENT RECPTS - EXT,Revenue,CL CONT EXTERNAL RESIDENTIAL,557781,130280720,23-Dec-14,-353.62,BEECH LODGE,SP0000807
WANDSWORTH COUNCIL,ASC,SOCIAL SERVICES,CUSTOMER & CLIENT RECPTS - EXT,Revenue,CL CONT EXTERNAL RESIDENTIAL,557782,130280720,23-Dec-14,-353.62,BEECH LODGE,SP0000807
WANDSWORTH COUNCIL,ASC,SOCIAL SERVICES,CUSTOMER & CLIENT RECPTS - EXT,Revenue,CL CONT EXTERNAL RESIDENTIAL,557773,130280720,23-Dec-14,-401.67,CHATSWORTH CARE,SP0000831
WANDSWORTH COUNCIL,ASC,SOCIAL SERVICES,CUSTOMER & CLIENT RECPTS - EXT,Revenue,CL CONT EXTERNAL RESIDENTIAL,548843,130280720,11-Dec-14,-353.62,FIRCROFT,SP0000840
WANDSWORTH COUNCIL,ASC,SOCIAL SERVICES,CUSTOMER & CLIENT RECPTS - EXT,Revenue,CL CONT EXTERNAL RESIDENTIAL,548112,130280720,11-Dec-14,-353.62,SCOPE,SP0000852
WANDSWORTH COUNCIL,ASC,SOCIAL SERVICES,CUSTOMER & CLIENT RECPTS - EXT,Revenue,CL CONT EXTERNAL RESIDENTIAL,548113,130280720,11-Dec-14,-382.85,SCOPE,SP0000852
